Body_Code,Body_Name,Service,GL Code,GL Code Desc,Posting Date,Doc Number,Doc Net Amount,Supplier Name
http://statistics.data.gov.uk/id/local-authority/38,Oxfordshire County Council,Agency HOLDING code,2040,Agency Staff,04/02/2020,2200732413,"-260,278.55",Comensura Ltd
http://statistics.data.gov.uk/id/local-authority/38,Oxfordshire County Council,Support at Home U65 Learning Disability,5688,,12/02/2020,3110693373,"-25,225.49",Autism at Kingwood Limited
http://statistics.data.gov.uk/id/local-authority/38,Oxfordshire County Council,ELEC NPR ST LTG,5526,Payments to Private Contractors,04/02/2020,2200731952,"-25,072.74",Bouygues E&S Infrastructure UK Ltd
http://statistics.data.gov.uk/id/local-authority/38,Oxfordshire County Council,Continuing Care - Care Homes - 65+,5687,,12/02/2020,3110695217,"-24,864.18",Chacombe Park Care Home
http://statistics.data.gov.uk/id/local-authority/38,Oxfordshire County Council,CHC Fast Track - Care Homes - Over 65,5687,,12/02/2020,3110695799,"-24,342.87",Cedar Court Care Home
http://statistics.data.gov.uk/id/local-authority/38,Oxfordshire County Council,LANDLORD & TENANT,3945,Rent,10/02/2020,3110690657,"-22,500.00",Fine Print Holdings Ltd
http://statistics.data.gov.uk/id/local-authority/38,Oxfordshire County Council,Hub Beds - Short Stay OCC,5687,,12/02/2020,3110695120,"-21,714.29",Chacombe Park Care Home
http://statistics.data.gov.uk/id/local-authority/38,Oxfordshire County Council,TRAFF SIGNALS MTCE,4531,Materials,05/02/2020,2200732496,"-16,914.75",TELENT
http://statistics.data.gov.uk/id/local-authority/38,Oxfordshire County Council,CHC Fast Track - Care Homes - Over 65,5687,,12/02/2020,3110695052,"-15,645.14",CARE UK COMMUNITY PARTNERSHIPS LIMI
http://statistics.data.gov.uk/id/local-authority/38,Oxfordshire County Council,Funded Nursing Care  - Over 65,5692,,12/02/2020,3110696151,"-15,235.66",Oxford Beaumont
http://statistics.data.gov.uk/id/local-authority/38,Oxfordshire County Council,MAINSTREAM-SECONDARY,4322,"Season Tickets - Bus, Rail & Ferry",13/02/2020,3110697166,"-15,155.00",Stagecoach Services Ltd
http://statistics.data.gov.uk/id/local-authority/38,Oxfordshire County Council,Mainstream Res,5558,,20/02/2020,3110700396,"-10,775.88",Cambian Autism Services Ltd
http://statistics.data.gov.uk/id/local-authority/38,Oxfordshire County Council,Support at Home U65 Learning Disability,5688,,12/02/2020,3110695163,"-10,727.65",Autism at Kingwood Limited
http://statistics.data.gov.uk/id/local-authority/38,Oxfordshire County Council,,1448,Blackfield Inc & Exp A/c,04/02/2020,3110689498,"-9,102.93",OCC One Time Vendor
http://statistics.data.gov.uk/id/local-authority/38,Oxfordshire County Council,Care Homes - Under 65 Physical Sypport,5685,B*Cycle tracks,12/02/2020,3110696203,"-7,995.49",PJ Care Ltd
http://statistics.data.gov.uk/id/local-authority/38,Oxfordshire County Council,Care Homes - Over 65 Memory & Cognition,5685,B*Cycle tracks,12/02/2020,3110695473,"-7,830.40",Coxwell Hall & Mews Nursing Home
http://statistics.data.gov.uk/id/local-authority/38,Oxfordshire County Council,Care Homes - Over 65 Physical Sypport,5686,,12/02/2020,3110693978,"-7,500.00",Mon Choisy
http://statistics.data.gov.uk/id/local-authority/38,Oxfordshire County Council,Telecare Services,4450,Disability Aids and Equipment,12/02/2020,2200735341,"-7,245.00",NRS Healthcare
http://statistics.data.gov.uk/id/local-authority/38,Oxfordshire County Council,Care Homes - Over 65 Memory & Cognition,5685,B*Cycle tracks,12/02/2020,3110695912,"-6,944.27",The Julie Richardson Nursing Home
http://statistics.data.gov.uk/id/local-authority/38,Oxfordshire County Council,Care Homes - Over 65 Physical Sypport,5685,B*Cycle tracks,12/02/2020,3110695447,"-6,509.79",Coxwell Hall & Mews Nursing Home
http://statistics.data.gov.uk/id/local-authority/38,Oxfordshire County Council,Care Homes - Over 65 Physical Sypport,5687,,12/02/2020,3110696958,"-5,918.71",MARIA MALLABAND CARE GROUP
http://statistics.data.gov.uk/id/local-authority/38,Oxfordshire County Council,Continuing Care - Care Homes - 65+,5687,,12/02/2020,3110696485,"-5,775.00",St Lukes Nursing Home (Oxford)
http://statistics.data.gov.uk/id/local-authority/38,Oxfordshire County Council,Funded Nursing Care  - Over 65,5692,,12/02/2020,3110696274,"-5,770.92",Richmond Letcombe Regis
http://statistics.data.gov.uk/id/local-authority/38,Oxfordshire County Council,Continuing Care - Care Homes - 65+,5687,,12/02/2020,3110696932,"-5,501.79",MARIA MALLABAND CARE GROUP
http://statistics.data.gov.uk/id/local-authority/38,Oxfordshire County Council,CHC Fast Track - Care Homes - Over 65,5687,,12/02/2020,3110694945,"-5,428.57",Grace Care Service Ltd T/A Burford
http://statistics.data.gov.uk/id/local-authority/38,Oxfordshire County Council,LD CLIENTS SOUTH,5688,,12/02/2020,3110693677,"-5,309.17",Mencap Contracts
http://statistics.data.gov.uk/id/local-authority/38,Oxfordshire County Council,Councillors Priorities Fund,4940,Other Services,11/02/2020,3110690915,"-5,190.00",Citizens Advice (CAB) Oxford
http://statistics.data.gov.uk/id/local-authority/38,Oxfordshire County Council,,1448,Blackfield Inc & Exp A/c,24/02/2020,3110700751,"-5,186.09",OCC One Time Vendor
http://statistics.data.gov.uk/id/local-authority/38,Oxfordshire County Council,Care Homes - Over 65 Physical Sypport,5686,,12/02/2020,3110694489,"-4,957.14",Orders of St John
http://statistics.data.gov.uk/id/local-authority/38,Oxfordshire County Council,Care Homes - Over 65 Physical Sypport,5687,,12/02/2020,3110696399,"-4,904.20",Barchester Healthcare Homes Ltd
http://statistics.data.gov.uk/id/local-authority/38,Oxfordshire County Council,Support at Home U65 Learning Disability,5688,,12/02/2020,3110693303,"-4,884.00",Autism at Kingwood Limited
http://statistics.data.gov.uk/id/local-authority/38,Oxfordshire County Council,Care Homes - Over 65 Mental Health,5686,,12/02/2020,3110694835,"-4,871.43",SANCTUARY CARE LTD
http://statistics.data.gov.uk/id/local-authority/38,Oxfordshire County Council,Support at Home U65 Learning Disability,5688,,12/02/2020,3110695198,"-4,667.61",Autism at Kingwood Limited
http://statistics.data.gov.uk/id/local-authority/38,Oxfordshire County Council,Care Homes - Over 65 Physical Sypport,5687,,12/02/2020,3110694550,"-4,661.43",Orders of St John
http://statistics.data.gov.uk/id/local-authority/38,Oxfordshire County Council,Care Homes - Over 65 Physical Sypport,5685,B*Cycle tracks,12/02/2020,3110696229,"-4,547.62",Maria Malllaband Care Group
http://statistics.data.gov.uk/id/local-authority/38,Oxfordshire County Council,Care Homes - Over 65 Physical Sypport,5686,,12/02/2020,3110693741,"-4,457.14",Huntercombe Hall Ltd
http://statistics.data.gov.uk/id/local-authority/38,Oxfordshire County Council,Care Homes - Over 65 Physical Sypport,5687,,12/02/2020,3110692876,"-4,456.31",Abbey Crest Nursing Home
http://statistics.data.gov.uk/id/local-authority/38,Oxfordshire County Council,Funded Nursing Care  - Over 65,5692,,12/02/2020,3110694988,"-4,375.49",Orders of St John
http://statistics.data.gov.uk/id/local-authority/38,Oxfordshire County Council,Care Homes - Over 65 Mental Health,5686,,12/02/2020,3110696463,"-4,203.22",St Johns Residential Home
http://statistics.data.gov.uk/id/local-authority/38,Oxfordshire County Council,Continuing Care - Care Homes - Under 65,5687,,12/02/2020,3110694049,"-3,857.14",Beacher Hall Nursing Centre
http://statistics.data.gov.uk/id/local-authority/38,Oxfordshire County Council,Funded Nursing Care  - Over 65,5692,,12/02/2020,3110696258,"-3,642.30",Richmond Letcombe Regis
http://statistics.data.gov.uk/id/local-authority/38,Oxfordshire County Council,CHC Fast Track - Care Homes - Over 65,5687,,12/02/2020,3110694661,"-3,628.29",SANCTUARY CARE LTD
http://statistics.data.gov.uk/id/local-authority/38,Oxfordshire County Council,Care Homes - Over 65 Physical Sypport,5686,,12/02/2020,3110695528,"-3,563.86",Coate Water Care
http://statistics.data.gov.uk/id/local-authority/38,Oxfordshire County Council,CHC Fast Track - Care Homes - Under 65,5687,,12/02/2020,3110696939,"-3,392.86",MARIA MALLABAND CARE GROUP
http://statistics.data.gov.uk/id/local-authority/38,Oxfordshire County Council,Care Homes - Over 65 Physical Sypport,5686,,12/02/2020,3110693150,"-3,319.43",Orders of St John
http://statistics.data.gov.uk/id/local-authority/38,Oxfordshire County Council,Care Homes - Over 65 Physical Sypport,5687,,12/02/2020,3110696403,"-3,285.71",Barchester Healthcare Homes Ltd
http://statistics.data.gov.uk/id/local-authority/38,Oxfordshire County Council,Early Years SEN Funding,5537,Payments to Other Establishments,24/02/2020,3110700787,"-3,234.00",Little Treasures Kindergarten
http://statistics.data.gov.uk/id/local-authority/38,Oxfordshire County Council,Care Homes - Over 65 Physical Sypport,5687,,12/02/2020,3110695902,"-3,196.18",The Julie Richardson Nursing Home
http://statistics.data.gov.uk/id/local-authority/38,Oxfordshire County Council,Care Homes - Over 65 Physical Sypport,5685,B*Cycle tracks,12/02/2020,3110695079,"-3,139.57",Orders of St John
http://statistics.data.gov.uk/id/local-authority/38,Oxfordshire County Council,Care Homes - Over 65 Physical Sypport,5687,,12/02/2020,3110692792,"-3,062.14",Banbury Heights Nursing Home
http://statistics.data.gov.uk/id/local-authority/38,Oxfordshire County Council,NURSERY ED FUND,5537,Payments to Other Establishments,25/02/2020,3110700980,"-3,054.24",Createchildcare Ltd
http://statistics.data.gov.uk/id/local-authority/38,Oxfordshire County Council,Care Homes - Over 65 Physical Sypport,5686,,12/02/2020,3110696732,"-3,024.29",METHODIST HOMES
http://statistics.data.gov.uk/id/local-authority/38,Oxfordshire County Council,Care Homes - Over 65 Physical Sypport,5686,,12/02/2020,3110696963,"-2,971.43",Caring Homes Healthcare Group Ltd
http://statistics.data.gov.uk/id/local-authority/38,Oxfordshire County Council,Care Homes - Over 65 Leaning Disability,5686,,12/02/2020,3110695955,"-2,900.00",Leafield Rest Home
http://statistics.data.gov.uk/id/local-authority/38,Oxfordshire County Council,Care Homes - Over 65 Memory & Cognition,5687,,12/02/2020,3110695907,"-2,850.00",The Julie Richardson Nursing Home
http://statistics.data.gov.uk/id/local-authority/38,Oxfordshire County Council,CHC Fast Track - Care Homes - Over 65,5687,,12/02/2020,3110696012,"-2,800.00",Lincroft Meadow
http://statistics.data.gov.uk/id/local-authority/38,Oxfordshire County Council,Care Homes - Over 65 Mental Health,5687,,12/02/2020,3110696356,"-2,796.43",Barchester Healthcare Homes Ltd
http://statistics.data.gov.uk/id/local-authority/38,Oxfordshire County Council,Funded Nursing Care  - Over 65,5692,,12/02/2020,3110696962,"-2,767.21",Caring Homes Healthcare Group Ltd
http://statistics.data.gov.uk/id/local-authority/38,Oxfordshire County Council,Care Homes - Over 65 Physical Sypport,5687,,12/02/2020,3110696385,"-2,661.43",Barchester Healthcare Homes Ltd
http://statistics.data.gov.uk/id/local-authority/38,Oxfordshire County Council,Care Homes - Over 65 Physical Sypport,5687,,12/02/2020,3110695768,"-2,571.43",Green Pastures Christian NH
http://statistics.data.gov.uk/id/local-authority/38,Oxfordshire County Council,Care Homes - Over 65 Physical Sypport,5686,,12/02/2020,3110693050,"-2,478.57",Orders of St John
http://statistics.data.gov.uk/id/local-authority/38,Oxfordshire County Council,Care Homes - Over 65 Mental Health,5685,B*Cycle tracks,12/02/2020,3110694372,"-2,431.50",Vale House
http://statistics.data.gov.uk/id/local-authority/38,Oxfordshire County Council,CHC Fast Track - Care Homes - Over 65,5687,,12/02/2020,3110694669,"-2,400.00",SANCTUARY CARE LTD
http://statistics.data.gov.uk/id/local-authority/38,Oxfordshire County Council,Funded Nursing Care  - Over 65,5692,,12/02/2020,3110696271,"-2,317.83",Richmond Letcombe Regis
http://statistics.data.gov.uk/id/local-authority/38,Oxfordshire County Council,LAC PUPIL PREMIUM,5537,Payments to Other Establishments,14/02/2020,3110697329,"-2,300.00",UTC Oxfordshire
http://statistics.data.gov.uk/id/local-authority/38,Oxfordshire County Council,FLEET OPERATIONS,4210,Vehicles and Plant - Repairs and Main,03/02/2020,2200731420,"-2,275.93",Dawsongroup Bus and Coach Ltd
http://statistics.data.gov.uk/id/local-authority/38,Oxfordshire County Council,Continuing Care - Care Homes - 65+,5687,,12/02/2020,3110696034,"-2,199.60",Meadow View Nursing Home
http://statistics.data.gov.uk/id/local-authority/38,Oxfordshire County Council,Care Homes - Under 65 Leaning Disability,5686,,12/02/2020,3110696849,"-2,177.80",Voyage
http://statistics.data.gov.uk/id/local-authority/38,Oxfordshire County Council,Funded Nursing Care  - Over 65,5692,,12/02/2020,3110695643,"-2,175.92",Godswell Park
http://statistics.data.gov.uk/id/local-authority/38,Oxfordshire County Council,CHC Fast Track - Care Homes - Over 65,5687,,12/02/2020,3110695436,"-2,168.57",Coxwell Hall & Mews Nursing Home
http://statistics.data.gov.uk/id/local-authority/38,Oxfordshire County Council,Care Homes - Over 65 Physical Sypport,5686,,12/02/2020,3110696714,"-2,100.00",METHODIST HOMES
http://statistics.data.gov.uk/id/local-authority/38,Oxfordshire County Council,Care Homes - Over 65 Physical Sypport,5687,,12/02/2020,3110694329,"-2,069.83",The Albany Care Home
http://statistics.data.gov.uk/id/local-authority/38,Oxfordshire County Council,Care Homes - Over 65 Physical Sypport,5687,,12/02/2020,3110694589,"-2,064.29",METHODIST HOMES
http://statistics.data.gov.uk/id/local-authority/38,Oxfordshire County Council,Planned preventative Maintenance,3787,Premises Repairs,24/02/2020,2200738605,"-2,037.10",TESGL Ltd T/A SSE Energy Solutions
http://statistics.data.gov.uk/id/local-authority/38,Oxfordshire County Council,Care Homes - Over 65 Physical Sypport,5686,,12/02/2020,3110696412,"-2,035.71",St Andrews Residential Care Home L
http://statistics.data.gov.uk/id/local-authority/38,Oxfordshire County Council,Care Homes - Over 65 Memory & Cognition,5685,B*Cycle tracks,12/02/2020,3110693375,"-2,021.53",ACER HEALTHCARE LTD
http://statistics.data.gov.uk/id/local-authority/38,Oxfordshire County Council,RESIDENTIAL STRATEGY,4940,Other Services,03/02/2020,3110688047,"-2,000.00",OCC One Time Vendor
http://statistics.data.gov.uk/id/local-authority/38,Oxfordshire County Council,Care Homes - Over 65 Physical Sypport,5687,,12/02/2020,3110696070,"-1,962.02",Merryfield Nursing Home
http://statistics.data.gov.uk/id/local-authority/38,Oxfordshire County Council,Funded Nursing Care  - Over 65,5692,,12/02/2020,3110694920,"-1,939.41",Grace Care Service Ltd T/A Burford
http://statistics.data.gov.uk/id/local-authority/38,Oxfordshire County Council,Care Homes - Over 65 Physical Sypport,5685,B*Cycle tracks,12/02/2020,3110695134,"-1,896.27",Orders of St John
http://statistics.data.gov.uk/id/local-authority/38,Oxfordshire County Council,Continuing Care - Care Homes - 65+,5687,,12/02/2020,3110694673,"-1,895.14",SANCTUARY CARE LTD
http://statistics.data.gov.uk/id/local-authority/38,Oxfordshire County Council,Funded Nursing Care  - Over 65,5692,,12/02/2020,3110695097,"-1,868.45",CARE UK COMMUNITY PARTNERSHIPS LIMI
http://statistics.data.gov.uk/id/local-authority/38,Oxfordshire County Council,Care Homes - Over 65 Mental Health,5686,,12/02/2020,3110696657,"-1,847.86",The Grange - Goring Care Homes
http://statistics.data.gov.uk/id/local-authority/38,Oxfordshire County Council,Funded Nursing Care  - Over 65,5692,,12/02/2020,3110696514,"-1,821.15",Tall Trees
http://statistics.data.gov.uk/id/local-authority/38,Oxfordshire County Council,Care Homes - Over 65 Physical Sypport,5687,,12/02/2020,3110693212,"-1,821.02",ACER HEALTHCARE LTD
http://statistics.data.gov.uk/id/local-authority/38,Oxfordshire County Council,Care Homes - Over 65 Physical Sypport,5687,,12/02/2020,3110693679,"-1,814.00",Orders of St John
http://statistics.data.gov.uk/id/local-authority/38,Oxfordshire County Council,VOIDS/VACANCY COSTS,3945,Rent,12/02/2020,3110695281,"-1,757.43",ADVANCE HOUSING & SUPPORT LTD
http://statistics.data.gov.uk/id/local-authority/38,Oxfordshire County Council,Care Homes - Over 65 Physical Sypport,5686,,12/02/2020,3110695099,"-1,685.43",Orders of St John
http://statistics.data.gov.uk/id/local-authority/38,Oxfordshire County Council,Care Homes - Over 65 Mental Health,5657,,12/02/2020,3110694285,"-1,636.43",Bridge House
http://statistics.data.gov.uk/id/local-authority/38,Oxfordshire County Council,Funded Nursing Care  - Over 65,5692,,12/02/2020,3110695407,"-1,631.94",CHURCHFIELDS CARE HOME
http://statistics.data.gov.uk/id/local-authority/38,Oxfordshire County Council,Early Years SEN Funding,5537,Payments to Other Establishments,10/02/2020,3110690652,"-1,617.00",Jack & Jill Playgroup&Toddler Group
http://statistics.data.gov.uk/id/local-authority/38,Oxfordshire County Council,Early Years SEN Funding,5537,Payments to Other Establishments,24/02/2020,3110700788,"-1,617.00",Jack & Jill Playgroup&Toddler Group
http://statistics.data.gov.uk/id/local-authority/38,Oxfordshire County Council,Care Homes - Over 65 Physical Sypport,5687,,12/02/2020,3110695025,"-1,607.14",CARE UK COMMUNITY PARTNERSHIPS LIMI
http://statistics.data.gov.uk/id/local-authority/38,Oxfordshire County Council,Care Homes - Over 65 Physical Sypport,5686,,12/02/2020,3110695611,"-1,546.71",The Old Vicarage
http://statistics.data.gov.uk/id/local-authority/38,Oxfordshire County Council,Care Homes - Over 65 Mental Health,5686,,12/02/2020,3110695275,"-1,500.00",Cheney House Care Home
http://statistics.data.gov.uk/id/local-authority/38,Oxfordshire County Council,Funded Nursing Care  - Under 65,5692,,12/02/2020,3110694949,"-1,490.03",Grace Care Service Ltd T/A Burford
http://statistics.data.gov.uk/id/local-authority/38,Oxfordshire County Council,Staff Travel Benefits,4341,B*Staff Self Drive Vehicle Hire,06/02/2020,2200732985,"-1,458.33",Cyclescheme Ltd
http://statistics.data.gov.uk/id/local-authority/38,Oxfordshire County Council,Support at Home 65+ Physical Support,5681,,12/02/2020,3110693065,"-1,435.43",Orders of St John
http://statistics.data.gov.uk/id/local-authority/38,Oxfordshire County Council,Senior Leadership Team,5105,Members' Expenses and Allowances,28/02/2020,3110703484,"-1,425.00",Local Government Association
http://statistics.data.gov.uk/id/local-authority/38,Oxfordshire County Council,Funded Nursing Care  - Over 65,5692,,12/02/2020,3110696273,"-1,419.08",Richmond Letcombe Regis
http://statistics.data.gov.uk/id/local-authority/38,Oxfordshire County Council,,1448,Blackfield Inc & Exp A/c,24/02/2020,3110700755,"-1,409.42",OCC One Time Vendor
http://statistics.data.gov.uk/id/local-authority/38,Oxfordshire County Council,2 YEAR OLD FUNDING,5537,Payments to Other Establishments,20/02/2020,3110703511,"-1,351.30",Brightwell Pre-school
http://statistics.data.gov.uk/id/local-authority/38,Oxfordshire County Council,Funded Nursing Care  - Over 65,5692,,12/02/2020,3110696260,"-1,348.13",Richmond Letcombe Regis
http://statistics.data.gov.uk/id/local-authority/38,Oxfordshire County Council,FOSTERING MAIN,5552,B*Fostering - Retainer Fee,18/02/2020,3110699776,"-1,320.00",Redacted Personal Data
http://statistics.data.gov.uk/id/local-authority/38,Oxfordshire County Council,Care Homes - Over 65 Physical Sypport,5687,,12/02/2020,3110693494,"-1,295.71",Orders of St John
http://statistics.data.gov.uk/id/local-authority/38,Oxfordshire County Council,Early Years SEN Funding,5537,Payments to Other Establishments,24/02/2020,3110700789,"-1,293.60",NOAs Ark Nursery
http://statistics.data.gov.uk/id/local-authority/38,Oxfordshire County Council,Care Homes - Over 65 Physical Sypport,5686,,12/02/2020,3110694243,"-1,257.87",Orders of St John
http://statistics.data.gov.uk/id/local-authority/38,Oxfordshire County Council,Early Years SEN Funding,5537,Payments to Other Establishments,24/02/2020,3110700790,"-1,228.80",Crowmarsh Pre-School
http://statistics.data.gov.uk/id/local-authority/38,Oxfordshire County Council,Funded Nursing Care  - Over 65,5692,,12/02/2020,3110694088,"-1,187.20",Oakenholt Care Ltd
http://statistics.data.gov.uk/id/local-authority/38,Oxfordshire County Council,2 YEAR OLD FUNDING,5537,Payments to Other Establishments,20/02/2020,3110703522,"-1,165.82",Yarnton Playgroup
http://statistics.data.gov.uk/id/local-authority/38,Oxfordshire County Council,Care Homes - Over 65 Physical Sypport,5687,,12/02/2020,3110696088,"-1,151.31",Middletown Grange Care Home
http://statistics.data.gov.uk/id/local-authority/38,Oxfordshire County Council,Funded Nursing Care  - Over 65,5692,,12/02/2020,3110692897,"-1,135.26",Abbey Crest Nursing Home
http://statistics.data.gov.uk/id/local-authority/38,Oxfordshire County Council,Continuing Care - Care Homes - 65+,5687,,12/02/2020,3110694911,"-1,126.29",Orders of St John
http://statistics.data.gov.uk/id/local-authority/38,Oxfordshire County Council,Care Homes - Over 65 Physical Sypport,5687,,12/02/2020,3110693372,"-1,094.17",Freeland House
http://statistics.data.gov.uk/id/local-authority/38,Oxfordshire County Council,Care Homes - Over 65 Physical Sypport,5686,,12/02/2020,3110694565,"-1,076.57",OSJ  - Old Station House
http://statistics.data.gov.uk/id/local-authority/38,Oxfordshire County Council,Care Homes - Over 65 Physical Sypport,5687,,12/02/2020,3110692927,"-1,041.43",Banbury Heights Nursing Home
http://statistics.data.gov.uk/id/local-authority/38,Oxfordshire County Council,Care Homes - Over 65 Physical Sypport,5687,,12/02/2020,3110693832,"-1,035.71",Mill House Nursing Home
http://statistics.data.gov.uk/id/local-authority/38,Oxfordshire County Council,Care Homes - Over 65 Physical Sypport,5685,B*Cycle tracks,12/02/2020,3110694508,"-1,021.17",Orders of St John
http://statistics.data.gov.uk/id/local-authority/38,Oxfordshire County Council,Funded Nursing Care  - Over 65,5692,,12/02/2020,3110696600,"-1,017.01",The Cotswold Home
http://statistics.data.gov.uk/id/local-authority/38,Oxfordshire County Council,2 YEAR OLD FUNDING,5537,Payments to Other Establishments,24/02/2020,3110700754,-993.60,Debbie Brock - Badgers Den
http://statistics.data.gov.uk/id/local-authority/38,Oxfordshire County Council,Funded Nursing Care  - Over 65,5692,,12/02/2020,3110694339,-969.70,The Albany Care Home
http://statistics.data.gov.uk/id/local-authority/38,Oxfordshire County Council,VOIDS/VACANCY COSTS,3945,Rent,12/02/2020,3110695279,-966.02,ADVANCE HOUSING & SUPPORT LTD
http://statistics.data.gov.uk/id/local-authority/38,Oxfordshire County Council,Continuing Care - Care Homes - 65+,5687,,12/02/2020,3110696708,-960.00,Four Seasons (Headington) Ltd
http://statistics.data.gov.uk/id/local-authority/38,Oxfordshire County Council,Funded Nursing Care  - Over 65,5692,,12/02/2020,3110693675,-922.40,Acacia Lodge Care Home
http://statistics.data.gov.uk/id/local-authority/38,Oxfordshire County Council,Care Homes - Over 65 Physical Sypport,5686,,12/02/2020,3110694335,-921.61,Orders of St John
http://statistics.data.gov.uk/id/local-authority/38,Oxfordshire County Council,Care Homes - Over 65 Physical Sypport,5687,,12/02/2020,3110693462,-900.00,Heathfield House Nursing Home
http://statistics.data.gov.uk/id/local-authority/38,Oxfordshire County Council,MAINSTREAM-SECONDARY,4322,"Season Tickets - Bus, Rail & Ferry",13/02/2020,3110697256,-893.50,Oxford Bus Company Ltd
http://statistics.data.gov.uk/id/local-authority/38,Oxfordshire County Council,Early Years SEN Funding,5537,Payments to Other Establishments,24/02/2020,3110700791,-877.80,Paddocks Pre-School Playgroup
http://statistics.data.gov.uk/id/local-authority/38,Oxfordshire County Council,Funded Nursing Care  - Over 65,5692,,12/02/2020,3110693003,-875.10,Abbey Crest Nursing Home
http://statistics.data.gov.uk/id/local-authority/38,Oxfordshire County Council,Funded Nursing Care  - Over 65,5692,,12/02/2020,3110695157,-875.10,Chacombe Park Care Home
http://statistics.data.gov.uk/id/local-authority/38,Oxfordshire County Council,Care Homes - Over 65 Physical Sypport,5685,B*Cycle tracks,12/02/2020,3110695948,-859.46,Lashbrook House Care Home
http://statistics.data.gov.uk/id/local-authority/38,Oxfordshire County Council,AGENCY RESID - DISAB,5545,B*Fostering Enhancements - Level 2,26/02/2020,3110701874,-846.70,Redacted Personal Data
http://statistics.data.gov.uk/id/local-authority/38,Oxfordshire County Council,Care Homes - Over 65 Physical Sypport,5687,,12/02/2020,3110696360,-810.00,Barchester Healthcare Homes Ltd
http://statistics.data.gov.uk/id/local-authority/38,Oxfordshire County Council,Early Years SEN Funding,5537,Payments to Other Establishments,24/02/2020,3110700793,-808.50,Great Tew Pre-School
http://statistics.data.gov.uk/id/local-authority/38,Oxfordshire County Council,Early Years SEN Funding,5537,Payments to Other Establishments,24/02/2020,3110700795,-808.50,Little Bears Pre-School (PFSU)
http://statistics.data.gov.uk/id/local-authority/38,Oxfordshire County Council,Early Years SEN Funding,5537,Payments to Other Establishments,24/02/2020,3110700797,-808.50,Peachcroft Pre-School
http://statistics.data.gov.uk/id/local-authority/38,Oxfordshire County Council,Early Years SEN Funding,5537,Payments to Other Establishments,24/02/2020,3110700792,-808.50,Rainbow Pre-School
http://statistics.data.gov.uk/id/local-authority/38,Oxfordshire County Council,Early Years SEN Funding,5537,Payments to Other Establishments,24/02/2020,3110700794,-808.50,The Town Nursery
http://statistics.data.gov.uk/id/local-authority/38,Oxfordshire County Council,Early Years SEN Funding,5537,Payments to Other Establishments,24/02/2020,3110700798,-808.50,Wantage Pre-School
http://statistics.data.gov.uk/id/local-authority/38,Oxfordshire County Council,LIBRARY COLLECTIONS,4539,"Books, DVDs and CDs",20/02/2020,3110700433,-804.49,ASKEWS & HOLTS LIBRARY SERVICES LTD
http://statistics.data.gov.uk/id/local-authority/38,Oxfordshire County Council,Funded Nursing Care  - Over 65,5692,,12/02/2020,3110696309,-804.14,Rushcourt Nursing Home
http://statistics.data.gov.uk/id/local-authority/38,Oxfordshire County Council,Funded Nursing Care  - Over 65,5692,,12/02/2020,3110693278,-756.84,Freeland House
http://statistics.data.gov.uk/id/local-authority/38,Oxfordshire County Council,,1448,Blackfield Inc & Exp A/c,14/02/2020,3110697334,-741.24,OCC One Time Vendor
http://statistics.data.gov.uk/id/local-authority/38,Oxfordshire County Council,Early Years SEN Funding,5537,Payments to Other Establishments,24/02/2020,3110700800,-739.20,Burford Pre-School
http://statistics.data.gov.uk/id/local-authority/38,Oxfordshire County Council,Early Years SEN Funding,5537,Payments to Other Establishments,24/02/2020,3110700799,-739.20,Horspath Nursery
http://statistics.data.gov.uk/id/local-authority/38,Oxfordshire County Council,Funded Nursing Care  - Over 65,5692,,12/02/2020,3110696615,-733.19,The Cotswold Home
http://statistics.data.gov.uk/id/local-authority/38,Oxfordshire County Council,Early Years SEN Funding,5537,Payments to Other Establishments,24/02/2020,3110700801,-724.50,Long Hanborough Playgroup
http://statistics.data.gov.uk/id/local-authority/38,Oxfordshire County Council,Early Years SEN Funding,5537,Payments to Other Establishments,24/02/2020,3110700802,-724.50,Long Hanborough Playgroup
http://statistics.data.gov.uk/id/local-authority/38,Oxfordshire County Council,Funded Nursing Care  - Over 65,5692,,12/02/2020,3110695671,-709.54,Godswell Park
http://statistics.data.gov.uk/id/local-authority/38,Oxfordshire County Council,Early Years SEN Funding,5537,Payments to Other Establishments,24/02/2020,3110700803,-702.24,Grovelands Park Pre-School
http://statistics.data.gov.uk/id/local-authority/38,Oxfordshire County Council,Care Homes - Over 65 Physical Sypport,5686,,12/02/2020,3110694249,-700.00,ST ANNES RESIDENTIAL  HOME
http://statistics.data.gov.uk/id/local-authority/38,Oxfordshire County Council,Funded Nursing Care  - Over 65,5692,,12/02/2020,3110696977,-685.89,Caring Homes Healthcare Group Ltd
http://statistics.data.gov.uk/id/local-authority/38,Oxfordshire County Council,Care Homes - Over 65 Physical Sypport,5687,,12/02/2020,3110693524,-637.51,ACER HEALTHCARE LTD
http://statistics.data.gov.uk/id/local-authority/38,Oxfordshire County Council,Care Homes - Over 65 Physical Sypport,5685,B*Cycle tracks,12/02/2020,3110692879,-628.70,Banbury Heights Nursing Home
http://statistics.data.gov.uk/id/local-authority/38,Oxfordshire County Council,CORONER,5202,Use of Mortuary Services,27/02/2020,2200740386,-622.60,Oxford University Hospitals NHS Tru
http://statistics.data.gov.uk/id/local-authority/38,Oxfordshire County Council,CHC Fast Track - Sup at Homes - Over 65,5691,,21/02/2020,3110700746,-621.00,Buckinghamshire County Council
http://statistics.data.gov.uk/id/local-authority/38,Oxfordshire County Council,,1448,Blackfield Inc & Exp A/c,03/02/2020,3110687954,-611.90,OCC One Time Vendor
http://statistics.data.gov.uk/id/local-authority/38,Oxfordshire County Council,SEN TRANSPORT,4330,Transport to School Activities,05/02/2020,3110689914,-600.00,Airport Transfers Banbury Ltd
http://statistics.data.gov.uk/id/local-authority/38,Oxfordshire County Council,Delegated Health Tasks  - Over 65,5691,,21/02/2020,3110700745,-600.00,OCC One Time Vendor
http://statistics.data.gov.uk/id/local-authority/38,Oxfordshire County Council,2 YEAR OLD FUNDING,5537,Payments to Other Establishments,20/02/2020,3110703513,-596.16,Redacted Personal Data
http://statistics.data.gov.uk/id/local-authority/38,Oxfordshire County Council,2 YEAR OLD FUNDING,5537,Payments to Other Establishments,20/02/2020,3110703520,-596.16,Ladybird Pre-School
http://statistics.data.gov.uk/id/local-authority/38,Oxfordshire County Council,,1448,Blackfield Inc & Exp A/c,11/02/2020,3110690875,-589.40,OCC One Time Vendor
http://statistics.data.gov.uk/id/local-authority/38,Oxfordshire County Council,CENTRAL PRINTING,4705,Printing,11/02/2020,2200734825,-547.83,Annodata Limited
http://statistics.data.gov.uk/id/local-authority/38,Oxfordshire County Council,Funded Nursing Care  - Over 65,5692,,12/02/2020,3110692804,-543.98,Banbury Heights Nursing Home
http://statistics.data.gov.uk/id/local-authority/38,Oxfordshire County Council,Funded Nursing Care  - Over 65,5692,,12/02/2020,3110696303,-543.98,Rushcourt Nursing Home
http://statistics.data.gov.uk/id/local-authority/38,Oxfordshire County Council,Care Homes - Over 65 Memory & Cognition,5686,,12/02/2020,3110696434,-542.86,Stowford House
http://statistics.data.gov.uk/id/local-authority/38,Oxfordshire County Council,Funded Nursing Care  - Over 65,5692,,12/02/2020,3110693535,-539.66,Heathfield House Nursing Home
http://statistics.data.gov.uk/id/local-authority/38,Oxfordshire County Council,Early Years SEN Funding,5537,Payments to Other Establishments,24/02/2020,3110700804,-539.00,Childbase Nurseries
http://statistics.data.gov.uk/id/local-authority/38,Oxfordshire County Council,Councillors Priorities Fund,4940,Other Services,14/02/2020,3110697331,-525.00,Relate
http://statistics.data.gov.uk/id/local-authority/38,Oxfordshire County Council,Early Years SEN Funding,5537,Payments to Other Establishments,24/02/2020,3110700805,-500.50,Culham Science Centre Nursery &
http://statistics.data.gov.uk/id/local-authority/38,Oxfordshire County Council,LEGAL SERVICES,5251,Legal Costs,13/02/2020,2200735856,500.00,Alexander Forbes
http://statistics.data.gov.uk/id/local-authority/38,Oxfordshire County Council,LEGAL SERVICES,5251,Legal Costs,13/02/2020,2200735894,500.00,Alexander Forbes
http://statistics.data.gov.uk/id/local-authority/38,Oxfordshire County Council,LEGAL SERVICES,5251,Legal Costs,13/02/2020,2200736013,500.00,Alexander Forbes
http://statistics.data.gov.uk/id/local-authority/38,Oxfordshire County Council,LEGAL SERVICES,5251,Legal Costs,14/02/2020,2200736859,500.00,Alexander Forbes
http://statistics.data.gov.uk/id/local-authority/38,Oxfordshire County Council,Councillors Priorities Fund,4940,Other Services,18/02/2020,3110697648,500.00,Carterton Town Council
http://statistics.data.gov.uk/id/local-authority/38,Oxfordshire County Council,LEAVING CARE CITY 2,3942,Hire of Accommodation and Facilities,18/02/2020,3110697623,500.00,Redacted Personal Data
http://statistics.data.gov.uk/id/local-authority/38,Oxfordshire County Council,SEN TRANSPORT,5227,Other Transport Arrangements,11/02/2020,3110691377,500.00,Crown Cabs Travel Ltd
http://statistics.data.gov.uk/id/local-authority/38,Oxfordshire County Council,SEN TRANSPORT,5227,Other Transport Arrangements,11/02/2020,3110691383,500.00,Crown Cabs Travel Ltd
http://statistics.data.gov.uk/id/local-authority/38,Oxfordshire County Council,L&D CORE PROGRAMME,3100,Educational and Vocational Training,07/02/2020,2200733558,500.00,Curtis Ball
http://statistics.data.gov.uk/id/local-authority/38,Oxfordshire County Council,Support at Home 65+ Mental Health,5899,Social Care - Direct Payments,18/02/2020,3110698534,500.00,Redacted Personal Data
http://statistics.data.gov.uk/id/local-authority/38,Oxfordshire County Council,LAC PUPIL PREMIUM,5537,Payments to Other Establishments,18/02/2020,3110697570,500.00,Falconer School
http://statistics.data.gov.uk/id/local-authority/38,Oxfordshire County Council,Councillors Priorities Fund,4940,Other Services,11/02/2020,3110690852,500.00,Finmere Parish Council
http://statistics.data.gov.uk/id/local-authority/38,Oxfordshire County Council,Marketing,4790,"Publicity, Promotions and Advertisement",17/02/2020,2200737455,500.00,Fyne Associates Ltd
http://statistics.data.gov.uk/id/local-authority/38,Oxfordshire County Council,Councillors Priorities Fund,4940,Other Services,06/02/2020,3110690268,500.00,Great Haseley Parish Council
http://statistics.data.gov.uk/id/local-authority/38,Oxfordshire County Council,FOSTERING TEAM,4861,Hired and Contracted Services,05/02/2020,2200732369,500.00,Green Light People Solutions
http://statistics.data.gov.uk/id/local-authority/38,Oxfordshire County Council,FOSTERING TEAM,4861,Hired and Contracted Services,05/02/2020,2200732370,500.00,Green Light People Solutions
http://statistics.data.gov.uk/id/local-authority/38,Oxfordshire County Council,Councillors Priorities Fund,4940,Other Services,25/02/2020,3110700948,500.00,Hanborough Show
http://statistics.data.gov.uk/id/local-authority/38,Oxfordshire County Council,Bracknell Adoption Support Fund,4859,Medical and Counselling Fees,04/02/2020,2200732033,500.00,Heads & Hearts Ltd
http://statistics.data.gov.uk/id/local-authority/38,Oxfordshire County Council,Councillors Priorities Fund,4940,Other Services,06/02/2020,3110690275,500.00,Heyford and Bicester Veterans Group
http://statistics.data.gov.uk/id/local-authority/38,Oxfordshire County Council,LIABILITY,3153,,04/02/2020,3110688084,500.00,Heyfordian Travel Ltd
http://statistics.data.gov.uk/id/local-authority/38,Oxfordshire County Council,Councillors Priorities Fund,4940,Other Services,18/02/2020,3110697665,500.00,Hornton Parish Council
http://statistics.data.gov.uk/id/local-authority/38,Oxfordshire County Council,CENS & SURV NON GRNT,4531,Materials,03/02/2020,2200731305,500.00,Intelligent Data (Collection) Ltd
http://statistics.data.gov.uk/id/local-authority/38,Oxfordshire County Council,LAC PUPIL PREMIUM,5537,Payments to Other Establishments,18/02/2020,3110697578,500.00,John Henry Newman Academy
http://statistics.data.gov.uk/id/local-authority/38,Oxfordshire County Council,OSCB,3105,Training related expenditure,14/02/2020,2200736294,500.00,Redacted Personal Data
http://statistics.data.gov.uk/id/local-authority/38,Oxfordshire County Council,Councillors Priorities Fund,4940,Other Services,11/02/2020,3110690872,500.00,Life Education Wessex &
http://statistics.data.gov.uk/id/local-authority/38,Oxfordshire County Council,LEGAL SERVICES,5251,Legal Costs,05/02/2020,2200732182,500.00,Max Schofield
http://statistics.data.gov.uk/id/local-authority/38,Oxfordshire County Council,MultiCAV,4790,"Publicity, Promotions and Advertisement",03/02/2020,2200731083,500.00,Miramar
http://statistics.data.gov.uk/id/local-authority/38,Oxfordshire County Council,L&D CORE PROGRAMME,3100,Educational and Vocational Training,07/02/2020,2200733560,500.00,Miss Emily Rayner
http://statistics.data.gov.uk/id/local-authority/38,Oxfordshire County Council,LEGAL SERVICES,5251,Legal Costs,10/02/2020,2200733808,500.00,Mr J Turner
http://statistics.data.gov.uk/id/local-authority/38,Oxfordshire County Council,MultiCAV,4861,Hired and Contracted Services,03/02/2020,2200731082,500.00,Redacted Personal Data
http://statistics.data.gov.uk/id/local-authority/38,Oxfordshire County Council,North FSS Statutory - Bicester,3942,Hire of Accommodation and Facilities,06/02/2020,9300045293,500.00,OCC Bicester C & F Centre Bank
http://statistics.data.gov.uk/id/local-authority/38,Oxfordshire County Council,HIGHWAYS GENERAL,5055,Insurance Costs,04/02/2020,3110688057,500.00,OCC One Time Vendor
http://statistics.data.gov.uk/id/local-authority/38,Oxfordshire County Council,HIGHWAYS GENERAL,5055,Insurance Costs,20/02/2020,3110700381,500.00,OCC One Time Vendor
http://statistics.data.gov.uk/id/local-authority/38,Oxfordshire County Council,HIGHWAYS GENERAL,5055,Insurance Costs,25/02/2020,3110700963,500.00,OCC One Time Vendor
http://statistics.data.gov.uk/id/local-authority/38,Oxfordshire County Council,SEN TRANSPORT,5227,Other Transport Arrangements,05/02/2020,3110690242,500.00,Oxfordlinks
http://statistics.data.gov.uk/id/local-authority/38,Oxfordshire County Council,Care Packages & Placements- LD - OCC,5227,Other Transport Arrangements,12/02/2020,3110692273,500.00,Oxon Transport Services Ltd
http://statistics.data.gov.uk/id/local-authority/38,Oxfordshire County Council,SEN TRANSPORT,5227,Other Transport Arrangements,20/02/2020,3110700550,500.00,Oxon Transport Services Ltd
http://statistics.data.gov.uk/id/local-authority/38,Oxfordshire County Council,SEN TRANSPORT,5227,Other Transport Arrangements,20/02/2020,3110700610,500.00,Oxon Transport Services Ltd
http://statistics.data.gov.uk/id/local-authority/38,Oxfordshire County Council,L&D CORE PROGRAMME,3103,Other Training Courses and Qualification,25/02/2020,2200739090,500.00,People Asset Management
http://statistics.data.gov.uk/id/local-authority/38,Oxfordshire County Council,SEN TRANSPORT,5227,Other Transport Arrangements,13/02/2020,3110697150,500.00,Phoenixx Cars Ltd
http://statistics.data.gov.uk/id/local-authority/38,Oxfordshire County Council,CENTRAL LIBRARY,3103,Other Training Courses and Qualification,11/02/2020,2200734481,500.00,Premier Partnership
http://statistics.data.gov.uk/id/local-authority/38,Oxfordshire County Council,Support at Home 65+ Physical Support,5899,Social Care - Direct Payments,18/02/2020,3110698804,500.00,Purple Conversation Com In Co (DP)
http://statistics.data.gov.uk/id/local-authority/38,Oxfordshire County Council,MAINSTREAM-SECONDARY,4322,"Season Tickets - Bus, Rail & Ferry",13/02/2020,3110697170,500.00,Stagecoach Services Ltd
http://statistics.data.gov.uk/id/local-authority/38,Oxfordshire County Council,LAC PUPIL PREMIUM,5537,Payments to Other Establishments,18/02/2020,3110697586,500.00,The Bicester School
http://statistics.data.gov.uk/id/local-authority/38,Oxfordshire County Council,Councillors Priorities Fund,4940,Other Services,11/02/2020,3110690858,500.00,The Letcombe Brook Project
http://statistics.data.gov.uk/id/local-authority/38,Oxfordshire County Council,SEN TRANSPORT,4330,Transport to School Activities,24/02/2020,3110700760,500.00,The Oxfordshire Taxi Company Ltd T/
http://statistics.data.gov.uk/id/local-authority/38,Oxfordshire County Council,Councillors Priorities Fund,4940,Other Services,18/02/2020,3110697654,500.00,Volunteer Link-Up (West Oxon)
http://statistics.data.gov.uk/id/local-authority/38,Oxfordshire County Council,Community Support Service Bicester,4232,Vehicle Fuel,05/02/2020,2200732391,500.26,Allstar Business Solutions Ltd
http://statistics.data.gov.uk/id/local-authority/38,Oxfordshire County Council,Support at Home 65+ Physical Support,5689,,04/02/2020,3110689031,501.01,PLL Care Services
http://statistics.data.gov.uk/id/local-authority/38,Oxfordshire County Council,Support at Home 65+ Learning Disability,5899,Social Care - Direct Payments,18/02/2020,3110698830,502.28,Purple Conversation Com In Co (DP)
http://statistics.data.gov.uk/id/local-authority/38,Oxfordshire County Council,TRADING STANDARDS,4861,Hired and Contracted Services,06/02/2020,2200732771,502.30,Jackson Bates Ltd
http://statistics.data.gov.uk/id/local-authority/38,Oxfordshire County Council,Support at Home U65 Physical Support,5899,Social Care - Direct Payments,18/02/2020,3110698389,502.32,Redacted Personal Data
http://statistics.data.gov.uk/id/local-authority/38,Oxfordshire County Council,PROCUREMENT,4232,Vehicle Fuel,05/02/2020,2200732446,502.45,Certas Energy UK Ltd
http://statistics.data.gov.uk/id/local-authority/38,Oxfordshire County Council,LIBRARY COLLECTIONS,4539,"Books, DVDs and CDs",27/02/2020,3110703470,503.01,ASKEWS & HOLTS LIBRARY SERVICES LTD
http://statistics.data.gov.uk/id/local-authority/38,Oxfordshire County Council,Support at Home 65+ Physical Support,5689,,04/02/2020,3110688679,503.10,Greigcare Home Service
http://statistics.data.gov.uk/id/local-authority/38,Oxfordshire County Council,Support at Home U65 Sensory Support,5899,Social Care - Direct Payments,18/02/2020,3110697711,504.00,Redacted Personal Data
http://statistics.data.gov.uk/id/local-authority/38,Oxfordshire County Council,Support at Home U65 MH OBC Contract,5899,Social Care - Direct Payments,18/02/2020,3110698371,504.00,Purple Conversation Com In Co (DP)
http://statistics.data.gov.uk/id/local-authority/38,Oxfordshire County Council,Support at Home U65 Learning Disability,5899,Social Care - Direct Payments,18/02/2020,3110698806,504.00,Purple Conversation Com In Co (DP)
http://statistics.data.gov.uk/id/local-authority/38,Oxfordshire County Council,Support at Home U65 Learning Disability,5899,Social Care - Direct Payments,18/02/2020,3110699011,504.00,Purple Conversation Com In Co (DP)
http://statistics.data.gov.uk/id/local-authority/38,Oxfordshire County Council,Support at Home 65+ Physical Support,5899,Social Care - Direct Payments,18/02/2020,3110699095,504.00,Purple Conversation Com In Co (DP)
http://statistics.data.gov.uk/id/local-authority/38,Oxfordshire County Council,South FSS Statutory - Abingdon,5227,Other Transport Arrangements,11/02/2020,3110691295,504.00,The Oxford Minibus Company Ltd
http://statistics.data.gov.uk/id/local-authority/38,Oxfordshire County Council,Delegated Health Tasks  - Over 65,5689,,04/02/2020,3110688366,504.13,Caremark (West Oxfordshire & Cherwe
http://statistics.data.gov.uk/id/local-authority/38,Oxfordshire County Council,Support at Home U65 Learning Disability,5696,,11/02/2020,3110691004,504.33,Orders of St John Care Trust
http://statistics.data.gov.uk/id/local-authority/38,Oxfordshire County Council,Support at Home U65 Learning Disability,5696,,26/02/2020,3110702173,504.33,Orders of St John Care Trust
http://statistics.data.gov.uk/id/local-authority/38,Oxfordshire County Council,SM DISABILITIES,5554,Childrens' Social Care - Direct Payments,25/02/2020,3110701207,504.55,Redacted Personal Data
http://statistics.data.gov.uk/id/local-authority/38,Oxfordshire County Council,SM DISABILITIES,5554,Childrens' Social Care - Direct Payments,25/02/2020,3110701210,504.55,Redacted Personal Data
http://statistics.data.gov.uk/id/local-authority/38,Oxfordshire County Council,SM DISABILITIES,5554,Childrens' Social Care - Direct Payments,25/02/2020,3110701155,504.55,Purple Conversation Com In Co (DP)
http://statistics.data.gov.uk/id/local-authority/38,Oxfordshire County Council,Support at Home U65 Learning Disability,5690,,12/02/2020,3110692591,504.60,Life Path Trust Ltd
http://statistics.data.gov.uk/id/local-authority/38,Oxfordshire County Council,Support at Home U65 Learning Disability,5690,,12/02/2020,3110692590,504.77,Life Path Trust Ltd
http://statistics.data.gov.uk/id/local-authority/38,Oxfordshire County Council,Support at Home 65+ Physical Support,5689,,04/02/2020,3110688668,504.87,Greigcare Home Service
http://statistics.data.gov.uk/id/local-authority/38,Oxfordshire County Council,UASC 16&17,5604,,26/02/2020,3110702481,504.88,Sanctuary Supported Living
http://statistics.data.gov.uk/id/local-authority/38,Oxfordshire County Council,LIBRARY COLLECTIONS,4539,"Books, DVDs and CDs",21/02/2020,3110700879,505.29,ASKEWS & HOLTS LIBRARY SERVICES LTD
http://statistics.data.gov.uk/id/local-authority/38,Oxfordshire County Council,Support at Home 65+ Physical Support,5689,,04/02/2020,3110688689,505.94,Harino Care
http://statistics.data.gov.uk/id/local-authority/38,Oxfordshire County Council,Support at Home U65 Physical Support,5698,,26/02/2020,3110703139,506.19,Oxford Private Care
http://statistics.data.gov.uk/id/local-authority/38,Oxfordshire County Council,Support at Home U65 Mental Health,5696,,11/02/2020,3110691108,507.34,Orders of St John Care Trust
http://statistics.data.gov.uk/id/local-authority/38,Oxfordshire County Council,Support at Home U65 Learning Disability,5690,,12/02/2020,3110692651,507.50,Turnstyle
http://statistics.data.gov.uk/id/local-authority/38,Oxfordshire County Council,Support at Home 65+ Physical Support,5689,,04/02/2020,3110688308,507.65,Amber Healthcare Personnel Ltd
http://statistics.data.gov.uk/id/local-authority/38,Oxfordshire County Council,Support at Home 65+ Physical Support,5899,Social Care - Direct Payments,18/02/2020,3110698606,508.00,Purple Conversation Com In Co (DP)
http://statistics.data.gov.uk/id/local-authority/38,Oxfordshire County Council,Support at Home U65 Physical Support,5696,,26/02/2020,3110702216,508.18,Orders of St John Care Trust
http://statistics.data.gov.uk/id/local-authority/38,Oxfordshire County Council,Support at Home U65 MH OBC Contract,5899,Social Care - Direct Payments,18/02/2020,3110698213,508.36,Redacted Personal Data
http://statistics.data.gov.uk/id/local-authority/38,Oxfordshire County Council,,1448,Blackfield Inc & Exp A/c,04/02/2020,3110688115,508.63,OCC One Time Vendor
http://statistics.data.gov.uk/id/local-authority/38,Oxfordshire County Council,LEAVING CARE SOUTH,4540,"Educational Supplies, Stationery & Mater",13/02/2020,3500068091,508.99,Redacted Personal Data
http://statistics.data.gov.uk/id/local-authority/38,Oxfordshire County Council,FOSTERING MAIN,5541,B*Foster Parents,04/02/2020,3110689386,509.47,Redacted Personal Data
http://statistics.data.gov.uk/id/local-authority/38,Oxfordshire County Council,FOSTERING MAIN,5541,B*Foster Parents,04/02/2020,3110689447,509.47,Redacted Personal Data
http://statistics.data.gov.uk/id/local-authority/38,Oxfordshire County Council,FOSTERING MAIN,5541,B*Foster Parents,12/02/2020,3110692160,509.47,Redacted Personal Data
http://statistics.data.gov.uk/id/local-authority/38,Oxfordshire County Council,Wokingham Adoption Support Fund,4859,Medical and Counselling Fees,07/02/2020,2200733498,510.00,C J OATES
http://statistics.data.gov.uk/id/local-authority/38,Oxfordshire County Council,POST 16 SEN,4330,Transport to School Activities,05/02/2020,3110690060,510.00,Go Green Taxis
http://statistics.data.gov.uk/id/local-authority/38,Oxfordshire County Council,SEN TRANSPORT,5227,Other Transport Arrangements,20/02/2020,3110700633,510.00,Oxon Transport Services Ltd
http://statistics.data.gov.uk/id/local-authority/38,Oxfordshire County Council,Support at Home 65+ Physical Support,5899,Social Care - Direct Payments,18/02/2020,3110698324,510.40,Redacted Personal Data
http://statistics.data.gov.uk/id/local-authority/38,Oxfordshire County Council,Support at Home U65 Learning Disability,5899,Social Care - Direct Payments,18/02/2020,3110698266,510.40,Redacted Personal Data
http://statistics.data.gov.uk/id/local-authority/38,Oxfordshire County Council,Support at Home U65 Physical Support,5899,Social Care - Direct Payments,18/02/2020,3110698833,510.40,Purple Conversation Com In Co (DP)
http://statistics.data.gov.uk/id/local-authority/38,Oxfordshire County Council,SHARED LIVES,5555,Payments to Carers,12/02/2020,3110693340,510.95,Redacted Personal Data
http://statistics.data.gov.uk/id/local-authority/38,Oxfordshire County Council,OSCB,4835,Management Consultant Fees,04/02/2020,2200731694,511.00,Sarah Holtom-Fawcett
http://statistics.data.gov.uk/id/local-authority/38,Oxfordshire County Council,Support at Home 65+ Physical Support,5693,,26/02/2020,3110702365,511.06,Eaton Care Services
http://statistics.data.gov.uk/id/local-authority/38,Oxfordshire County Council,Support at Home 65+ Other /Soc Isolation,5693,,19/02/2020,3110699922,512.00,Redacted Personal Data
http://statistics.data.gov.uk/id/local-authority/38,Oxfordshire County Council,BULLINGDON PRISON,4525,Furniture,25/02/2020,2200739333,512.00,OFFICE FURNITURE ONLINE
http://statistics.data.gov.uk/id/local-authority/38,Oxfordshire County Council,Support at Home U65 Learning Disability,5899,Social Care - Direct Payments,18/02/2020,3110698166,512.00,Purple Conversation Com In Co (DP)
http://statistics.data.gov.uk/id/local-authority/38,Oxfordshire County Council,Support at Home 65+ Physical Support,5899,Social Care - Direct Payments,18/02/2020,3110698501,512.00,Purple Conversation Com In Co (DP)
http://statistics.data.gov.uk/id/local-authority/38,Oxfordshire County Council,Support at Home U65 Learning Disability,5899,Social Care - Direct Payments,18/02/2020,3110698707,512.00,Purple Conversation Com In Co (DP)
http://statistics.data.gov.uk/id/local-authority/38,Oxfordshire County Council,Support at Home U65 Learning Disability,5899,Social Care - Direct Payments,18/02/2020,3110699032,512.00,Purple Conversation Com In Co (DP)
http://statistics.data.gov.uk/id/local-authority/38,Oxfordshire County Council,Support at Home 65+ Learning Disability,5698,,26/02/2020,3110702971,512.26,Day & Night Care Assistance
http://statistics.data.gov.uk/id/local-authority/38,Oxfordshire County Council,Support at Home U65 Learning Disability,5689,,04/02/2020,3110689059,512.30,Premier Personal Care
http://statistics.data.gov.uk/id/local-authority/38,Oxfordshire County Council,ECH Central Costs,5688,,12/02/2020,3110692771,512.80,Orders of St John Care Trust
http://statistics.data.gov.uk/id/local-authority/38,Oxfordshire County Council,MAINSTREAM-SECONDARY,4330,Transport to School Activities,20/02/2020,3110700430,513.00,001 Alpha Cars Ltd
http://statistics.data.gov.uk/id/local-authority/38,Oxfordshire County Council,MAINSTREAM-PRIMARY,4330,Transport to School Activities,20/02/2020,3110700431,513.00,001 Alpha Cars Ltd
http://statistics.data.gov.uk/id/local-authority/38,Oxfordshire County Council,STI TESTING+TREATMEN,4940,Other Services,03/02/2020,3110688144,513.00,Guys and St Thomas NHS Foundation
http://statistics.data.gov.uk/id/local-authority/38,Oxfordshire County Council,Contingency Home Care,5689,,04/02/2020,3110688878,513.36,Oxford University Hospitals NHS FT
http://statistics.data.gov.uk/id/local-authority/38,Oxfordshire County Council,Support at Home 65+ Learning Disability,5690,,12/02/2020,3110692716,513.71,Style Acre
http://statistics.data.gov.uk/id/local-authority/38,Oxfordshire County Council,Delegated Health Tasks  - Over 65,5691,,10/02/2020,3110690675,514.00,The Caring Company (Oxon)
http://statistics.data.gov.uk/id/local-authority/38,Oxfordshire County Council,,1441,Uncleared Misc Income Receipts,05/02/2020,3110690232,514.29,CENTRAL ENGLAND HEALTHCARE LIMITED
http://statistics.data.gov.uk/id/local-authority/38,Oxfordshire County Council,ContrO ASC Payments Control Account,7190,Other Recovered Costs,12/02/2020,3110695114,514.29,CENTRAL ENGLAND HEALTHCARE LIMITED
http://statistics.data.gov.uk/id/local-authority/38,Oxfordshire County Council,Support at Home 65+ Physical Support,5696,,05/02/2020,3110690203,514.36,One Housing Group Limited
http://statistics.data.gov.uk/id/local-authority/38,Oxfordshire County Council,Support at Home 65+ Physical Support,5696,,05/02/2020,3110690212,514.36,One Housing Group Limited
http://statistics.data.gov.uk/id/local-authority/38,Oxfordshire County Council,Support at Home 65+ Physical Support,5696,,11/02/2020,3110691118,514.42,Orders of St John Care Trust
http://statistics.data.gov.uk/id/local-authority/38,Oxfordshire County Council,Support at Home 65+ Physical Support,5698,,26/02/2020,3110702711,514.49,Bridges Home Care Ltd
http://statistics.data.gov.uk/id/local-authority/38,Oxfordshire County Council,Support at Home U65 Physical Support,5899,Social Care - Direct Payments,18/02/2020,3110698810,515.20,Purple Conversation Com In Co (DP)
http://statistics.data.gov.uk/id/local-authority/38,Oxfordshire County Council,Support at Home U65 Sensory Support,5899,Social Care - Direct Payments,18/02/2020,3110697704,515.52,Redacted Personal Data
http://statistics.data.gov.uk/id/local-authority/38,Oxfordshire County Council,VOIDS/VACANCY COSTS,3945,Rent,12/02/2020,3110695283,515.91,Cherwell District Council
http://statistics.data.gov.uk/id/local-authority/38,Oxfordshire County Council,VOIDS/VACANCY COSTS,3945,Rent,12/02/2020,3110695284,515.91,Cherwell District Council
http://statistics.data.gov.uk/id/local-authority/38,Oxfordshire County Council,VOIDS/VACANCY COSTS,3945,Rent,12/02/2020,3110695286,515.91,Cherwell District Council
http://statistics.data.gov.uk/id/local-authority/38,Oxfordshire County Council,VOIDS/VACANCY COSTS,3945,Rent,12/02/2020,3110695288,515.91,Cherwell District Council
http://statistics.data.gov.uk/id/local-authority/38,Oxfordshire County Council,Support at Home 65+ Physical Support,5689,,04/02/2020,3110688578,516.57,Genuine Carers Ltd
http://statistics.data.gov.uk/id/local-authority/38,Oxfordshire County Council,FOSTERING MAIN,5549,B*Fostering Allowance - Regulation 38,18/02/2020,3110699792,517.00,Redacted Personal Data
http://statistics.data.gov.uk/id/local-authority/38,Oxfordshire County Council,FOSTERING MAIN,5549,B*Fostering Allowance - Regulation 38,26/02/2020,3110702033,517.00,Redacted Personal Data
http://statistics.data.gov.uk/id/local-authority/38,Oxfordshire County Council,Support at Home U65 Learning Disability,5690,,12/02/2020,3110692700,517.65,Style Acre
http://statistics.data.gov.uk/id/local-authority/38,Oxfordshire County Council,Support at Home 65+ Physical Support,5689,,04/02/2020,3110688693,517.82,Harino Care
http://statistics.data.gov.uk/id/local-authority/38,Oxfordshire County Council,FOSTERING MAIN,5541,B*Foster Parents,26/02/2020,3110702097,518.00,Redacted Personal Data
http://statistics.data.gov.uk/id/local-authority/38,Oxfordshire County Council,Support at Home 65+ Physical Support,5899,Social Care - Direct Payments,18/02/2020,3110698843,518.40,Purple Conversation Com In Co (DP)
http://statistics.data.gov.uk/id/local-authority/38,Oxfordshire County Council,,1429,Charitable Donations,11/02/2020,3110690835,518.59,GIVE AS YOU EARN
http://statistics.data.gov.uk/id/local-authority/38,Oxfordshire County Council,Support at Home 65+ Physical Support,5689,,04/02/2020,3110688685,518.97,Harino Care
http://statistics.data.gov.uk/id/local-authority/38,Oxfordshire County Council,Support at Home U65 Physical Support,5693,,26/02/2020,3110702370,519.14,Helping Hands
http://statistics.data.gov.uk/id/local-authority/38,Oxfordshire County Council,Support at Home U65 Physical Support,5698,,26/02/2020,3110702974,519.71,Day & Night Care Assistance
http://statistics.data.gov.uk/id/local-authority/38,Oxfordshire County Council,SEN TRANSPORT,4330,Transport to School Activities,05/02/2020,3110690118,520.00,Cherwell Cars
http://statistics.data.gov.uk/id/local-authority/38,Oxfordshire County Council,Support at Home U65 Learning Disability,5899,Social Care - Direct Payments,18/02/2020,3110697976,520.00,Redacted Personal Data
http://statistics.data.gov.uk/id/local-authority/38,Oxfordshire County Council,Support at Home U65 Learning Disability,5227,Other Transport Arrangements,12/02/2020,3110692339,520.00,Oxon Transport Services Ltd
http://statistics.data.gov.uk/id/local-authority/38,Oxfordshire County Council,Support at Home U65 Physical Support,5899,Social Care - Direct Payments,18/02/2020,3110697997,520.00,Purple Conversation Com In Co (DP)
http://statistics.data.gov.uk/id/local-authority/38,Oxfordshire County Council,Support at Home U65 Physical Support,5899,Social Care - Direct Payments,18/02/2020,3110698340,520.00,Purple Conversation Com In Co (DP)
http://statistics.data.gov.uk/id/local-authority/38,Oxfordshire County Council,Support at Home U65 Physical Support,5899,Social Care - Direct Payments,18/02/2020,3110698717,520.00,Purple Conversation Com In Co (DP)
http://statistics.data.gov.uk/id/local-authority/38,Oxfordshire County Council,Support at Home U65 Physical Support,5899,Social Care - Direct Payments,18/02/2020,3110698748,520.00,Purple Conversation Com In Co (DP)
http://statistics.data.gov.uk/id/local-authority/38,Oxfordshire County Council,DISABILITIES TEAM-C,5227,Other Transport Arrangements,25/02/2020,3110701358,520.00,The Oxfordshire Taxi Company Ltd T/
http://statistics.data.gov.uk/id/local-authority/38,Oxfordshire County Council,FLEET COSTS,4270,HTM / Other Vehicle - Hire Charges,04/02/2020,2200731823,520.00,West Wallasey Fleet Hire Services
http://statistics.data.gov.uk/id/local-authority/38,Oxfordshire County Council,Support at Home 65+ Learning Disability,5696,,12/02/2020,3110692416,520.20,Housing&care21
http://statistics.data.gov.uk/id/local-authority/38,Oxfordshire County Council,Support at Home U65 Other /Soc Isolation,5899,Social Care - Direct Payments,18/02/2020,3110699006,520.80,Purple Conversation Com In Co (DP)
http://statistics.data.gov.uk/id/local-authority/38,Oxfordshire County Council,SEN TRANSPORT,4320,Pupil / Client Travel Reimbursement,17/02/2020,3110697529,520.96,Redacted Personal Data
http://statistics.data.gov.uk/id/local-authority/38,Oxfordshire County Council,SEN TRANSPORT,4320,Pupil / Client Travel Reimbursement,20/02/2020,3110700498,520.96,Redacted Personal Data
http://statistics.data.gov.uk/id/local-authority/38,Oxfordshire County Council,Support at Home U65 Physical Support,5899,Social Care - Direct Payments,18/02/2020,3110698942,521.20,Purple Conversation Com In Co (DP)
http://statistics.data.gov.uk/id/local-authority/38,Oxfordshire County Council,MAINSTREAM-PRIMARY,4330,Transport to School Activities,11/02/2020,3110691303,521.25,The Oxford Minibus Company Ltd
http://statistics.data.gov.uk/id/local-authority/38,Oxfordshire County Council,MAINSTREAM-SECONDARY,4330,Transport to School Activities,11/02/2020,3110691304,521.25,The Oxford Minibus Company Ltd
http://statistics.data.gov.uk/id/local-authority/38,Oxfordshire County Council,MAINSTREAM-PRIMARY,4330,Transport to School Activities,20/02/2020,3110700350,521.25,The Oxford Minibus Company Ltd
http://statistics.data.gov.uk/id/local-authority/38,Oxfordshire County Council,MAINSTREAM-SECONDARY,4330,Transport to School Activities,20/02/2020,3110700351,521.25,The Oxford Minibus Company Ltd
http://statistics.data.gov.uk/id/local-authority/38,Oxfordshire County Council,Support at Home U65 Learning Disability,5696,,11/02/2020,3110691072,521.96,Orders of St John Care Trust
http://statistics.data.gov.uk/id/local-authority/38,Oxfordshire County Council,Support at Home U65 Learning Disability,5690,,12/02/2020,3110692656,522.00,Turnstyle
http://statistics.data.gov.uk/id/local-authority/38,Oxfordshire County Council,Support at Home 65+ Physical Support,5693,,05/02/2020,3110690148,522.17,Bicester PA and Care LLP
http://statistics.data.gov.uk/id/local-authority/38,Oxfordshire County Council,Support at Home 65+ Mental Health,5689,,04/02/2020,3110689064,522.19,Premier Personal Care
http://statistics.data.gov.uk/id/local-authority/38,Oxfordshire County Council,LOOKED AFTER CITY 1,5365,Non-Staff Subsistence and Expenses,27/02/2020,9300045717,522.20,OCC SS Oxford City Div 1 Cash
http://statistics.data.gov.uk/id/local-authority/38,Oxfordshire County Council,Support at Home U65 Learning Disability,5682,,12/02/2020,3110691793,522.70,The Brandon Trust
http://statistics.data.gov.uk/id/local-authority/38,Oxfordshire County Council,Planned preventative Maintenance,3787,Premises Repairs,06/02/2020,2200733083,523.00,Enterprise Rent A Car UK Ltd
http://statistics.data.gov.uk/id/local-authority/38,Oxfordshire County Council,Support at Home 65+ Physical Support,5698,,26/02/2020,3110703038,523.02,KCARE NURSING AGENCY
http://statistics.data.gov.uk/id/local-authority/38,Oxfordshire County Council,Support at Home 65+ Physical Support,5696,,26/02/2020,3110702185,523.60,Orders of St John Care Trust
http://statistics.data.gov.uk/id/local-authority/38,Oxfordshire County Council,AGENCY RESID - DISAB,5545,B*Fostering Enhancements - Level 2,04/02/2020,3110689458,523.77,Redacted Personal Data
http://statistics.data.gov.uk/id/local-authority/38,Oxfordshire County Council,SM DISABILITIES,5554,Childrens' Social Care - Direct Payments,25/02/2020,3110701269,523.90,Redacted Personal Data
http://statistics.data.gov.uk/id/local-authority/38,Oxfordshire County Council,Support at Home U65 Learning Disability,5899,Social Care - Direct Payments,18/02/2020,3110698547,524.00,Redacted Personal Data
http://statistics.data.gov.uk/id/local-authority/38,Oxfordshire County Council,SM DISABILITIES,5554,Childrens' Social Care - Direct Payments,25/02/2020,3110701118,524.00,Purple Conversation Com In Co (DP)
http://statistics.data.gov.uk/id/local-authority/38,Oxfordshire County Council,AGENCY RESID - DISAB,5549,B*Fostering Allowance - Regulation 38,18/02/2020,3110699856,524.00,Redacted Personal Data
http://statistics.data.gov.uk/id/local-authority/38,Oxfordshire County Council,Supervised Consumption APL,4934,,01/02/2020,3110690563,524.16,Lloyds Pharmacy
http://statistics.data.gov.uk/id/local-authority/38,Oxfordshire County Council,Supervised Consumption APL,4934,,01/02/2020,3110690580,524.16,Sutton Chase Ltd
http://statistics.data.gov.uk/id/local-authority/38,Oxfordshire County Council,AIM HIGHER FUNDING,5195,Grant Aid and Donations,27/02/2020,3110703271,524.48,OCC One Time Vendor
http://statistics.data.gov.uk/id/local-authority/38,Oxfordshire County Council,FOSTERING MAIN,5549,B*Fostering Allowance - Regulation 38,18/02/2020,3110699769,524.90,Redacted Personal Data
http://statistics.data.gov.uk/id/local-authority/38,Oxfordshire County Council,Planned preventative Maintenance,3787,Premises Repairs,05/02/2020,2200732377,525.00,AWP Body Repairs
http://statistics.data.gov.uk/id/local-authority/38,Oxfordshire County Council,SEN TRANSPORT,5227,Other Transport Arrangements,26/02/2020,3110702548,525.00,Crown Cabs Travel Ltd
http://statistics.data.gov.uk/id/local-authority/38,Oxfordshire County Council,SEN TRANSPORT,5227,Other Transport Arrangements,20/02/2020,3110700438,525.00,Oxon Transport Services Ltd
http://statistics.data.gov.uk/id/local-authority/38,Oxfordshire County Council,Councillors Priorities Fund,4940,Other Services,11/02/2020,3110690849,525.00,Relate
http://statistics.data.gov.uk/id/local-authority/38,Oxfordshire County Council,,1441,Uncleared Misc Income Receipts,14/02/2020,3110697330,525.00,Relate
http://statistics.data.gov.uk/id/local-authority/38,Oxfordshire County Council,CONTRACEPTION,4933,,25/02/2020,3110703422,525.00,Sibford Gower Surgery
http://statistics.data.gov.uk/id/local-authority/38,Oxfordshire County Council,Planned preventative Maintenance,3787,Premises Repairs,19/02/2020,2200737956,525.00,Windrush Door & Window Services Ltd
http://statistics.data.gov.uk/id/local-authority/38,Oxfordshire County Council,Planned preventative Maintenance,3787,Premises Repairs,19/02/2020,2200737958,525.00,Windrush Door & Window Services Ltd
http://statistics.data.gov.uk/id/local-authority/38,Oxfordshire County Council,Support at Home 65+ Physical Support,5689,,04/02/2020,3110689011,525.01,PLL Care Services
http://statistics.data.gov.uk/id/local-authority/38,Oxfordshire County Council,Support at Home 65+ Physical Support,5689,,04/02/2020,3110689022,525.01,PLL Care Services
http://statistics.data.gov.uk/id/local-authority/38,Oxfordshire County Council,LIBRARY COLLECTIONS,4539,"Books, DVDs and CDs",27/02/2020,3110703469,525.12,ASKEWS & HOLTS LIBRARY SERVICES LTD
http://statistics.data.gov.uk/id/local-authority/38,Oxfordshire County Council,AGENCY RESID - DISAB,5545,B*Fostering Enhancements - Level 2,12/02/2020,3110692170,525.15,Redacted Personal Data
http://statistics.data.gov.uk/id/local-authority/38,Oxfordshire County Council,Community Support Service - Witney,4232,Vehicle Fuel,14/02/2020,2200736507,525.91,Allstar Business Solutions Ltd
http://statistics.data.gov.uk/id/local-authority/38,Oxfordshire County Council,COUNTY PRINT FINSHRS,4531,Materials,26/02/2020,2200740006,526.00,MP Printers (Thame) Ltd
http://statistics.data.gov.uk/id/local-authority/38,Oxfordshire County Council,Contingency Home Care,5689,,04/02/2020,3110688862,526.03,Oxford University Hospitals NHS FT
http://statistics.data.gov.uk/id/local-authority/38,Oxfordshire County Council,CHC Fast Track - Sup at Homes - Over 65,5691,,03/02/2020,3110687955,526.08,Olive Tree Services
http://statistics.data.gov.uk/id/local-authority/38,Oxfordshire County Council,Support at Home 65+ Physical Support,5693,,26/02/2020,3110702344,526.34,1st Homecare (Oxford) Ltd
http://statistics.data.gov.uk/id/local-authority/38,Oxfordshire County Council,PREMISES,4111,Security Costs,27/02/2020,2200740214,526.40,Darren Bryan Security Services
http://statistics.data.gov.uk/id/local-authority/38,Oxfordshire County Council,Delegated Health Tasks  - Over 65,5691,,25/02/2020,3110701110,526.50,The Caring Company (Oxon)
http://statistics.data.gov.uk/id/local-authority/38,Oxfordshire County Council,NHS HEALTHCHECK PROG,4933,,03/02/2020,3110688169,527.00,Elm Tree Surgery
http://statistics.data.gov.uk/id/local-authority/38,Oxfordshire County Council,Delegated Health Tasks  - Over 65,5698,,26/02/2020,3110702749,527.09,Charterville Care At Home Ltd
http://statistics.data.gov.uk/id/local-authority/38,Oxfordshire County Council,LIBRARY COLLECTIONS,4539,"Books, DVDs and CDs",27/02/2020,3110703447,527.46,ASKEWS & HOLTS LIBRARY SERVICES LTD
http://statistics.data.gov.uk/id/local-authority/38,Oxfordshire County Council,,1325,Attachment of Earnings,07/02/2020,3110690431,527.46,Vale of White Horse District Counci
http://statistics.data.gov.uk/id/local-authority/38,Oxfordshire County Council,FOSTERING MAIN,5545,B*Fostering Enhancements - Level 2,26/02/2020,3110701917,528.00,Redacted Personal Data
http://statistics.data.gov.uk/id/local-authority/38,Oxfordshire County Council,Support at Home 65+ Physical Support,5899,Social Care - Direct Payments,18/02/2020,3110699057,528.00,Purple Conversation Com In Co (DP)
http://statistics.data.gov.uk/id/local-authority/38,Oxfordshire County Council,Contingency Home Care,5689,,04/02/2020,3110688936,528.03,Oxford University Hospitals NHS FT
http://statistics.data.gov.uk/id/local-authority/38,Oxfordshire County Council,SEN TRANSPORT,5227,Other Transport Arrangements,11/02/2020,3110691369,528.20,Crown Cabs Travel Ltd
http://statistics.data.gov.uk/id/local-authority/38,Oxfordshire County Council,FOSTERING MAIN,5541,B*Foster Parents,04/02/2020,3110689422,528.43,Redacted Personal Data
http://statistics.data.gov.uk/id/local-authority/38,Oxfordshire County Council,FOSTERING MAIN,5541,B*Foster Parents,04/02/2020,3110689329,528.43,Redacted Personal Data
http://statistics.data.gov.uk/id/local-authority/38,Oxfordshire County Council,FOSTERING MAIN,5541,B*Foster Parents,04/02/2020,3110689347,528.43,Redacted Personal Data
http://statistics.data.gov.uk/id/local-authority/38,Oxfordshire County Council,FOSTERING MAIN,5541,B*Foster Parents,04/02/2020,3110689403,528.43,Redacted Personal Data
http://statistics.data.gov.uk/id/local-authority/38,Oxfordshire County Council,SM DISABILITIES,5554,Childrens' Social Care - Direct Payments,25/02/2020,3110701212,528.55,Redacted Personal Data
http://statistics.data.gov.uk/id/local-authority/38,Oxfordshire County Council,SM DISABILITIES,5554,Childrens' Social Care - Direct Payments,25/02/2020,3110701273,528.55,Purple Conversation Com In Co (DP)
http://statistics.data.gov.uk/id/local-authority/38,Oxfordshire County Council,CONCESSIONARY FARES,5781,Payments to Transport Operators,27/02/2020,2200740588,528.79,Stagecoach Services Ltd
http://statistics.data.gov.uk/id/local-authority/38,Oxfordshire County Council,FOSTERING MAIN,5541,B*Foster Parents,18/02/2020,3110699827,529.00,Redacted Personal Data
http://statistics.data.gov.uk/id/local-authority/38,Oxfordshire County Council,FOSTERING MAIN,5541,B*Foster Parents,26/02/2020,3110702071,529.00,Redacted Personal Data
http://statistics.data.gov.uk/id/local-authority/38,Oxfordshire County Council,FOSTERING MAIN,5541,B*Foster Parents,18/02/2020,3110699732,529.00,Redacted Personal Data
http://statistics.data.gov.uk/id/local-authority/38,Oxfordshire County Council,FOSTERING MAIN,5541,B*Foster Parents,26/02/2020,3110701967,529.00,Redacted Personal Data
http://statistics.data.gov.uk/id/local-authority/38,Oxfordshire County Council,AGENCY RESID - DISAB,5541,B*Foster Parents,18/02/2020,3110699752,529.00,Redacted Personal Data
http://statistics.data.gov.uk/id/local-authority/38,Oxfordshire County Council,AGENCY RESID - DISAB,5541,B*Foster Parents,26/02/2020,3110701986,529.00,Redacted Personal Data
http://statistics.data.gov.uk/id/local-authority/38,Oxfordshire County Council,FOSTERING MAIN,5541,B*Foster Parents,18/02/2020,3110699808,529.00,Redacted Personal Data
http://statistics.data.gov.uk/id/local-authority/38,Oxfordshire County Council,FOSTERING MAIN,5541,B*Foster Parents,18/02/2020,3110699809,529.00,Redacted Personal Data
http://statistics.data.gov.uk/id/local-authority/38,Oxfordshire County Council,FOSTERING MAIN,5541,B*Foster Parents,26/02/2020,3110702051,529.00,Redacted Personal Data
http://statistics.data.gov.uk/id/local-authority/38,Oxfordshire County Council,FOSTERING MAIN,5541,B*Foster Parents,26/02/2020,3110702052,529.00,Redacted Personal Data
http://statistics.data.gov.uk/id/local-authority/38,Oxfordshire County Council,SM DISABILITIES,5554,Childrens' Social Care - Direct Payments,25/02/2020,3110701248,529.04,Redacted Personal Data
http://statistics.data.gov.uk/id/local-authority/38,Oxfordshire County Council,Support at Home 65+ Physical Support,5696,,11/02/2020,3110691029,529.48,Orders of St John Care Trust
http://statistics.data.gov.uk/id/local-authority/38,Oxfordshire County Council,Support at Home 65+ Physical Support,5696,,26/02/2020,3110702198,529.48,Orders of St John Care Trust
http://statistics.data.gov.uk/id/local-authority/38,Oxfordshire County Council,North FSS Statutory - Witney,5227,Other Transport Arrangements,25/02/2020,3110701303,530.00,The Oxfordshire Taxi Company Ltd T/
http://statistics.data.gov.uk/id/local-authority/38,Oxfordshire County Council,Support at Home U65 Physical Support,5693,,26/02/2020,3110702417,530.04,PROFESSIONAL CARE SERVICES BUCKS
http://statistics.data.gov.uk/id/local-authority/38,Oxfordshire County Council,Support at Home 65+ Physical Support,5689,,04/02/2020,3110688493,530.09,Oxfordshire Crossroads
http://statistics.data.gov.uk/id/local-authority/38,Oxfordshire County Council,Councillors Priorities Fund,4940,Other Services,06/02/2020,3110690270,530.23,Leafield Pre-School
http://statistics.data.gov.uk/id/local-authority/38,Oxfordshire County Council,Support at Home 65+ Physical Support,5693,,12/02/2020,3110692407,530.28,Heritage Healthcare Oxford - South
http://statistics.data.gov.uk/id/local-authority/38,Oxfordshire County Council,Support at Home U65 Physical Support,5899,Social Care - Direct Payments,18/02/2020,3110698652,530.48,Purple Conversation Com In Co (DP)
http://statistics.data.gov.uk/id/local-authority/38,Oxfordshire County Council,FLEET MAINTENANCE,4407,Equipment,11/02/2020,2200734579,530.58,Sutch Lifting Equipment
http://statistics.data.gov.uk/id/local-authority/38,Oxfordshire County Council,Contingency Home Care,5689,,04/02/2020,3110688837,530.69,OXFORD HEALTH NHS FOUNDATION TRUST
http://statistics.data.gov.uk/id/local-authority/38,Oxfordshire County Council,NURSERY ED FUND,5537,Payments to Other Establishments,05/02/2020,3110690326,530.86,Catherine's Childminding Services
http://statistics.data.gov.uk/id/local-authority/38,Oxfordshire County Council,Support at Home U65 Physical Support,5899,Social Care - Direct Payments,18/02/2020,3110698291,531.20,Purple Conversation Com In Co (DP)
http://statistics.data.gov.uk/id/local-authority/38,Oxfordshire County Council,Support at Home U65 Physical Support,5698,,26/02/2020,3110703111,531.27,Oxford Private Care
http://statistics.data.gov.uk/id/local-authority/38,Oxfordshire County Council,LIBRARY COLLECTIONS,4539,"Books, DVDs and CDs",03/02/2020,3110687903,531.49,ASKEWS & HOLTS LIBRARY SERVICES LTD
http://statistics.data.gov.uk/id/local-authority/38,Oxfordshire County Council,Support at Home U65 Learning Disability,5682,,12/02/2020,3110691668,531.60,The Brandon Trust
http://statistics.data.gov.uk/id/local-authority/38,Oxfordshire County Council,FOSTERING MAIN,5541,B*Foster Parents,12/02/2020,3110692138,531.85,Redacted Personal Data
http://statistics.data.gov.uk/id/local-authority/38,Oxfordshire County Council,FOSTERING MAIN,5541,B*Foster Parents,12/02/2020,3110691930,531.85,Redacted Personal Data
http://statistics.data.gov.uk/id/local-authority/38,Oxfordshire County Council,AGENCY RESID - DISAB,5541,B*Foster Parents,12/02/2020,3110691973,531.85,Redacted Personal Data
http://statistics.data.gov.uk/id/local-authority/38,Oxfordshire County Council,FOSTERING MAIN,5541,B*Foster Parents,12/02/2020,3110692118,531.85,Redacted Personal Data
http://statistics.data.gov.uk/id/local-authority/38,Oxfordshire County Council,Support at Home U65 Physical Support,5899,Social Care - Direct Payments,18/02/2020,3110698314,532.00,Redacted Personal Data
http://statistics.data.gov.uk/id/local-authority/38,Oxfordshire County Council,Support at Home 65+ Physical Support,5899,Social Care - Direct Payments,18/02/2020,3110697994,532.00,Redacted Personal Data
http://statistics.data.gov.uk/id/local-authority/38,Oxfordshire County Council,Support at Home 65+ Mental Health,5899,Social Care - Direct Payments,04/02/2020,3110689513,532.00,Purple Conversation Com In Co (DP)
http://statistics.data.gov.uk/id/local-authority/38,Oxfordshire County Council,Support at Home U65 Learning Disability,5899,Social Care - Direct Payments,18/02/2020,3110698285,532.00,Purple Conversation Com In Co (DP)
http://statistics.data.gov.uk/id/local-authority/38,Oxfordshire County Council,FOSTERING MAIN,5549,B*Fostering Allowance - Regulation 38,12/02/2020,3110691942,532.14,Redacted Personal Data
http://statistics.data.gov.uk/id/local-authority/38,Oxfordshire County Council,SHARED LIVES,5555,Payments to Carers,12/02/2020,3110693219,532.23,Redacted Personal Data
http://statistics.data.gov.uk/id/local-authority/38,Oxfordshire County Council,Support at Home U65 Learning Disability,5688,,12/02/2020,3110693878,532.73,Mencap Contracts
http://statistics.data.gov.uk/id/local-authority/38,Oxfordshire County Council,Support at Home U65 Learning Disability,5688,,12/02/2020,3110693976,532.73,Mencap Contracts
http://statistics.data.gov.uk/id/local-authority/38,Oxfordshire County Council,Support at Home U65 Learning Disability,5688,,12/02/2020,3110693979,532.73,Mencap Contracts
http://statistics.data.gov.uk/id/local-authority/38,Oxfordshire County Council,Support at Home 65+ Learning Disability,5690,,12/02/2020,3110692677,532.73,Style Acre
http://statistics.data.gov.uk/id/local-authority/38,Oxfordshire County Council,Support at Home 65+ Learning Disability,5688,,12/02/2020,3110694653,532.73,The Brandon Trust
http://statistics.data.gov.uk/id/local-authority/38,Oxfordshire County Council,Support at Home 65+ Learning Disability,5688,,12/02/2020,3110694701,532.73,The Brandon Trust
http://statistics.data.gov.uk/id/local-authority/38,Oxfordshire County Council,Support at Home 65+ Physical Support,5696,,26/02/2020,3110702286,532.79,Orders of St John Care Trust
http://statistics.data.gov.uk/id/local-authority/38,Oxfordshire County Council,LIBRARY COLLECTIONS,4539,"Books, DVDs and CDs",21/02/2020,2200738349,533.42,Books Asia Ltd
http://statistics.data.gov.uk/id/local-authority/38,Oxfordshire County Council,Support at Home 65+ Physical Support,5899,Social Care - Direct Payments,18/02/2020,3110699071,533.56,Purple Conversation Com In Co (DP)
http://statistics.data.gov.uk/id/local-authority/38,Oxfordshire County Council,COUNTY HALL,4665,Catering,04/02/2020,2200731865,535.20,The Oxford Wine Company Ltd
http://statistics.data.gov.uk/id/local-authority/38,Oxfordshire County Council,Contingency Home Care,5689,,04/02/2020,3110688967,535.36,Oxford University Hospitals NHS FT
http://statistics.data.gov.uk/id/local-authority/38,Oxfordshire County Council,Support at Home 65+ Physical Support,5899,Social Care - Direct Payments,11/02/2020,3110691179,535.50,Redacted Personal Data
http://statistics.data.gov.uk/id/local-authority/38,Oxfordshire County Council,LEAVING CARE SOUTH,5415,Residential Activities,03/02/2020,9300045175,535.50,OCC SS Vale of White Horse Bank
http://statistics.data.gov.uk/id/local-authority/38,Oxfordshire County Council,Support at Home U65 Physical Support,5899,Social Care - Direct Payments,18/02/2020,3110698878,535.96,Purple Conversation Com In Co (DP)
http://statistics.data.gov.uk/id/local-authority/38,Oxfordshire County Council,Support at Home U65 Learning Disability,5899,Social Care - Direct Payments,18/02/2020,3110697773,536.00,Redacted Personal Data
http://statistics.data.gov.uk/id/local-authority/38,Oxfordshire County Council,Support at Home U65 Physical Support,5899,Social Care - Direct Payments,18/02/2020,3110697734,536.00,Redacted Personal Data
http://statistics.data.gov.uk/id/local-authority/38,Oxfordshire County Council,Support at Home U65 Learning Disability,5899,Social Care - Direct Payments,18/02/2020,3110697884,536.00,Redacted Personal Data
http://statistics.data.gov.uk/id/local-authority/38,Oxfordshire County Council,Support at Home 65+ Physical Support,5689,,04/02/2020,3110688473,536.20,Oxfordshire Crossroads
http://statistics.data.gov.uk/id/local-authority/38,Oxfordshire County Council,Support at Home 65+ Physical Support,5698,,26/02/2020,3110703095,536.47,Oxford Private Care
http://statistics.data.gov.uk/id/local-authority/38,Oxfordshire County Council,Support at Home 65+ Learning Disability,5690,,12/02/2020,3110692712,536.91,Style Acre
http://statistics.data.gov.uk/id/local-authority/38,Oxfordshire County Council,Support at Home 65+ Physical Support,5693,,05/02/2020,3110690160,537.50,Elite Care Agency
http://statistics.data.gov.uk/id/local-authority/38,Oxfordshire County Council,Support at Home U65 Physical Support,5689,,04/02/2020,3110688604,537.72,Golden Services Care Ltd
http://statistics.data.gov.uk/id/local-authority/38,Oxfordshire County Council,Support at Home 65+ Physical Support,5689,,04/02/2020,3110688342,537.90,Caremark (West Oxfordshire & Cherwe
http://statistics.data.gov.uk/id/local-authority/38,Oxfordshire County Council,Support at Home U65 Learning Disability,5682,,12/02/2020,3110691771,538.21,The Brandon Trust
http://statistics.data.gov.uk/id/local-authority/38,Oxfordshire County Council,Support at Home 65+ Physical Support,5689,,04/02/2020,3110688670,538.38,Greigcare Home Service
http://statistics.data.gov.uk/id/local-authority/38,Oxfordshire County Council,PLACEMENTS- RELEVANT,5604,,03/02/2020,3110687924,538.54,Sanctuary Supported Living
http://statistics.data.gov.uk/id/local-authority/38,Oxfordshire County Council,Support at Home 65+ Physical Support,5689,,04/02/2020,3110688774,538.85,My Carer Ltd
http://statistics.data.gov.uk/id/local-authority/38,Oxfordshire County Council,Early Years SEN Funding,5537,Payments to Other Establishments,14/02/2020,3110697363,539.00,Highmoor Nursery School Ltd
http://statistics.data.gov.uk/id/local-authority/38,Oxfordshire County Council,Early Years SEN Funding,5537,Payments to Other Establishments,14/02/2020,3110697364,539.00,Highmoor Nursery School Ltd
http://statistics.data.gov.uk/id/local-authority/38,Oxfordshire County Council,SEN TRANSPORT,4330,Transport to School Activities,13/02/2020,3110697145,539.00,Phoenixx Cars Ltd
http://statistics.data.gov.uk/id/local-authority/38,Oxfordshire County Council,North FSS Early Help - Banbury,5227,Other Transport Arrangements,11/02/2020,3110691225,539.40,Charlies Taxis Ltd
http://statistics.data.gov.uk/id/local-authority/38,Oxfordshire County Council,FLEET OPERATIONS,4790,"Publicity, Promotions and Advertisement",05/02/2020,2200732483,539.60,Falcon Signs
http://statistics.data.gov.uk/id/local-authority/38,Oxfordshire County Council,UASC 16&17,5365,Non-Staff Subsistence and Expenses,26/02/2020,9300045665,539.80,OCC SS Oxford City Div 1 Cash
http://statistics.data.gov.uk/id/local-authority/38,Oxfordshire County Council,SEN TRANSPORT,5227,Other Transport Arrangements,26/02/2020,3110702463,540.00,C&M Management Services Ltd
http://statistics.data.gov.uk/id/local-authority/38,Oxfordshire County Council,Support at Home U65 Physical Support,5697,,12/02/2020,3110692404,540.00,Headway Oxford
http://statistics.data.gov.uk/id/local-authority/38,Oxfordshire County Council,Support at Home 65+ Physical Support,5899,Social Care - Direct Payments,18/02/2020,3110699123,540.00,Redacted Personal Data
http://statistics.data.gov.uk/id/local-authority/38,Oxfordshire County Council,Support at Home U65 Learning Disability,5697,,26/02/2020,3110702410,540.00,Pennyhooks Farm Trust
http://statistics.data.gov.uk/id/local-authority/38,Oxfordshire County Council,SEN TRANSPORT,4330,Transport to School Activities,20/02/2020,3110700315,540.00,Pryors Cars Ltd
http://statistics.data.gov.uk/id/local-authority/38,Oxfordshire County Council,Support at Home 65+ Mental Health,5899,Social Care - Direct Payments,18/02/2020,3110698200,540.00,Purple Conversation Com In Co (DP)
http://statistics.data.gov.uk/id/local-authority/38,Oxfordshire County Council,FOSTERING MAIN,5549,B*Fostering Allowance - Regulation 38,18/02/2020,3110699741,540.10,Redacted Personal Data
http://statistics.data.gov.uk/id/local-authority/38,Oxfordshire County Council,GP Services,4933,,06/02/2020,3110692485,540.80,27 Beaumont Street
http://statistics.data.gov.uk/id/local-authority/38,Oxfordshire County Council,GP Services,4933,,06/02/2020,3110692524,540.80,White Horse Practice
http://statistics.data.gov.uk/id/local-authority/38,Oxfordshire County Council,Planned preventative Maintenance,3787,Premises Repairs,12/02/2020,2200735327,541.00,Barker & Evans Ltd
http://statistics.data.gov.uk/id/local-authority/38,Oxfordshire County Council,Support at Home U65 MH OBC Contract,4111,Security Costs,18/02/2020,3110697604,541.00,Barnewood Limited
http://statistics.data.gov.uk/id/local-authority/38,Oxfordshire County Council,Support at Home 65+ Physical Support,5698,,26/02/2020,3110703181,541.12,Oxfordshire Crossroads
http://statistics.data.gov.uk/id/local-authority/38,Oxfordshire County Council,Support at Home 65+ Learning Disability,5698,,26/02/2020,3110703004,541.18,Day & Night Care Assistance
http://statistics.data.gov.uk/id/local-authority/38,Oxfordshire County Council,Contingency Home Care,5689,,04/02/2020,3110688962,541.36,Oxford University Hospitals NHS FT
http://statistics.data.gov.uk/id/local-authority/38,Oxfordshire County Council,SEN TRANSPORT,4320,Pupil / Client Travel Reimbursement,17/02/2020,3110697535,541.78,Redacted Personal Data
http://statistics.data.gov.uk/id/local-authority/38,Oxfordshire County Council,SEN TRANSPORT,4320,Pupil / Client Travel Reimbursement,20/02/2020,3110700515,541.78,Redacted Personal Data
http://statistics.data.gov.uk/id/local-authority/38,Oxfordshire County Council,Contingency Home Care,5689,,04/02/2020,3110688855,542.03,Oxford University Hospitals NHS FT
http://statistics.data.gov.uk/id/local-authority/38,Oxfordshire County Council,Support at Home 65+ Physical Support,5698,,26/02/2020,3110702972,542.05,Day & Night Care Assistance
http://statistics.data.gov.uk/id/local-authority/38,Oxfordshire County Council,Urgent Response,5689,,04/02/2020,3110688525,542.10,Day and Nightcare Assistance
http://statistics.data.gov.uk/id/local-authority/38,Oxfordshire County Council,COMPOSTING,5526,Payments to Private Contractors,25/02/2020,2200739251,542.50,Severn Trent Green Power (Ardley) L
http://statistics.data.gov.uk/id/local-authority/38,Oxfordshire County Council,MAINSTREAM-SECONDARY,4322,"Season Tickets - Bus, Rail & Ferry",13/02/2020,3110697250,542.75,Oxford Bus Company Ltd
http://statistics.data.gov.uk/id/local-authority/38,Oxfordshire County Council,SEN TRANSPORT,4320,Pupil / Client Travel Reimbursement,20/02/2020,3110700453,542.81,Redacted Personal Data
http://statistics.data.gov.uk/id/local-authority/38,Oxfordshire County Council,UASC 16&17,4685,Clothing and Uniforms,21/02/2020,9300045614,542.87,OCC SS Oxford City Div 1 Cash
http://statistics.data.gov.uk/id/local-authority/38,Oxfordshire County Council,ATV Adoption Woodley,5394,Other Expenses,28/02/2020,3110703492,543.10,OCC One Time Vendor
http://statistics.data.gov.uk/id/local-authority/38,Oxfordshire County Council,Delegated Health Tasks  - Over 65,5691,,10/02/2020,3110690668,543.20,The Caring Company (Oxon)
http://statistics.data.gov.uk/id/local-authority/38,Oxfordshire County Council,MEADOWBROOK TRANSPT,4330,Transport to School Activities,13/02/2020,3110697189,544.00,A2B Castle Cars Ltd
http://statistics.data.gov.uk/id/local-authority/38,Oxfordshire County Council,Support at Home 65+ Physical Support,5899,Social Care - Direct Payments,18/02/2020,3110698467,544.00,Redacted Personal Data
http://statistics.data.gov.uk/id/local-authority/38,Oxfordshire County Council,Mockingbird,5394,Other Expenses,26/02/2020,3110701857,545.00,Redacted Personal Data
http://statistics.data.gov.uk/id/local-authority/38,Oxfordshire County Council,Contingency Home Care,5689,,04/02/2020,3110688900,545.36,Oxford University Hospitals NHS FT
http://statistics.data.gov.uk/id/local-authority/38,Oxfordshire County Council,Support at Home 65+ Physical Support,5689,,04/02/2020,3110688362,545.75,Caremark (West Oxfordshire & Cherwe
http://statistics.data.gov.uk/id/local-authority/38,Oxfordshire County Council,Central FSS Statutory - Barton,4330,Transport to School Activities,25/02/2020,3110701353,546.00,The Oxfordshire Taxi Company Ltd T/
http://statistics.data.gov.uk/id/local-authority/38,Oxfordshire County Council,FOSTERING MAIN,5541,B*Foster Parents,18/02/2020,3110699846,546.03,Redacted Personal Data
http://statistics.data.gov.uk/id/local-authority/38,Oxfordshire County Council,Support at Home 65+ Physical Support,5698,,26/02/2020,3110702730,546.08,Charterville Care At Home Ltd
http://statistics.data.gov.uk/id/local-authority/38,Oxfordshire County Council,Support at Home 65+ Physical Support,5689,,04/02/2020,3110689145,546.42,AVR (Oxon) Ltd
http://statistics.data.gov.uk/id/local-authority/38,Oxfordshire County Council,Support at Home U65 Learning Disability,5682,,12/02/2020,3110691601,546.51,The Brandon Trust
http://statistics.data.gov.uk/id/local-authority/38,Oxfordshire County Council,VOIDS/VACANCY COSTS,3945,Rent,12/02/2020,3110695303,546.69,Oxford Citizens Housing Association
http://statistics.data.gov.uk/id/local-authority/38,Oxfordshire County Council,Support at Home U65 Learning Disability,5899,Social Care - Direct Payments,18/02/2020,3110699140,546.88,Redacted Personal Data
http://statistics.data.gov.uk/id/local-authority/38,Oxfordshire County Council,CENTRAL PRINTING,4705,Printing,11/02/2020,2200734700,547.83,Annodata Limited
http://statistics.data.gov.uk/id/local-authority/38,Oxfordshire County Council,CENTRAL PRINTING,4705,Printing,12/02/2020,2200735328,547.83,Annodata Limited
http://statistics.data.gov.uk/id/local-authority/38,Oxfordshire County Council,Support at Home 65+ Physical Support,5698,,26/02/2020,3110702946,548.19,Day & Night Care Assistance
http://statistics.data.gov.uk/id/local-authority/38,Oxfordshire County Council,Support at Home 65+ Physical Support,5698,,26/02/2020,3110703007,548.19,Day & Night Care Assistance
http://statistics.data.gov.uk/id/local-authority/38,Oxfordshire County Council,Support at Home 65+ Physical Support,5698,,26/02/2020,3110702781,548.95,Charterville Care At Home Ltd
http://statistics.data.gov.uk/id/local-authority/38,Oxfordshire County Council,AGENCY RESID - DISAB,5549,B*Fostering Allowance - Regulation 38,26/02/2020,3110701820,549.71,Redacted Personal Data
http://statistics.data.gov.uk/id/local-authority/38,Oxfordshire County Council,LEGAL SERVICES,5251,Legal Costs,10/02/2020,2200733894,550.00,Alex Perry
http://statistics.data.gov.uk/id/local-authority/38,Oxfordshire County Council,LEGAL SERVICES,5251,Legal Costs,10/02/2020,2200733805,550.00,David Marusza
http://statistics.data.gov.uk/id/local-authority/38,Oxfordshire County Council,LEGAL SERVICES,5251,Legal Costs,10/02/2020,2200733798,550.00,Frances Harris
http://statistics.data.gov.uk/id/local-authority/38,Oxfordshire County Council,Continuing Care - Support at Home - U65,5691,,03/02/2020,3110687986,550.00,Kit Mobility Taxis
http://statistics.data.gov.uk/id/local-authority/38,Oxfordshire County Council,Continuing Care - Support at Home - U65,5691,,03/02/2020,3110688025,550.00,Kit Mobility Taxis
http://statistics.data.gov.uk/id/local-authority/38,Oxfordshire County Council,Continuing Care - Support at Home - U65,5691,,17/02/2020,3110697383,550.00,Kit Mobility Taxis
http://statistics.data.gov.uk/id/local-authority/38,Oxfordshire County Council,Continuing Care - Support at Home - U65,5691,,17/02/2020,3110697475,550.00,Kit Mobility Taxis
http://statistics.data.gov.uk/id/local-authority/38,Oxfordshire County Council,Continuing Care - Support at Home - U65,5691,,25/02/2020,3110701058,550.00,Kit Mobility Taxis
http://statistics.data.gov.uk/id/local-authority/38,Oxfordshire County Council,Councillors Priorities Fund,4940,Other Services,11/02/2020,3110690868,550.00,Life Education Wessex &
http://statistics.data.gov.uk/id/local-authority/38,Oxfordshire County Council,Councillors Priorities Fund,4940,Other Services,11/02/2020,3110690871,550.00,Life Education Wessex &
http://statistics.data.gov.uk/id/local-authority/38,Oxfordshire County Council,LEGAL SERVICES,5251,Legal Costs,13/02/2020,2200735808,550.00,Redacted Personal Data
http://statistics.data.gov.uk/id/local-authority/38,Oxfordshire County Council,LEGAL SERVICES,5251,Legal Costs,07/02/2020,2200733665,550.00,Miss Anna Yarde
http://statistics.data.gov.uk/id/local-authority/38,Oxfordshire County Council,LEGAL SERVICES,5251,Legal Costs,11/02/2020,2200734881,550.00,Ms Emma Gatland
http://statistics.data.gov.uk/id/local-authority/38,Oxfordshire County Council,LEGAL SERVICES,5251,Legal Costs,12/02/2020,2200735154,550.00,Oliver Powell (Harcourt)
http://statistics.data.gov.uk/id/local-authority/38,Oxfordshire County Council,Support at Home U65 Physical Support,5227,Other Transport Arrangements,12/02/2020,3110692282,550.00,Oxon Transport Services Ltd
http://statistics.data.gov.uk/id/local-authority/38,Oxfordshire County Council,Central FSS Statutory - Barton,4330,Transport to School Activities,12/02/2020,3110692296,550.00,Oxon Transport Services Ltd
http://statistics.data.gov.uk/id/local-authority/38,Oxfordshire County Council,SEN TRANSPORT,4330,Transport to School Activities,20/02/2020,3110700475,550.00,Oxon Transport Services Ltd
http://statistics.data.gov.uk/id/local-authority/38,Oxfordshire County Council,LEGAL SERVICES,5251,Legal Costs,26/02/2020,2200740051,550.00,Stephen Crispin
http://statistics.data.gov.uk/id/local-authority/38,Oxfordshire County Council,LEGAL SERVICES,5251,Legal Costs,03/02/2020,2200731451,550.00,Vicky Reynolds
http://statistics.data.gov.uk/id/local-authority/38,Oxfordshire County Council,LEGAL SERVICES,5251,Legal Costs,05/02/2020,2200732578,550.00,Vicky Reynolds
http://statistics.data.gov.uk/id/local-authority/38,Oxfordshire County Council,LEGAL SERVICES,5251,Legal Costs,05/02/2020,2200732621,550.00,Victoria Flowers
http://statistics.data.gov.uk/id/local-authority/38,Oxfordshire County Council,LEGAL SERVICES,5251,Legal Costs,07/02/2020,2200733565,550.00,Victoria Flowers
http://statistics.data.gov.uk/id/local-authority/38,Oxfordshire County Council,LEGAL SERVICES,5251,Legal Costs,13/02/2020,2200735994,550.00,Victoria Flowers
http://statistics.data.gov.uk/id/local-authority/38,Oxfordshire County Council,Support at Home 65+ Physical Support,5698,,26/02/2020,3110702729,550.84,Charterville Care At Home Ltd
http://statistics.data.gov.uk/id/local-authority/38,Oxfordshire County Council,Support at Home U65 Other /Soc Isolation,5690,,12/02/2020,3110692713,551.00,Style Acre
http://statistics.data.gov.uk/id/local-authority/38,Oxfordshire County Council,Support at Home U65 Learning Disability,5690,,12/02/2020,3110692715,551.00,Style Acre
http://statistics.data.gov.uk/id/local-authority/38,Oxfordshire County Council,Support at Home U65 Learning Disability,5688,,12/02/2020,3110694233,551.00,Style Acre
http://statistics.data.gov.uk/id/local-authority/38,Oxfordshire County Council,Support at Home 65+ Physical Support,5693,,12/02/2020,3110692363,551.46,Bicester PA and Care LLP
http://statistics.data.gov.uk/id/local-authority/38,Oxfordshire County Council,Support at Home 65+ Physical Support,5693,,19/02/2020,3110699905,551.46,Bicester PA and Care LLP
http://statistics.data.gov.uk/id/local-authority/38,Oxfordshire County Council,Support at Home U65 Learning Disability,5690,,12/02/2020,3110692665,551.62,Turnstyle
http://statistics.data.gov.uk/id/local-authority/38,Oxfordshire County Council,POST18 UASC DCSF FND,5604,,12/02/2020,3110692463,551.64,Sanctuary Supported Living
http://statistics.data.gov.uk/id/local-authority/38,Oxfordshire County Council,Support at Home 65+ Memory & Cognition,5899,Social Care - Direct Payments,18/02/2020,3110699138,552.00,Redacted Personal Data
http://statistics.data.gov.uk/id/local-authority/38,Oxfordshire County Council,Support at Home U65 Sensory Support,5899,Social Care - Direct Payments,18/02/2020,3110697771,552.00,Redacted Personal Data
http://statistics.data.gov.uk/id/local-authority/38,Oxfordshire County Council,Support at Home U65 Other /Soc Isolation,5899,Social Care - Direct Payments,18/02/2020,3110698004,552.00,Purple Conversation Com In Co (DP)
http://statistics.data.gov.uk/id/local-authority/38,Oxfordshire County Council,FOSTERING MAIN,5549,B*Fostering Allowance - Regulation 38,18/02/2020,3110699685,552.78,Redacted Personal Data
http://statistics.data.gov.uk/id/local-authority/38,Oxfordshire County Council,FOSTERING MAIN,5549,B*Fostering Allowance - Regulation 38,26/02/2020,3110701915,552.78,Redacted Personal Data
http://statistics.data.gov.uk/id/local-authority/38,Oxfordshire County Council,FOSTERING MAIN,5549,B*Fostering Allowance - Regulation 38,26/02/2020,3110702024,552.90,Redacted Personal Data
http://statistics.data.gov.uk/id/local-authority/38,Oxfordshire County Council,FOSTERING MAIN,5549,B*Fostering Allowance - Regulation 38,18/02/2020,3110699761,552.90,Redacted Personal Data
http://statistics.data.gov.uk/id/local-authority/38,Oxfordshire County Council,L&D CORE PROGRAMME,4615,Drugs and Medical Supplies,12/02/2020,2200735420,553.00,ST JOHN AMBULANCE
http://statistics.data.gov.uk/id/local-authority/38,Oxfordshire County Council,Support at Home U65 Learning Disability,5899,Social Care - Direct Payments,18/02/2020,3110698897,553.20,Purple Conversation Com In Co (DP)
http://statistics.data.gov.uk/id/local-authority/38,Oxfordshire County Council,,1416,FSNBF,11/02/2020,3110690826,553.20,THE FIRE FIGHTERS CHARITY
http://statistics.data.gov.uk/id/local-authority/38,Oxfordshire County Council,Supervised Consumption APL,4934,,01/02/2020,3110690571,553.28,Lloyds Pharmacy
http://statistics.data.gov.uk/id/local-authority/38,Oxfordshire County Council,Support at Home 65+ Physical Support,5698,,26/02/2020,3110703130,553.38,Oxford Private Care
http://statistics.data.gov.uk/id/local-authority/38,Oxfordshire County Council,Support at Home 65+ Physical Support,5696,,11/02/2020,3110691117,554.11,Orders of St John Care Trust
http://statistics.data.gov.uk/id/local-authority/38,Oxfordshire County Council,Support at Home 65+ Physical Support,5689,,04/02/2020,3110688517,554.68,Oxfordshire Crossroads
http://statistics.data.gov.uk/id/local-authority/38,Oxfordshire County Council,SEN TRANSPORT,5227,Other Transport Arrangements,13/02/2020,3110697197,555.00,A2B Castle Cars Ltd
http://statistics.data.gov.uk/id/local-authority/38,Oxfordshire County Council,Delegated Health Tasks  - Over 65,5691,,10/02/2020,3110690729,555.00,Bluebird Care
http://statistics.data.gov.uk/id/local-authority/38,Oxfordshire County Council,VOIDS/VACANCY COSTS,3945,Rent,12/02/2020,3110695301,555.18,Oxford Citizens Housing Association
http://statistics.data.gov.uk/id/local-authority/38,Oxfordshire County Council,Support at Home U65 Physical Support,5899,Social Care - Direct Payments,18/02/2020,3110698375,555.20,Purple Conversation Com In Co (DP)
http://statistics.data.gov.uk/id/local-authority/38,Oxfordshire County Council,Support at Home 65+ Physical Support,5698,,26/02/2020,3110702764,555.54,Charterville Care At Home Ltd
http://statistics.data.gov.uk/id/local-authority/38,Oxfordshire County Council,LANDLORD & TENANT,3980,Service Charges - Premises,04/02/2020,2200732071,555.90,North Leigh War Memorial Hall
http://statistics.data.gov.uk/id/local-authority/38,Oxfordshire County Council,Support at Home U65 Physical Support,5899,Social Care - Direct Payments,18/02/2020,3110697919,556.00,Purple Conversation Com In Co (DP)
http://statistics.data.gov.uk/id/local-authority/38,Oxfordshire County Council,Support at Home U65 Learning Disability,5899,Social Care - Direct Payments,18/02/2020,3110697806,556.00,Redacted Personal Data
http://statistics.data.gov.uk/id/local-authority/38,Oxfordshire County Council,Contingency Home Care,5689,,04/02/2020,3110688856,556.69,Oxford University Hospitals NHS FT
http://statistics.data.gov.uk/id/local-authority/38,Oxfordshire County Council,CHC Fast Track - Care Homes - Over 65,5687,,12/02/2020,3110695700,557.14,GCH (St Katherines) Ltd
http://statistics.data.gov.uk/id/local-authority/38,Oxfordshire County Council,Care Homes - Over 65 Physical Sypport,5686,,12/02/2020,3110696803,557.14,The Ridings (Anchor Trust)
http://statistics.data.gov.uk/id/local-authority/38,Oxfordshire County Council,Personal Health Budgets  - Over 65,5899,Social Care - Direct Payments,26/02/2020,3110701498,557.29,Redacted Personal Data
http://statistics.data.gov.uk/id/local-authority/38,Oxfordshire County Council,Support at Home 65+ Physical Support,5698,,26/02/2020,3110702797,557.30,Charterville Care At Home Ltd
http://statistics.data.gov.uk/id/local-authority/38,Oxfordshire County Council,Support at Home U65 Other /Soc Isolation,5899,Social Care - Direct Payments,18/02/2020,3110697963,557.60,Purple Conversation Com In Co (DP)
http://statistics.data.gov.uk/id/local-authority/38,Oxfordshire County Council,Delegated Health Tasks  - Over 65,5691,,25/02/2020,3110701005,557.75,Redacted Personal Data
http://statistics.data.gov.uk/id/local-authority/38,Oxfordshire County Council,Support at Home U65 Physical Support,5899,Social Care - Direct Payments,18/02/2020,3110699022,558.00,Purple Conversation Com In Co (DP)
http://statistics.data.gov.uk/id/local-authority/38,Oxfordshire County Council,SEN TRANSPORT,4320,Pupil / Client Travel Reimbursement,27/02/2020,3110703315,558.09,Redacted Personal Data
http://statistics.data.gov.uk/id/local-authority/38,Oxfordshire County Council,Support at Home U65 Learning Disability,5682,,12/02/2020,3110691577,558.32,The Brandon Trust
http://statistics.data.gov.uk/id/local-authority/38,Oxfordshire County Council,Support at Home U65 Learning Disability,5696,,26/02/2020,3110702219,558.70,Orders of St John Care Trust
http://statistics.data.gov.uk/id/local-authority/38,Oxfordshire County Council,Support at Home U65 Physical Support,5696,,26/02/2020,3110702222,558.71,Orders of St John Care Trust
http://statistics.data.gov.uk/id/local-authority/38,Oxfordshire County Council,Support at Home 65+ Physical Support,5696,,26/02/2020,3110702284,558.71,Orders of St John Care Trust
http://statistics.data.gov.uk/id/local-authority/38,Oxfordshire County Council,Support at Home U65 Learning Disability,5698,,26/02/2020,3110702710,558.72,Bridges Home Care Ltd
http://statistics.data.gov.uk/id/local-authority/38,Oxfordshire County Council,Support at Home U65 Learning Disability,5690,,12/02/2020,3110692513,559.29,H F TRUST LTD
http://statistics.data.gov.uk/id/local-authority/38,Oxfordshire County Council,Support at Home U65 Learning Disability,5690,,12/02/2020,3110692613,559.29,MacIntyre Care (Womaston)
http://statistics.data.gov.uk/id/local-authority/38,Oxfordshire County Council,Support at Home U65 Learning Disability,5690,,12/02/2020,3110692625,559.29,MacIntyre Care (Womaston)
http://statistics.data.gov.uk/id/local-authority/38,Oxfordshire County Council,SEN TRANSPORT,4330,Transport to School Activities,09/02/2020,3110690796,560.00,Abingdon Taxis FKN Autotaxis
http://statistics.data.gov.uk/id/local-authority/38,Oxfordshire County Council,South FSS Statutory - Abingdon,5227,Other Transport Arrangements,05/02/2020,3110690061,560.00,Black and White Cars T/A Banbury Ta
http://statistics.data.gov.uk/id/local-authority/38,Oxfordshire County Council,SEN TRANSPORT,4320,Pupil / Client Travel Reimbursement,11/02/2020,3110691242,560.00,Redacted Personal Data
http://statistics.data.gov.uk/id/local-authority/38,Oxfordshire County Council,POST 16 SEN,4330,Transport to School Activities,25/02/2020,3110700922,560.00,Redacted Personal Data
http://statistics.data.gov.uk/id/local-authority/38,Oxfordshire County Council,LAC PUPIL PREMIUM,5537,Payments to Other Establishments,18/02/2020,3110697577,560.00,Icknield Community College
http://statistics.data.gov.uk/id/local-authority/38,Oxfordshire County Council,Support at Home 65+ Physical Support,5899,Social Care - Direct Payments,18/02/2020,3110699191,560.00,Redacted Personal Data
http://statistics.data.gov.uk/id/local-authority/38,Oxfordshire County Council,Support at Home 65+ Physical Support,5899,Social Care - Direct Payments,18/02/2020,3110699155,560.00,Redacted Personal Data
http://statistics.data.gov.uk/id/local-authority/38,Oxfordshire County Council,TRANSPORT COSTS,4330,Transport to School Activities,11/02/2020,3110690917,560.00,OCC One Time Vendor
http://statistics.data.gov.uk/id/local-authority/38,Oxfordshire County Council,LOOKED AFTER NORTH,4540,"Educational Supplies, Stationery & Mater",28/02/2020,3110703493,560.00,OCC One Time Vendor
http://statistics.data.gov.uk/id/local-authority/38,Oxfordshire County Council,Support at Home 65+ Physical Support,5899,Social Care - Direct Payments,18/02/2020,3110698181,560.00,Purple Conversation Com In Co (DP)
http://statistics.data.gov.uk/id/local-authority/38,Oxfordshire County Council,Support at Home U65 Learning Disability,5899,Social Care - Direct Payments,18/02/2020,3110698225,560.00,Purple Conversation Com In Co (DP)
http://statistics.data.gov.uk/id/local-authority/38,Oxfordshire County Council,Support at Home U65 Physical Support,5899,Social Care - Direct Payments,18/02/2020,3110698633,560.00,Purple Conversation Com In Co (DP)
http://statistics.data.gov.uk/id/local-authority/38,Oxfordshire County Council,Support at Home U65 Physical Support,5899,Social Care - Direct Payments,18/02/2020,3110698831,560.00,Purple Conversation Com In Co (DP)
http://statistics.data.gov.uk/id/local-authority/38,Oxfordshire County Council,Support at Home 65+ Physical Support,5899,Social Care - Direct Payments,18/02/2020,3110698986,560.00,Purple Conversation Com In Co (DP)
http://statistics.data.gov.uk/id/local-authority/38,Oxfordshire County Council,SEN TRANSPORT,5227,Other Transport Arrangements,11/02/2020,3110691337,560.00,R & S Travel Services Ltd T/A A 2 Z
http://statistics.data.gov.uk/id/local-authority/38,Oxfordshire County Council,Central FSS Statutory - Blackbird Leys,5227,Other Transport Arrangements,25/02/2020,3110701352,560.00,The Oxfordshire Taxi Company Ltd T/
http://statistics.data.gov.uk/id/local-authority/38,Oxfordshire County Council,LIBRARY COLLECTIONS,4539,"Books, DVDs and CDs",27/02/2020,3110703453,560.63,ASKEWS & HOLTS LIBRARY SERVICES LTD
http://statistics.data.gov.uk/id/local-authority/38,Oxfordshire County Council,Support at Home U65 Learning Disability,5697,,26/02/2020,3110702419,560.88,Style Acre
http://statistics.data.gov.uk/id/local-authority/38,Oxfordshire County Council,NHS HEALTHCHECK PROG,4933,,03/02/2020,3110688233,561.00,Sibford Gower Surgery
http://statistics.data.gov.uk/id/local-authority/38,Oxfordshire County Council,BBCF,5394,Other Expenses,07/02/2020,2200733707,561.10,EUCLID LTD
http://statistics.data.gov.uk/id/local-authority/38,Oxfordshire County Council,Support at Home U65 Learning Disability,5682,,12/02/2020,3110691618,561.24,The Brandon Trust
http://statistics.data.gov.uk/id/local-authority/38,Oxfordshire County Council,Support at Home 65+ Physical Support,5899,Social Care - Direct Payments,18/02/2020,3110698919,561.44,Purple Conversation Com In Co (DP)
http://statistics.data.gov.uk/id/local-authority/38,Oxfordshire County Council,Support at Home U65 Physical Support,5698,,26/02/2020,3110702762,561.54,Charterville Care At Home Ltd
http://statistics.data.gov.uk/id/local-authority/38,Oxfordshire County Council,Support at Home 65+ Physical Support,5698,,26/02/2020,3110702761,561.92,Charterville Care At Home Ltd
http://statistics.data.gov.uk/id/local-authority/38,Oxfordshire County Council,Contingency Home Care,5689,,04/02/2020,3110688944,562.03,Oxford University Hospitals NHS FT
http://statistics.data.gov.uk/id/local-authority/38,Oxfordshire County Council,Support at Home 65+ Physical Support,5698,,26/02/2020,3110702818,562.46,Charterville Care At Home Ltd
http://statistics.data.gov.uk/id/local-authority/38,Oxfordshire County Council,Support at Home 65+ Physical Support,5696,,05/02/2020,3110690205,562.50,One Housing Group Limited
http://statistics.data.gov.uk/id/local-authority/38,Oxfordshire County Council,Support at Home 65+ Memory & Cognition,5899,Social Care - Direct Payments,18/02/2020,3110698459,562.60,Purple Conversation Com In Co (DP)
http://statistics.data.gov.uk/id/local-authority/38,Oxfordshire County Council,Support at Home U65 Learning Disability,5689,,04/02/2020,3110688469,563.01,Oxfordshire Crossroads
http://statistics.data.gov.uk/id/local-authority/38,Oxfordshire County Council,LEAVING CARE CITY 2,5394,Other Expenses,26/02/2020,9300045664,563.10,OCC SS Oxford City Div 1 Cash
http://statistics.data.gov.uk/id/local-authority/38,Oxfordshire County Council,Planned preventative Maintenance,3787,Premises Repairs,11/02/2020,2200734679,564.00,Ambiflex Ltd
http://statistics.data.gov.uk/id/local-authority/38,Oxfordshire County Council,Support at Home 65+ Physical Support,5899,Social Care - Direct Payments,18/02/2020,3110698071,564.00,Purple Conversation Com In Co (DP)
http://statistics.data.gov.uk/id/local-authority/38,Oxfordshire County Council,Support at Home U65 Learning Disability,5899,Social Care - Direct Payments,18/02/2020,3110698721,564.00,Purple Conversation Com In Co (DP)
http://statistics.data.gov.uk/id/local-authority/38,Oxfordshire County Council,Support at Home U65 Physical Support,5698,,26/02/2020,3110702606,564.53,Acquire Care Ltd
http://statistics.data.gov.uk/id/local-authority/38,Oxfordshire County Council,Support at Home 65+ Physical Support,5689,,04/02/2020,3110689042,564.72,PLL Care Services
http://statistics.data.gov.uk/id/local-authority/38,Oxfordshire County Council,Support at Home U65 Learning Disability,5682,,12/02/2020,3110691765,564.79,The Brandon Trust
http://statistics.data.gov.uk/id/local-authority/38,Oxfordshire County Council,FPT SOUTH/VALE,4525,Furniture,12/02/2020,3110691700,564.88,Redacted Personal Data
http://statistics.data.gov.uk/id/local-authority/38,Oxfordshire County Council,SM DISABILITIES,5554,Childrens' Social Care - Direct Payments,25/02/2020,3110701194,565.25,Purple Conversation Com In Co (DP)
http://statistics.data.gov.uk/id/local-authority/38,Oxfordshire County Council,Support at Home U65 Learning Disability,5696,,11/02/2020,3110691130,565.33,Orders of St John Care Trust
http://statistics.data.gov.uk/id/local-authority/38,Oxfordshire County Council,Support at Home U65 Learning Disability,5696,,26/02/2020,3110702298,565.33,Orders of St John Care Trust
http://statistics.data.gov.uk/id/local-authority/38,Oxfordshire County Council,Support at Home U65 Learning Disability,5899,Social Care - Direct Payments,18/02/2020,3110698610,565.88,Redacted Personal Data
http://statistics.data.gov.uk/id/local-authority/38,Oxfordshire County Council,Support at Home 65+ Physical Support,5698,,26/02/2020,3110702655,565.89,Acquire Care Ltd
http://statistics.data.gov.uk/id/local-authority/38,Oxfordshire County Council,SEN TRANSPORT,5227,Other Transport Arrangements,26/02/2020,3110702552,566.10,Crown Cabs Travel Ltd
http://statistics.data.gov.uk/id/local-authority/38,Oxfordshire County Council,Community Support Service Wantage,2040,Agency Staff,10/02/2020,2200733834,567.00,Completely Care Ltd
http://statistics.data.gov.uk/id/local-authority/38,Oxfordshire County Council,Contingency Home Care,5689,,04/02/2020,3110688932,567.36,Oxford University Hospitals NHS FT
http://statistics.data.gov.uk/id/local-authority/38,Oxfordshire County Council,Care Homes - Over 65 Physical Sypport,5685,B*Cycle tracks,12/02/2020,3110694041,567.63,Oakenholt Care Ltd
http://statistics.data.gov.uk/id/local-authority/38,Oxfordshire County Council,Support at Home U65 Learning Disability,5690,,12/02/2020,3110692565,567.74,Life Path Trust Ltd
http://statistics.data.gov.uk/id/local-authority/38,Oxfordshire County Council,Support at Home U65 Learning Disability,5690,,12/02/2020,3110692595,567.74,Life Path Trust Ltd
http://statistics.data.gov.uk/id/local-authority/38,Oxfordshire County Council,Support at Home U65 Learning Disability,5690,,12/02/2020,3110692610,567.74,Life Path Trust Ltd
http://statistics.data.gov.uk/id/local-authority/38,Oxfordshire County Council,Support at Home 65+ Mental Health,5689,,04/02/2020,3110689068,567.75,Premier Personal Care
http://statistics.data.gov.uk/id/local-authority/38,Oxfordshire County Council,Support at Home U65 Learning Disability,5899,Social Care - Direct Payments,18/02/2020,3110698211,567.84,Redacted Personal Data
http://statistics.data.gov.uk/id/local-authority/38,Oxfordshire County Council,COUNTY PRINT FINSHRS,4531,Materials,26/02/2020,2200740010,568.00,MP Printers (Thame) Ltd
http://statistics.data.gov.uk/id/local-authority/38,Oxfordshire County Council,Support at Home 65+ Physical Support,5899,Social Care - Direct Payments,18/02/2020,3110698363,568.00,Purple Conversation Com In Co (DP)
http://statistics.data.gov.uk/id/local-authority/38,Oxfordshire County Council,SEN TRANSPORT,4320,Pupil / Client Travel Reimbursement,17/02/2020,3110697539,568.26,Redacted Personal Data
http://statistics.data.gov.uk/id/local-authority/38,Oxfordshire County Council,SEN TRANSPORT,4320,Pupil / Client Travel Reimbursement,20/02/2020,3110700556,568.26,Redacted Personal Data
http://statistics.data.gov.uk/id/local-authority/38,Oxfordshire County Council,CSB - COUNTY,5691,,27/02/2020,2200740546,568.33,Oxford Private Care
http://statistics.data.gov.uk/id/local-authority/38,Oxfordshire County Council,Support at Home 65+ Learning Disability,5688,,12/02/2020,3110693605,569.19,The Laurels (Witney)
http://statistics.data.gov.uk/id/local-authority/38,Oxfordshire County Council,FOSTERING MAIN,5532,B*Fostering - Loan Equipment,26/02/2020,3110702161,569.44,Zoltan Branch
http://statistics.data.gov.uk/id/local-authority/38,Oxfordshire County Council,Delegated Health Tasks  - Over 65,5691,,17/02/2020,3110697428,569.45,Enable Health Ltd
http://statistics.data.gov.uk/id/local-authority/38,Oxfordshire County Council,Support at Home 65+ Physical Support,5689,,04/02/2020,3110688313,569.58,Care Outlook Ltd
http://statistics.data.gov.uk/id/local-authority/38,Oxfordshire County Council,Support at Home 65+ Physical Support,5689,,04/02/2020,3110688675,569.62,Greigcare Home Service
http://statistics.data.gov.uk/id/local-authority/38,Oxfordshire County Council,2 YEAR OLD FUNDING,5537,Payments to Other Establishments,20/02/2020,3110700160,569.66,Hanney Pre-School Playgroup
http://statistics.data.gov.uk/id/local-authority/38,Oxfordshire County Council,2 YEAR OLD FUNDING,5537,Payments to Other Establishments,20/02/2020,3110700237,569.66,Saltway Day Nursery
http://statistics.data.gov.uk/id/local-authority/38,Oxfordshire County Council,SEN TRANSPORT,5227,Other Transport Arrangements,13/02/2020,3110697251,570.00,A2B Castle Cars Ltd
http://statistics.data.gov.uk/id/local-authority/38,Oxfordshire County Council,SEN TRANSPORT,5227,Other Transport Arrangements,13/02/2020,3110697267,570.00,ABC Travel(Wokingham) limited t/a A
http://statistics.data.gov.uk/id/local-authority/38,Oxfordshire County Council,SEN TRANSPORT,5227,Other Transport Arrangements,17/02/2020,3110697557,570.00,Crown Cabs Travel Ltd
http://statistics.data.gov.uk/id/local-authority/38,Oxfordshire County Council,CHC Fast Track - Sup at Homes - Over 65,5691,,03/02/2020,3110688042,570.00,Day & Night Care Assistance
http://statistics.data.gov.uk/id/local-authority/38,Oxfordshire County Council,CENS & SURV NON GRNT,4531,Materials,05/02/2020,2200732556,570.00,Intelligent Data (Collection) Ltd
http://statistics.data.gov.uk/id/local-authority/38,Oxfordshire County Council,SEN TRANSPORT,5227,Other Transport Arrangements,12/02/2020,3110692244,570.00,Luxicars Ltd
http://statistics.data.gov.uk/id/local-authority/38,Oxfordshire County Council,Planned preventative Maintenance,3787,Premises Repairs,19/02/2020,2200737951,570.00,Marlowe Fire & Security Ltd
http://statistics.data.gov.uk/id/local-authority/38,Oxfordshire County Council,SEN TRANSPORT,5227,Other Transport Arrangements,20/02/2020,3110700520,570.00,Oxon Transport Services Ltd
http://statistics.data.gov.uk/id/local-authority/38,Oxfordshire County Council,POST 16 SEN,4330,Transport to School Activities,20/02/2020,3110700569,570.00,Oxon Transport Services Ltd
http://statistics.data.gov.uk/id/local-authority/38,Oxfordshire County Council,Support at Home U65 Learning Disability,5899,Social Care - Direct Payments,18/02/2020,3110698728,570.00,Purple Conversation Com In Co (DP)
http://statistics.data.gov.uk/id/local-authority/38,Oxfordshire County Council,MAINSTREAM-SECONDARY,4330,Transport to School Activities,24/02/2020,3110700778,570.00,The Oxfordshire Taxi Company Ltd T/
http://statistics.data.gov.uk/id/local-authority/38,Oxfordshire County Council,Support at Home U65 Physical Support,5899,Social Care - Direct Payments,18/02/2020,3110698198,571.20,Purple Conversation Com In Co (DP)
http://statistics.data.gov.uk/id/local-authority/38,Oxfordshire County Council,Support at Home 65+ Physical Support,5689,,04/02/2020,3110688733,571.86,Home Helpers Care Ltd
http://statistics.data.gov.uk/id/local-authority/38,Oxfordshire County Council,Support at Home U65 Learning Disability,5899,Social Care - Direct Payments,18/02/2020,3110697874,572.00,Purple Conversation Com In Co (DP)
http://statistics.data.gov.uk/id/local-authority/38,Oxfordshire County Council,Support at Home 65+ Physical Support,5698,,26/02/2020,3110703019,572.29,Day & Night Care Assistance
http://statistics.data.gov.uk/id/local-authority/38,Oxfordshire County Council,Support at Home U65 Learning Disability,5693,,26/02/2020,3110702408,572.50,Pechiv Ltd
http://statistics.data.gov.uk/id/local-authority/38,Oxfordshire County Council,Support at Home 65+ Physical Support,5698,,26/02/2020,3110702843,572.73,Day & Night Care Assistance
http://statistics.data.gov.uk/id/local-authority/38,Oxfordshire County Council,Support at Home 65+ Physical Support,5698,,26/02/2020,3110702675,573.08,Bridges Home Care Ltd
http://statistics.data.gov.uk/id/local-authority/38,Oxfordshire County Council,Delegated Health Tasks  - Under 65,5691,,25/02/2020,3110701064,573.50,Bluebird Care
http://statistics.data.gov.uk/id/local-authority/38,Oxfordshire County Council,Support at Home 65+ Mental Health,5689,,04/02/2020,3110688716,574.10,Home Helpers Care Ltd
http://statistics.data.gov.uk/id/local-authority/38,Oxfordshire County Council,Support at Home 65+ Physical Support,5696,,11/02/2020,3110691134,574.52,Orders of St John Care Trust
http://statistics.data.gov.uk/id/local-authority/38,Oxfordshire County Council,Support at Home 65+ Physical Support,5696,,26/02/2020,3110702303,574.52,Orders of St John Care Trust
http://statistics.data.gov.uk/id/local-authority/38,Oxfordshire County Council,Support at Home 65+ Physical Support,5698,,26/02/2020,3110702789,574.53,Charterville Care At Home Ltd
http://statistics.data.gov.uk/id/local-authority/38,Oxfordshire County Council,Support at Home U65 Learning Disability,5899,Social Care - Direct Payments,18/02/2020,3110697810,574.60,Redacted Personal Data
http://statistics.data.gov.uk/id/local-authority/38,Oxfordshire County Council,Reading Adoption Support Fund,4859,Medical and Counselling Fees,18/02/2020,2200737721,575.00,More Therapy
http://statistics.data.gov.uk/id/local-authority/38,Oxfordshire County Council,Care Packages & Placements- LD - OCC,5227,Other Transport Arrangements,12/02/2020,3110692252,575.00,Oxon Transport Services Ltd
http://statistics.data.gov.uk/id/local-authority/38,Oxfordshire County Council,Support at Home U65 Learning Disability,5690,,12/02/2020,3110692603,575.11,Life Path Trust Ltd
http://statistics.data.gov.uk/id/local-authority/38,Oxfordshire County Council,Support at Home U65 Learning Disability,5899,Social Care - Direct Payments,18/02/2020,3110698047,575.20,Redacted Personal Data
http://statistics.data.gov.uk/id/local-authority/38,Oxfordshire County Council,Continuing Care - Support at Home - U65,5691,,17/02/2020,3110697424,575.20,THORNBURY NURSING SERVICES
http://statistics.data.gov.uk/id/local-authority/38,Oxfordshire County Council,FOSTERING MAIN,5549,B*Fostering Allowance - Regulation 38,18/02/2020,3110699794,575.43,Redacted Personal Data
http://statistics.data.gov.uk/id/local-authority/38,Oxfordshire County Council,MAINSTREAM-PRIMARY,4330,Transport to School Activities,20/02/2020,3110700432,576.00,001 Alpha Cars Ltd
http://statistics.data.gov.uk/id/local-authority/38,Oxfordshire County Council,SEN TRANSPORT,5227,Other Transport Arrangements,11/02/2020,3110690844,576.00,Abingdon Taxis FKN Autotaxis
http://statistics.data.gov.uk/id/local-authority/38,Oxfordshire County Council,OPERATIONS,4498,Health and Safety Equipment,05/02/2020,2200732480,576.00,MFC INTERNATIONAL
http://statistics.data.gov.uk/id/local-authority/38,Oxfordshire County Council,Banking,4936,Bank Charges,18/02/2020,3110697645,576.00,OCC One Time Vendor
http://statistics.data.gov.uk/id/local-authority/38,Oxfordshire County Council,Support at Home 65+ Physical Support,5899,Social Care - Direct Payments,18/02/2020,3110698163,576.00,Purple Conversation Com In Co (DP)
http://statistics.data.gov.uk/id/local-authority/38,Oxfordshire County Council,Support at Home 65+ Physical Support,5899,Social Care - Direct Payments,18/02/2020,3110698409,576.00,Purple Conversation Com In Co (DP)
http://statistics.data.gov.uk/id/local-authority/38,Oxfordshire County Council,Support at Home U65 Physical Support,5899,Social Care - Direct Payments,18/02/2020,3110697703,576.04,Purple Conversation Com In Co (DP)
http://statistics.data.gov.uk/id/local-authority/38,Oxfordshire County Council,SM DISABILITIES,5554,Childrens' Social Care - Direct Payments,25/02/2020,3110701241,576.60,Purple Conversation Com In Co (DP)
http://statistics.data.gov.uk/id/local-authority/38,Oxfordshire County Council,SM DISABILITIES,5554,Childrens' Social Care - Direct Payments,25/02/2020,3110701124,576.60,Redacted Personal Data
http://statistics.data.gov.uk/id/local-authority/38,Oxfordshire County Council,Support at Home U65 Physical Support,5899,Social Care - Direct Payments,18/02/2020,3110697770,576.80,Purple Conversation Com In Co (DP)
http://statistics.data.gov.uk/id/local-authority/38,Oxfordshire County Council,Support at Home U65 Learning Disability,5682,,12/02/2020,3110691540,576.86,The Brandon Trust
http://statistics.data.gov.uk/id/local-authority/38,Oxfordshire County Council,Support at Home U65 Learning Disability,5682,,12/02/2020,3110691529,577.08,The Brandon Trust
http://statistics.data.gov.uk/id/local-authority/38,Oxfordshire County Council,Support at Home 65+ Physical Support,5698,,26/02/2020,3110702987,577.11,Day & Night Care Assistance
http://statistics.data.gov.uk/id/local-authority/38,Oxfordshire County Council,Support at Home U65 MH OBC Contract,5691,,11/02/2020,3110692353,577.20,Care With Dignity Partnerships
http://statistics.data.gov.uk/id/local-authority/38,Oxfordshire County Council,Support at Home U65 MH OBC Contract,5689,,04/02/2020,3110689111,577.28,Response Organisation
http://statistics.data.gov.uk/id/local-authority/38,Oxfordshire County Council,Support at Home U65 MH OBC Contract,5689,,04/02/2020,3110689085,577.34,Response Organisation
http://statistics.data.gov.uk/id/local-authority/38,Oxfordshire County Council,FAM GRP CONFERENCES,5668,Technical and Professional Consultant F,14/02/2020,2200737065,577.47,Jessica Howards
http://statistics.data.gov.uk/id/local-authority/38,Oxfordshire County Council,FAM GRP CONFERENCES,5668,Technical and Professional Consultant F,14/02/2020,2200737067,577.47,Jessica Howards
http://statistics.data.gov.uk/id/local-authority/38,Oxfordshire County Council,Support at Home U65 MH OBC Contract,5689,,04/02/2020,3110689099,577.65,Response Organisation
http://statistics.data.gov.uk/id/local-authority/38,Oxfordshire County Council,LEGAL BUDGET,5251,Legal Costs,07/02/2020,2200733681,578.74,Dr Gemma Gray
http://statistics.data.gov.uk/id/local-authority/38,Oxfordshire County Council,Support at Home 65+ Physical Support,5689,,04/02/2020,3110688672,578.82,Greigcare Home Service
http://statistics.data.gov.uk/id/local-authority/38,Oxfordshire County Council,Support at Home U65 Learning Disability,5690,,12/02/2020,3110692718,578.97,Style Acre
http://statistics.data.gov.uk/id/local-authority/38,Oxfordshire County Council,Contingency Home Care,5689,,04/02/2020,3110688979,579.36,Oxford University Hospitals NHS FT
http://statistics.data.gov.uk/id/local-authority/38,Oxfordshire County Council,Support at Home 65+ Physical Support,5689,,04/02/2020,3110688852,579.43,Oxford Private Care
http://statistics.data.gov.uk/id/local-authority/38,Oxfordshire County Council,HN IN SEC SCHOOLS,5537,Payments to Other Establishments,13/02/2020,3110700698,580.00,ASPIRATIONS ACAD TRUST SPACE STUDIO
http://statistics.data.gov.uk/id/local-authority/38,Oxfordshire County Council,SEN TRANSPORT,5227,Other Transport Arrangements,20/02/2020,3110700553,580.00,Oxon Transport Services Ltd
http://statistics.data.gov.uk/id/local-authority/38,Oxfordshire County Council,Support at Home U65 Physical Support,5899,Social Care - Direct Payments,18/02/2020,3110698470,580.00,Purple Conversation Com In Co (DP)
http://statistics.data.gov.uk/id/local-authority/38,Oxfordshire County Council,Support at Home U65 Learning Disability,5690,,12/02/2020,3110692679,580.00,Style Acre
http://statistics.data.gov.uk/id/local-authority/38,Oxfordshire County Council,Support at Home U65 Learning Disability,5690,,12/02/2020,3110692560,580.00,The Ice Centre
http://statistics.data.gov.uk/id/local-authority/38,Oxfordshire County Council,Support at Home U65 Learning Disability,5690,,12/02/2020,3110692655,580.00,Turnstyle
http://statistics.data.gov.uk/id/local-authority/38,Oxfordshire County Council,Support at Home U65 Learning Disability,5690,,12/02/2020,3110692664,580.00,Turnstyle
http://statistics.data.gov.uk/id/local-authority/38,Oxfordshire County Council,Support at Home 65+ Physical Support,5693,,26/02/2020,3110702343,580.52,1st Homecare (Oxford) Ltd
http://statistics.data.gov.uk/id/local-authority/38,Oxfordshire County Council,Support at Home 65+ Physical Support,5689,,04/02/2020,3110688635,580.59,Greigcare Home Service
http://statistics.data.gov.uk/id/local-authority/38,Oxfordshire County Council,SEN Miscellaneous Expenditure,5554,Childrens' Social Care - Direct Payments,25/02/2020,3110701176,580.72,Redacted Personal Data
http://statistics.data.gov.uk/id/local-authority/38,Oxfordshire County Council,Support at Home U65 Learning Disability,5899,Social Care - Direct Payments,18/02/2020,3110697778,581.40,Purple Conversation Com In Co (DP)
http://statistics.data.gov.uk/id/local-authority/38,Oxfordshire County Council,Support at Home 65+ Physical Support,5689,,04/02/2020,3110688413,581.61,Caremark (West Oxfordshire & Cherwe
http://statistics.data.gov.uk/id/local-authority/38,Oxfordshire County Council,Support at Home U65 Physical Support,5696,,11/02/2020,3110691052,581.67,Orders of St John Care Trust
http://statistics.data.gov.uk/id/local-authority/38,Oxfordshire County Council,Mockingbird,5394,Other Expenses,26/02/2020,3110702021,583.50,Redacted Personal Data
http://statistics.data.gov.uk/id/local-authority/38,Oxfordshire County Council,Support at Home 65+ Physical Support,5689,,04/02/2020,3110688441,583.89,Caretree Ltd
http://statistics.data.gov.uk/id/local-authority/38,Oxfordshire County Council,Support at Home 65+ Physical Support,5899,Social Care - Direct Payments,18/02/2020,3110699046,584.00,Purple Conversation Com In Co (DP)
http://statistics.data.gov.uk/id/local-authority/38,Oxfordshire County Council,SHARED LIVES,5555,Payments to Carers,12/02/2020,3110692930,584.39,Redacted Personal Data
http://statistics.data.gov.uk/id/local-authority/38,Oxfordshire County Council,Support at Home 65+ Physical Support,5899,Social Care - Direct Payments,18/02/2020,3110698708,584.60,Purple Conversation Com In Co (DP)
http://statistics.data.gov.uk/id/local-authority/38,Oxfordshire County Council,CONTRACEPTION,4933,,25/02/2020,3110703428,584.68,Oak Tree Health Centre
http://statistics.data.gov.uk/id/local-authority/38,Oxfordshire County Council,TRANSPORT COSTS,4330,Transport to School Activities,25/02/2020,3110700926,585.00,BC CARS
http://statistics.data.gov.uk/id/local-authority/38,Oxfordshire County Council,Care Packages & Placements- PD - OCC,5227,Other Transport Arrangements,20/02/2020,3110700323,585.00,C S Comley
http://statistics.data.gov.uk/id/local-authority/38,Oxfordshire County Council,Support at Home 65+ Physical Support,5899,Social Care - Direct Payments,18/02/2020,3110697955,585.00,Redacted Personal Data
http://statistics.data.gov.uk/id/local-authority/38,Oxfordshire County Council,LD Continuing Care - Sup at Home - U65,5688,,12/02/2020,3110693886,585.63,Mencap Contracts
http://statistics.data.gov.uk/id/local-authority/38,Oxfordshire County Council,Support at Home U65 Learning Disability,5899,Social Care - Direct Payments,18/02/2020,3110697959,586.56,Redacted Personal Data
http://statistics.data.gov.uk/id/local-authority/38,Oxfordshire County Council,CHC Fast Track - Sup at Homes - Over 65,5691,,17/02/2020,3110697463,586.64,Bluebird Care
http://statistics.data.gov.uk/id/local-authority/38,Oxfordshire County Council,Support at Home 65+ Memory & Cognition,5698,,26/02/2020,3110702899,586.75,Day & Night Care Assistance
http://statistics.data.gov.uk/id/local-authority/38,Oxfordshire County Council,LIBRARY COLLECTIONS,4539,"Books, DVDs and CDs",21/02/2020,3110700904,586.76,ASKEWS & HOLTS LIBRARY SERVICES LTD
http://statistics.data.gov.uk/id/local-authority/38,Oxfordshire County Council,Support at Home 65+ Physical Support,5698,,26/02/2020,3110703166,586.93,Oxford Private Care
http://statistics.data.gov.uk/id/local-authority/38,Oxfordshire County Council,LAC PUPIL PREMIUM,5380,"Author, Speaker and Lecturer Fees",26/02/2020,2200739589,587.00,Maccalin Associates Ltd
http://statistics.data.gov.uk/id/local-authority/38,Oxfordshire County Council,VOIDS/VACANCY COSTS,3945,Rent,12/02/2020,3110695300,588.20,Oxford Citizens Housing Association
http://statistics.data.gov.uk/id/local-authority/38,Oxfordshire County Council,LIBRARY COLLECTIONS,4539,"Books, DVDs and CDs",03/02/2020,3110687922,588.61,ASKEWS & HOLTS LIBRARY SERVICES LTD
http://statistics.data.gov.uk/id/local-authority/38,Oxfordshire County Council,Support at Home 65+ Physical Support,5698,,26/02/2020,3110702792,589.10,Charterville Care At Home Ltd
http://statistics.data.gov.uk/id/local-authority/38,Oxfordshire County Council,,1448,Blackfield Inc & Exp A/c,24/02/2020,3110700749,589.40,OCC One Time Vendor
http://statistics.data.gov.uk/id/local-authority/38,Oxfordshire County Council,SEN TRANSPORT,5227,Other Transport Arrangements,13/02/2020,3110697310,590.00,Thunderbird Transport Ltd
http://statistics.data.gov.uk/id/local-authority/38,Oxfordshire County Council,Planned preventative Maintenance,3787,Premises Repairs,14/02/2020,2200736399,590.00,Timberwise (UK) Ltd
http://statistics.data.gov.uk/id/local-authority/38,Oxfordshire County Council,Support at Home 65+ Physical Support,5689,,04/02/2020,3110689017,590.60,PLL Care Services
http://statistics.data.gov.uk/id/local-authority/38,Oxfordshire County Council,Support at Home 65+ Physical Support,5696,,11/02/2020,3110691057,590.86,Orders of St John Care Trust
http://statistics.data.gov.uk/id/local-authority/38,Oxfordshire County Council,"Banbury CC, Hilton Road",4525,Furniture,11/02/2020,2200734419,590.91,Bates Office
http://statistics.data.gov.uk/id/local-authority/38,Oxfordshire County Council,CAMERA ENFORCEMENT,4494,Purchase of IT Equipment,03/02/2020,2200731329,590.92,EUROPEAN ELECTRONIQUE LTD
http://statistics.data.gov.uk/id/local-authority/38,Oxfordshire County Council,Support at Home 65+ Mental Health,5899,Social Care - Direct Payments,18/02/2020,3110697786,591.00,Redacted Personal Data
http://statistics.data.gov.uk/id/local-authority/38,Oxfordshire County Council,Support at Home 65+ Learning Disability,5682,,12/02/2020,3110691609,591.37,The Brandon Trust
http://statistics.data.gov.uk/id/local-authority/38,Oxfordshire County Council,VOIDS/VACANCY COSTS,3945,Rent,12/02/2020,3110695298,591.48,Oxford Citizens Housing Association
http://statistics.data.gov.uk/id/local-authority/38,Oxfordshire County Council,2 YEAR OLD FUNDING,5537,Payments to Other Establishments,20/02/2020,3110700144,592.02,Early Days Nursery Schoo
http://statistics.data.gov.uk/id/local-authority/38,Oxfordshire County Council,Support at Home U65 Learning Disability,5690,,12/02/2020,3110692539,592.47,Mencap Contracts
http://statistics.data.gov.uk/id/local-authority/38,Oxfordshire County Council,Support at Home U65 Physical Support,5899,Social Care - Direct Payments,18/02/2020,3110698438,593.84,Purple Conversation Com In Co (DP)
http://statistics.data.gov.uk/id/local-authority/38,Oxfordshire County Council,Support at Home U65 Mental Health,5899,Social Care - Direct Payments,18/02/2020,3110698675,594.00,Purple Conversation Com In Co (DP)
http://statistics.data.gov.uk/id/local-authority/38,Oxfordshire County Council,SEN TRANSPORT,5227,Other Transport Arrangements,11/02/2020,3110691317,594.00,R & S Travel Services Ltd T/A A 2 Z
http://statistics.data.gov.uk/id/local-authority/38,Oxfordshire County Council,LIBRARY COLLECTIONS,4539,"Books, DVDs and CDs",21/02/2020,2200738348,594.15,Books Asia Ltd
http://statistics.data.gov.uk/id/local-authority/38,Oxfordshire County Council,Support at Home 65+ Physical Support,5693,,12/02/2020,3110692367,594.39,Bicester PA and Care LLP
http://statistics.data.gov.uk/id/local-authority/38,Oxfordshire County Council,South FSS Statutory - Didcot,4070,Cleaning services,17/02/2020,2200737316,595.00,Helping Hands for Hoarders
http://statistics.data.gov.uk/id/local-authority/38,Oxfordshire County Council,Support at Home U65 Learning Disability,5682,,12/02/2020,3110691651,595.16,The Brandon Trust
http://statistics.data.gov.uk/id/local-authority/38,Oxfordshire County Council,Support at Home 65+ Physical Support,5689,,04/02/2020,3110688174,595.51,Alina Homecare
http://statistics.data.gov.uk/id/local-authority/38,Oxfordshire County Council,ECH Central Costs,5688,,12/02/2020,3110692768,595.91,Orders of St John Care Trust
http://statistics.data.gov.uk/id/local-authority/38,Oxfordshire County Council,Support at Home U65 Learning Disability,5899,Social Care - Direct Payments,18/02/2020,3110697929,595.92,Purple Conversation Com In Co (DP)
http://statistics.data.gov.uk/id/local-authority/38,Oxfordshire County Council,Support at Home U65 Physical Support,5899,Social Care - Direct Payments,18/02/2020,3110697838,596.00,Purple Conversation Com In Co (DP)
http://statistics.data.gov.uk/id/local-authority/38,Oxfordshire County Council,Support at Home U65 Physical Support,5899,Social Care - Direct Payments,18/02/2020,3110698369,596.08,Purple Conversation Com In Co (DP)
http://statistics.data.gov.uk/id/local-authority/38,Oxfordshire County Council,2 YEAR OLD FUNDING,5537,Payments to Other Establishments,20/02/2020,3110700106,596.16,Brize Norton Village Pre
http://statistics.data.gov.uk/id/local-authority/38,Oxfordshire County Council,2 YEAR OLD FUNDING,5537,Payments to Other Establishments,20/02/2020,3110700224,596.16,Queensdown Nursery School
http://statistics.data.gov.uk/id/local-authority/38,Oxfordshire County Council,SEN TRANSPORT,5227,Other Transport Arrangements,26/02/2020,3110702493,596.40,C&M Management Services Ltd
http://statistics.data.gov.uk/id/local-authority/38,Oxfordshire County Council,Support at Home U65 Learning Disability,5690,,12/02/2020,3110692623,596.57,MacIntyre Care (Womaston)
http://statistics.data.gov.uk/id/local-authority/38,Oxfordshire County Council,Delegated Health Tasks  - Under 65,5691,,03/02/2020,3110688012,596.84,Bluebird Care (Oxford South & West)
http://statistics.data.gov.uk/id/local-authority/38,Oxfordshire County Council,Delegated Health Tasks  - Over 65,5691,,03/02/2020,3110688027,596.84,Bluebird Care (Oxford South & West)
http://statistics.data.gov.uk/id/local-authority/38,Oxfordshire County Council,Delegated Health Tasks  - Over 65,5691,,17/02/2020,3110697494,596.84,Bluebird Care (Oxford South & West)
http://statistics.data.gov.uk/id/local-authority/38,Oxfordshire County Council,Support at Home U65 Physical Support,5698,,26/02/2020,3110702731,597.45,Charterville Care At Home Ltd
http://statistics.data.gov.uk/id/local-authority/38,Oxfordshire County Council,Support at Home U65 Mental Health,5689,,04/02/2020,3110688458,598.18,Casa Care Ltd
http://statistics.data.gov.uk/id/local-authority/38,Oxfordshire County Council,ContrO ASC Payments Control Account,5554,Childrens' Social Care - Direct Payments,25/02/2020,3110701136,598.26,Redacted Personal Data
http://statistics.data.gov.uk/id/local-authority/38,Oxfordshire County Council,Support at Home 65+ Physical Support,5698,,26/02/2020,3110702883,598.58,Day & Night Care Assistance
http://statistics.data.gov.uk/id/local-authority/38,Oxfordshire County Council,ECH Central Costs,5688,,12/02/2020,3110692765,598.60,Orders of St John Care Trust
http://statistics.data.gov.uk/id/local-authority/38,Oxfordshire County Council,Support at Home 65+ Physical Support,5698,,26/02/2020,3110702822,598.64,Charterville Care At Home Ltd
http://statistics.data.gov.uk/id/local-authority/38,Oxfordshire County Council,SHARED LIVES,5555,Payments to Carers,12/02/2020,3110692861,598.73,Redacted Personal Data
http://statistics.data.gov.uk/id/local-authority/38,Oxfordshire County Council,Support at Home 65+ Physical Support,5689,,04/02/2020,3110688292,598.84,Amber Healthcare Personnel Ltd
http://statistics.data.gov.uk/id/local-authority/38,Oxfordshire County Council,Health Acquired Brain Injury C Homes U65,5691,,17/02/2020,3110697507,599.99,Oakleaf (Hartwell) Ltd
http://statistics.data.gov.uk/id/local-authority/38,Oxfordshire County Council,SEN TRANSPORT,5227,Other Transport Arrangements,05/02/2020,3110689906,600.00,Airport Transfers Banbury Ltd
http://statistics.data.gov.uk/id/local-authority/38,Oxfordshire County Council,LEGAL SERVICES,5251,Legal Costs,13/02/2020,2200735999,600.00,Alison Williams
http://statistics.data.gov.uk/id/local-authority/38,Oxfordshire County Council,LOOKED AFTER SOUTH,5227,Other Transport Arrangements,05/02/2020,3110690075,600.00,Black and White Cars T/A Banbury Ta
http://statistics.data.gov.uk/id/local-authority/38,Oxfordshire County Council,SEN TRANSPORT,5227,Other Transport Arrangements,11/02/2020,3110691364,600.00,Crown Cabs Travel Ltd
http://statistics.data.gov.uk/id/local-authority/38,Oxfordshire County Council,SEN TRANSPORT,5227,Other Transport Arrangements,11/02/2020,3110691379,600.00,Crown Cabs Travel Ltd
http://statistics.data.gov.uk/id/local-authority/38,Oxfordshire County Council,SEN TRANSPORT,5227,Other Transport Arrangements,11/02/2020,3110691392,600.00,Crown Cabs Travel Ltd
http://statistics.data.gov.uk/id/local-authority/38,Oxfordshire County Council,SEN TRANSPORT,5227,Other Transport Arrangements,26/02/2020,3110702587,600.00,Crown Cabs Travel Ltd
http://statistics.data.gov.uk/id/local-authority/38,Oxfordshire County Council,Support at Home 65+ Mental Health,5899,Social Care - Direct Payments,18/02/2020,3110697788,600.00,Redacted Personal Data
http://statistics.data.gov.uk/id/local-authority/38,Oxfordshire County Council,MAINSTREAM-PRIMARY,4330,Transport to School Activities,05/02/2020,3110690058,600.00,Go Green Taxis
http://statistics.data.gov.uk/id/local-authority/38,Oxfordshire County Council,MAINSTREAM-PRIMARY,4330,Transport to School Activities,05/02/2020,3110690070,600.00,Go Green Taxis
http://statistics.data.gov.uk/id/local-authority/38,Oxfordshire County Council,LAC PUPIL PREMIUM,5537,Payments to Other Establishments,18/02/2020,3110697591,600.00,Keys Group
http://statistics.data.gov.uk/id/local-authority/38,Oxfordshire County Council,SEN TRANSPORT,5227,Other Transport Arrangements,12/02/2020,3110692230,600.00,Luxicars Ltd
http://statistics.data.gov.uk/id/local-authority/38,Oxfordshire County Council,LEGAL SERVICES,5251,Legal Costs,11/02/2020,2200734895,600.00,Miss Chloe Wilkins
http://statistics.data.gov.uk/id/local-authority/38,Oxfordshire County Council,Delegated Health Tasks  - Over 65,5691,,18/02/2020,3110697638,600.00,OCC One Time Vendor
http://statistics.data.gov.uk/id/local-authority/38,Oxfordshire County Council,,1441,Uncleared Misc Income Receipts,21/02/2020,3110700744,600.00,OCC One Time Vendor
http://statistics.data.gov.uk/id/local-authority/38,Oxfordshire County Council,Councillors Priorities Fund,4940,Other Services,06/02/2020,3110690274,600.00,Oxford City Farm
http://statistics.data.gov.uk/id/local-authority/38,Oxfordshire County Council,SEN TRANSPORT,5227,Other Transport Arrangements,26/02/2020,3110703194,600.00,Oxfordshire Travel Ltd
http://statistics.data.gov.uk/id/local-authority/38,Oxfordshire County Council,SEN TRANSPORT,5227,Other Transport Arrangements,26/02/2020,3110703204,600.00,Oxfordshire Travel Ltd
http://statistics.data.gov.uk/id/local-authority/38,Oxfordshire County Council,SEN TRANSPORT,5227,Other Transport Arrangements,20/02/2020,3110700435,600.00,Oxon Transport Services Ltd
http://statistics.data.gov.uk/id/local-authority/38,Oxfordshire County Council,SEN TRANSPORT,5227,Other Transport Arrangements,20/02/2020,3110700441,600.00,Oxon Transport Services Ltd
http://statistics.data.gov.uk/id/local-authority/38,Oxfordshire County Council,SEN TRANSPORT,5227,Other Transport Arrangements,20/02/2020,3110700493,600.00,Oxon Transport Services Ltd
http://statistics.data.gov.uk/id/local-authority/38,Oxfordshire County Council,Support at Home U65 Learning Disability,5899,Social Care - Direct Payments,18/02/2020,3110697850,600.00,Purple Conversation Com In Co (DP)
http://statistics.data.gov.uk/id/local-authority/38,Oxfordshire County Council,Support at Home U65 Learning Disability,5899,Social Care - Direct Payments,18/02/2020,3110698010,600.00,Purple Conversation Com In Co (DP)
http://statistics.data.gov.uk/id/local-authority/38,Oxfordshire County Council,Support at Home 65+ Physical Support,5899,Social Care - Direct Payments,18/02/2020,3110698309,600.00,Purple Conversation Com In Co (DP)
http://statistics.data.gov.uk/id/local-authority/38,Oxfordshire County Council,Support at Home U65 Physical Support,5899,Social Care - Direct Payments,18/02/2020,3110698316,600.00,Purple Conversation Com In Co (DP)
http://statistics.data.gov.uk/id/local-authority/38,Oxfordshire County Council,Support at Home U65 Learning Disability,5899,Social Care - Direct Payments,18/02/2020,3110698522,600.00,Purple Conversation Com In Co (DP)
http://statistics.data.gov.uk/id/local-authority/38,Oxfordshire County Council,Support at Home U65 Learning Disability,5899,Social Care - Direct Payments,18/02/2020,3110698524,600.00,Purple Conversation Com In Co (DP)
http://statistics.data.gov.uk/id/local-authority/38,Oxfordshire County Council,Support at Home U65 Learning Disability,5899,Social Care - Direct Payments,18/02/2020,3110698644,600.00,Purple Conversation Com In Co (DP)
http://statistics.data.gov.uk/id/local-authority/38,Oxfordshire County Council,Support at Home 65+ Learning Disability,5899,Social Care - Direct Payments,18/02/2020,3110698936,600.00,Purple Conversation Com In Co (DP)
http://statistics.data.gov.uk/id/local-authority/38,Oxfordshire County Council,LAC PUPIL PREMIUM,5537,Payments to Other Establishments,18/02/2020,3110697587,600.00,The Collett School
http://statistics.data.gov.uk/id/local-authority/38,Oxfordshire County Council,CSC MAIN TEAM,4342,Staff Use of Public Transport,05/02/2020,2200732468,600.00,The Oxfordshire Taxi Company Ltd T/
http://statistics.data.gov.uk/id/local-authority/38,Oxfordshire County Council,Contingency Home Care,5689,,04/02/2020,3110688946,600.03,Oxford University Hospitals NHS FT
http://statistics.data.gov.uk/id/local-authority/38,Oxfordshire County Council,Support at Home 65+ Physical Support,5696,,11/02/2020,3110691148,600.04,Orders of St John Care Trust
http://statistics.data.gov.uk/id/local-authority/38,Oxfordshire County Council,Support at Home 65+ Physical Support,5689,,04/02/2020,3110688769,600.18,My Carer Ltd
http://statistics.data.gov.uk/id/local-authority/38,Oxfordshire County Council,Delegated Health Tasks  - Under 65,5691,,25/02/2020,3110701035,600.35,Bluebird Care (Oxford South & West)
http://statistics.data.gov.uk/id/local-authority/38,Oxfordshire County Council,SM DISABILITIES,5554,Childrens' Social Care - Direct Payments,25/02/2020,3110701267,600.93,Redacted Personal Data
http://statistics.data.gov.uk/id/local-authority/38,Oxfordshire County Council,Support at Home 65+ Memory & Cognition,5689,,04/02/2020,3110688735,601.51,Home Helpers Care Ltd
http://statistics.data.gov.uk/id/local-authority/38,Oxfordshire County Council,40 THE MOORS,5227,Other Transport Arrangements,12/02/2020,2200735421,602.04,The Oxfordshire Taxi Company Ltd T/
http://statistics.data.gov.uk/id/local-authority/38,Oxfordshire County Council,Support at Home U65 Physical Support,5696,,11/02/2020,3110691135,602.08,Orders of St John Care Trust
http://statistics.data.gov.uk/id/local-authority/38,Oxfordshire County Council,Support at Home U65 Physical Support,5696,,26/02/2020,3110702304,602.08,Orders of St John Care Trust
http://statistics.data.gov.uk/id/local-authority/38,Oxfordshire County Council,SEN TRANSPORT,5227,Other Transport Arrangements,26/02/2020,3110702611,602.30,AKR Ltd
http://statistics.data.gov.uk/id/local-authority/38,Oxfordshire County Council,Support at Home 65+ Physical Support,5696,,11/02/2020,3110691098,602.86,Orders of St John Care Trust
http://statistics.data.gov.uk/id/local-authority/38,Oxfordshire County Council,Support at Home 65+ Physical Support,5696,,26/02/2020,3110702266,602.86,Orders of St John Care Trust
http://statistics.data.gov.uk/id/local-authority/38,Oxfordshire County Council,Support at Home 65+ Mental Health,5689,,04/02/2020,3110688695,604.37,Harino Care
http://statistics.data.gov.uk/id/local-authority/38,Oxfordshire County Council,Support at Home 65+ Physical Support,5689,,04/02/2020,3110689010,604.42,PLL Care Services
http://statistics.data.gov.uk/id/local-authority/38,Oxfordshire County Council,Support at Home U65 Sensory Support,5899,Social Care - Direct Payments,18/02/2020,3110698173,604.80,Purple Conversation Com In Co (DP)
http://statistics.data.gov.uk/id/local-authority/38,Oxfordshire County Council,Support at Home U65 Autism /Abated,5899,Social Care - Direct Payments,18/02/2020,3110698462,605.08,Redacted Personal Data
http://statistics.data.gov.uk/id/local-authority/38,Oxfordshire County Council,Support at Home 65+ Physical Support,5689,,04/02/2020,3110688723,605.88,Home Helpers Care Ltd
http://statistics.data.gov.uk/id/local-authority/38,Oxfordshire County Council,Support at Home 65+ Physical Support,5689,,04/02/2020,3110689034,607.21,PLL Care Services
http://statistics.data.gov.uk/id/local-authority/38,Oxfordshire County Council,Support at Home U65 Physical Support,5689,,04/02/2020,3110688328,607.75,Care Outlook Ltd
http://statistics.data.gov.uk/id/local-authority/38,Oxfordshire County Council,Support at Home 65+ Physical Support,5689,,04/02/2020,3110689046,607.98,PLL Care Services
http://statistics.data.gov.uk/id/local-authority/38,Oxfordshire County Council,SEN TRANSPORT,5227,Other Transport Arrangements,11/02/2020,3110691344,608.00,1St Taxis
http://statistics.data.gov.uk/id/local-authority/38,Oxfordshire County Council,Support at Home 65+ Physical Support,5689,,04/02/2020,3110689038,608.32,PLL Care Services
http://statistics.data.gov.uk/id/local-authority/38,Oxfordshire County Council,LIBRARY COLLECTIONS,4539,"Books, DVDs and CDs",03/02/2020,3110687906,608.80,ASKEWS & HOLTS LIBRARY SERVICES LTD
http://statistics.data.gov.uk/id/local-authority/38,Oxfordshire County Council,Support at Home U65 Learning Disability,5688,,12/02/2020,3110692752,608.83,ADVANCE HOUSING & SUPPORT LTD
http://statistics.data.gov.uk/id/local-authority/38,Oxfordshire County Council,Support at Home U65 Learning Disability,5688,,12/02/2020,3110692755,608.83,ADVANCE HOUSING & SUPPORT LTD
http://statistics.data.gov.uk/id/local-authority/38,Oxfordshire County Council,Support at Home 65+ Learning Disability,5688,,12/02/2020,3110693828,608.83,Mencap Contracts
http://statistics.data.gov.uk/id/local-authority/38,Oxfordshire County Council,Support at Home U65 Learning Disability,5688,,12/02/2020,3110693947,608.83,Mencap Contracts
http://statistics.data.gov.uk/id/local-authority/38,Oxfordshire County Council,Support at Home U65 Learning Disability,5688,,12/02/2020,3110694017,608.83,Mencap Contracts
http://statistics.data.gov.uk/id/local-authority/38,Oxfordshire County Council,Support at Home 65+ Physical Support,5696,,26/02/2020,3110702193,609.23,Orders of St John Care Trust
http://statistics.data.gov.uk/id/local-authority/38,Oxfordshire County Council,Early Years SEN Funding,5537,Payments to Other Establishments,26/02/2020,3110703304,609.58,Bicester Learning Academy
http://statistics.data.gov.uk/id/local-authority/38,Oxfordshire County Council,Support at Home 65+ Physical Support,5698,,26/02/2020,3110702788,609.77,Charterville Care At Home Ltd
http://statistics.data.gov.uk/id/local-authority/38,Oxfordshire County Council,Support at Home 65+ Physical Support,5698,,26/02/2020,3110702933,609.97,Day & Night Care Assistance
http://statistics.data.gov.uk/id/local-authority/38,Oxfordshire County Council,AGENCY RESID - DISAB,5545,B*Fostering Enhancements - Level 2,18/02/2020,3110699653,610.10,Redacted Personal Data
http://statistics.data.gov.uk/id/local-authority/38,Oxfordshire County Council,Support at Home U65 MH OBC Contract,5689,,04/02/2020,3110689107,610.34,Response Organisation
http://statistics.data.gov.uk/id/local-authority/38,Oxfordshire County Council,Support at Home U65 MH OBC Contract,5689,,04/02/2020,3110689113,610.34,Response Organisation
http://statistics.data.gov.uk/id/local-authority/38,Oxfordshire County Council,Support at Home 65+ Physical Support,5689,,04/02/2020,3110688626,610.66,Greigcare Home Service
http://statistics.data.gov.uk/id/local-authority/38,Oxfordshire County Council,ROW MAINT,4531,Materials,13/02/2020,2200735974,610.92,C J Clarke (Timber Merchants) Ltd
http://statistics.data.gov.uk/id/local-authority/38,Oxfordshire County Council,Support at Home 65+ Physical Support,5689,,04/02/2020,3110688658,611.01,Greigcare Home Service
http://statistics.data.gov.uk/id/local-authority/38,Oxfordshire County Council,Support at Home 65+ Physical Support,5689,,04/02/2020,3110688418,611.35,Caremark (West Oxfordshire & Cherwe
http://statistics.data.gov.uk/id/local-authority/38,Oxfordshire County Council,,1448,Blackfield Inc & Exp A/c,11/02/2020,3110690895,611.90,OCC One Time Vendor
http://statistics.data.gov.uk/id/local-authority/38,Oxfordshire County Council,NHS HEALTHCHECK PROG,4933,,03/02/2020,3110688251,612.00,Charlbury Surgery
http://statistics.data.gov.uk/id/local-authority/38,Oxfordshire County Council,Support at Home U65 Learning Disability,5899,Social Care - Direct Payments,18/02/2020,3110698609,612.00,Redacted Personal Data
http://statistics.data.gov.uk/id/local-authority/38,Oxfordshire County Council,SEN TRANSPORT,5227,Other Transport Arrangements,20/02/2020,3110700680,612.00,Oxon Transport Services Ltd
http://statistics.data.gov.uk/id/local-authority/38,Oxfordshire County Council,Support at Home U65 Physical Support,5899,Social Care - Direct Payments,18/02/2020,3110698789,612.00,Purple Conversation Com In Co (DP)
http://statistics.data.gov.uk/id/local-authority/38,Oxfordshire County Council,MUSEUMS COLLECTIONS,4940,Other Services,11/02/2020,2200734833,612.13,Restore plc
http://statistics.data.gov.uk/id/local-authority/38,Oxfordshire County Council,Support at Home U65 Physical Support,5689,,04/02/2020,3110688192,612.16,Alina Homecare
http://statistics.data.gov.uk/id/local-authority/38,Oxfordshire County Council,SEN Miscellaneous Expenditure,4861,Hired and Contracted Services,03/02/2020,2200731583,612.64,Teaching Personnel Ltd
http://statistics.data.gov.uk/id/local-authority/38,Oxfordshire County Council,Support at Home 65+ Physical Support,5698,,26/02/2020,3110702807,612.67,Charterville Care At Home Ltd
http://statistics.data.gov.uk/id/local-authority/38,Oxfordshire County Council,Support at Home 65+ Learning Disability,5689,,04/02/2020,3110689078,613.32,Premier Personal Care
http://statistics.data.gov.uk/id/local-authority/38,Oxfordshire County Council,Support at Home U65 Physical Support,5698,,26/02/2020,3110702598,613.54,Acquire Care Ltd
http://statistics.data.gov.uk/id/local-authority/38,Oxfordshire County Council,Support at Home 65+ Physical Support,5696,,11/02/2020,3110691086,613.82,Orders of St John Care Trust
http://statistics.data.gov.uk/id/local-authority/38,Oxfordshire County Council,Support at Home 65+ Mental Health,5696,,26/02/2020,3110702187,613.82,Orders of St John Care Trust
http://statistics.data.gov.uk/id/local-authority/38,Oxfordshire County Council,Continuing Care - Support at Home - U65,5691,,03/02/2020,3110687978,613.98,B CARERS LTD
http://statistics.data.gov.uk/id/local-authority/38,Oxfordshire County Council,Support at Home 65+ Physical Support,5698,,26/02/2020,3110702902,614.36,Day & Night Care Assistance
http://statistics.data.gov.uk/id/local-authority/38,Oxfordshire County Council,Support at Home 65+ Physical Support,5698,,26/02/2020,3110702773,614.64,Charterville Care At Home Ltd
http://statistics.data.gov.uk/id/local-authority/38,Oxfordshire County Council,Support at Home 65+ Physical Support,5696,,11/02/2020,3110691017,615.46,Orders of St John Care Trust
http://statistics.data.gov.uk/id/local-authority/38,Oxfordshire County Council,Support at Home U65 Other /Soc Isolation,5690,,12/02/2020,3110692624,615.59,MacIntyre Care (Womaston)
http://statistics.data.gov.uk/id/local-authority/38,Oxfordshire County Council,SEN TRANSPORT,4320,Pupil / Client Travel Reimbursement,17/02/2020,3110697537,615.68,Redacted Personal Data
http://statistics.data.gov.uk/id/local-authority/38,Oxfordshire County Council,SEN TRANSPORT,4320,Pupil / Client Travel Reimbursement,20/02/2020,3110700522,615.68,Redacted Personal Data
http://statistics.data.gov.uk/id/local-authority/38,Oxfordshire County Council,Support at Home U65 Physical Support,5899,Social Care - Direct Payments,18/02/2020,3110698556,615.84,Purple Conversation Com In Co (DP)
http://statistics.data.gov.uk/id/local-authority/38,Oxfordshire County Council,GYPSY & TRAVELLER SV,4940,Other Services,12/02/2020,2200734967,616.00,Advanced Pest Control Ltd
http://statistics.data.gov.uk/id/local-authority/38,Oxfordshire County Council,SEN TRANSPORT,4320,Pupil / Client Travel Reimbursement,04/02/2020,3110690134,616.00,Redacted Personal Data
http://statistics.data.gov.uk/id/local-authority/38,Oxfordshire County Council,Support at Home 65+ Physical Support,5899,Social Care - Direct Payments,18/02/2020,3110697881,616.00,Purple Conversation Com In Co (DP)
http://statistics.data.gov.uk/id/local-authority/38,Oxfordshire County Council,Support at Home U65 Physical Support,5899,Social Care - Direct Payments,18/02/2020,3110698586,616.00,Purple Conversation Com In Co (DP)
http://statistics.data.gov.uk/id/local-authority/38,Oxfordshire County Council,Support at Home 65+ Mental Health,5899,Social Care - Direct Payments,18/02/2020,3110698598,616.00,Purple Conversation Com In Co (DP)
http://statistics.data.gov.uk/id/local-authority/38,Oxfordshire County Council,Support at Home 65+ Physical Support,5689,,04/02/2020,3110688315,616.19,Care Outlook Ltd
http://statistics.data.gov.uk/id/local-authority/38,Oxfordshire County Council,Support at Home 65+ Physical Support,5689,,04/02/2020,3110689043,616.45,PLL Care Services
http://statistics.data.gov.uk/id/local-authority/38,Oxfordshire County Council,Support at Home 65+ Other /Soc Isolation,5689,,04/02/2020,3110688325,616.56,Care Outlook Ltd
http://statistics.data.gov.uk/id/local-authority/38,Oxfordshire County Council,Support at Home U65 Learning Disability,5899,Social Care - Direct Payments,18/02/2020,3110698563,616.88,Redacted Personal Data
http://statistics.data.gov.uk/id/local-authority/38,Oxfordshire County Council,Support at Home 65+ Physical Support,5698,,26/02/2020,3110703103,616.89,Oxford Private Care
http://statistics.data.gov.uk/id/local-authority/38,Oxfordshire County Council,Support at Home 65+ Physical Support,5698,,26/02/2020,3110702804,617.69,Charterville Care At Home Ltd
http://statistics.data.gov.uk/id/local-authority/38,Oxfordshire County Council,FAM GRP CONFERENCES,5668,Technical and Professional Consultant F,28/02/2020,2200741245,617.73,Emma Wood
http://statistics.data.gov.uk/id/local-authority/38,Oxfordshire County Council,Support at Home U65 Physical Support,5689,,04/02/2020,3110688653,617.73,Greigcare Home Service
http://statistics.data.gov.uk/id/local-authority/38,Oxfordshire County Council,Support at Home 65+ Physical Support,5693,,19/02/2020,3110699911,618.38,Care with Care Ltd
http://statistics.data.gov.uk/id/local-authority/38,Oxfordshire County Council,Support at Home 65+ Mental Health,5696,,11/02/2020,3110691019,618.42,Orders of St John Care Trust
http://statistics.data.gov.uk/id/local-authority/38,Oxfordshire County Council,Support at Home 65+ Physical Support,5696,,11/02/2020,3110691021,618.42,Orders of St John Care Trust
http://statistics.data.gov.uk/id/local-authority/38,Oxfordshire County Council,Support at Home 65+ Physical Support,5696,,11/02/2020,3110691026,618.42,Orders of St John Care Trust
http://statistics.data.gov.uk/id/local-authority/38,Oxfordshire County Council,Support at Home 65+ Physical Support,5696,,11/02/2020,3110691087,618.42,Orders of St John Care Trust
http://statistics.data.gov.uk/id/local-authority/38,Oxfordshire County Council,Support at Home 65+ Physical Support,5696,,26/02/2020,3110702189,618.42,Orders of St John Care Trust
http://statistics.data.gov.uk/id/local-authority/38,Oxfordshire County Council,Support at Home 65+ Physical Support,5696,,26/02/2020,3110702254,618.42,Orders of St John Care Trust
http://statistics.data.gov.uk/id/local-authority/38,Oxfordshire County Council,Support at Home 65+ Physical Support,5696,,26/02/2020,3110702317,618.42,Orders of St John Care Trust
http://statistics.data.gov.uk/id/local-authority/38,Oxfordshire County Council,Contingency Home Care,5689,,04/02/2020,3110688911,618.70,Oxford University Hospitals NHS FT
http://statistics.data.gov.uk/id/local-authority/38,Oxfordshire County Council,Support at Home 65+ Learning Disability,5693,,05/02/2020,3110690165,618.75,HF TRUST Ltd
http://statistics.data.gov.uk/id/local-authority/38,Oxfordshire County Council,Support at Home U65 Learning Disability,5899,Social Care - Direct Payments,18/02/2020,3110698458,619.17,Redacted Personal Data
http://statistics.data.gov.uk/id/local-authority/38,Oxfordshire County Council,Support at Home U65 Learning Disability,5899,Social Care - Direct Payments,18/02/2020,3110698456,619.17,Redacted Personal Data
http://statistics.data.gov.uk/id/local-authority/38,Oxfordshire County Council,LIBRARY COLLECTIONS,4539,"Books, DVDs and CDs",03/02/2020,3110687849,619.53,ASKEWS & HOLTS LIBRARY SERVICES LTD
http://statistics.data.gov.uk/id/local-authority/38,Oxfordshire County Council,Support at Home U65 MH OBC Contract,5691,,04/02/2020,3110688128,620.00,EXTREME ENVIRONMENTAL SERVICES LTD
http://statistics.data.gov.uk/id/local-authority/38,Oxfordshire County Council,Support at Home 65+ Physical Support,5899,Social Care - Direct Payments,18/02/2020,3110698186,620.00,Redacted Personal Data
http://statistics.data.gov.uk/id/local-authority/38,Oxfordshire County Council,Support at Home 65+ Physical Support,5899,Social Care - Direct Payments,18/02/2020,3110697879,620.00,Purple Conversation Com In Co (DP)
http://statistics.data.gov.uk/id/local-authority/38,Oxfordshire County Council,Support at Home 65+ Physical Support,5899,Social Care - Direct Payments,18/02/2020,3110698988,620.00,Purple Conversation Com In Co (DP)
http://statistics.data.gov.uk/id/local-authority/38,Oxfordshire County Council,Support at Home U65 Learning Disability,5696,,11/02/2020,3110691146,620.45,Orders of St John Care Trust
http://statistics.data.gov.uk/id/local-authority/38,Oxfordshire County Council,CHC Fast Track - Sup at Homes - Over 65,5691,,17/02/2020,3110697455,621.00,Bucks Country Homecare
http://statistics.data.gov.uk/id/local-authority/38,Oxfordshire County Council,Planned preventative Maintenance,3787,Premises Repairs,12/02/2020,2200735274,621.00,R J Lift Services Ltd
http://statistics.data.gov.uk/id/local-authority/38,Oxfordshire County Council,Support at Home 65+ Physical Support,5698,,26/02/2020,3110703083,621.50,Oxford Private Care
http://statistics.data.gov.uk/id/local-authority/38,Oxfordshire County Council,TIDMARSH LANE,4111,Security Costs,05/02/2020,2200732421,621.50,Securipol Ltd
http://statistics.data.gov.uk/id/local-authority/38,Oxfordshire County Council,FLETCHERS HOUSE SITE,4070,Cleaning services,06/02/2020,2200732749,622.33,Parker Contract Cleaning
http://statistics.data.gov.uk/id/local-authority/38,Oxfordshire County Council,Support at Home 65+ Physical Support,5693,,26/02/2020,3110702436,622.34,Allied Health-Services Limited
http://statistics.data.gov.uk/id/local-authority/38,Oxfordshire County Council,TRAFF SIGNALS MTCE,5526,Payments to Private Contractors,07/02/2020,2200733607,622.46,TELENT
http://statistics.data.gov.uk/id/local-authority/38,Oxfordshire County Council,CORONER,5202,Use of Mortuary Services,12/02/2020,2200735314,622.60,Oxford University Hospitals NHS Tru
http://statistics.data.gov.uk/id/local-authority/38,Oxfordshire County Council,FOSTERING MAIN,5549,B*Fostering Allowance - Regulation 38,18/02/2020,3110699730,622.90,Redacted Personal Data
http://statistics.data.gov.uk/id/local-authority/38,Oxfordshire County Council,FAM GRP CONFERENCES,5668,Technical and Professional Consultant F,20/02/2020,2200738217,623.38,Culbone Limited
http://statistics.data.gov.uk/id/local-authority/38,Oxfordshire County Council,Support at Home U65 Physical Support,5899,Social Care - Direct Payments,04/02/2020,3110689512,623.40,Purple Conversation Com In Co (DP)
http://statistics.data.gov.uk/id/local-authority/38,Oxfordshire County Council,Support at Home 65+ Physical Support,5693,,26/02/2020,3110702342,623.48,1st Homecare (Oxford) Ltd
http://statistics.data.gov.uk/id/local-authority/38,Oxfordshire County Council,Support at Home 65+ Other /Soc Isolation,5899,Social Care - Direct Payments,18/02/2020,3110697696,624.00,Redacted Personal Data
http://statistics.data.gov.uk/id/local-authority/38,Oxfordshire County Council,Support at Home 65+ Physical Support,5899,Social Care - Direct Payments,18/02/2020,3110697794,624.00,Purple Conversation Com In Co (DP)
http://statistics.data.gov.uk/id/local-authority/38,Oxfordshire County Council,Support at Home 65+ Physical Support,5899,Social Care - Direct Payments,18/02/2020,3110698582,624.00,Purple Conversation Com In Co (DP)
http://statistics.data.gov.uk/id/local-authority/38,Oxfordshire County Council,Support at Home U65 Physical Support,5899,Social Care - Direct Payments,18/02/2020,3110699094,624.00,Purple Conversation Com In Co (DP)
http://statistics.data.gov.uk/id/local-authority/38,Oxfordshire County Council,Support at Home U65 Learning Disability,5899,Social Care - Direct Payments,18/02/2020,3110698138,624.40,Redacted Personal Data
http://statistics.data.gov.uk/id/local-authority/38,Oxfordshire County Council,Support at Home 65+ Physical Support,5689,,04/02/2020,3110688645,624.81,Greigcare Home Service
http://statistics.data.gov.uk/id/local-authority/38,Oxfordshire County Council,CORONER,5201,Funeral Director Services,13/02/2020,3110697016,625.00,OCC One Time Vendor
http://statistics.data.gov.uk/id/local-authority/38,Oxfordshire County Council,LEGAL SERVICES,5251,Legal Costs,10/02/2020,2200734348,625.00,Oliver Powell (Harcourt)
http://statistics.data.gov.uk/id/local-authority/38,Oxfordshire County Council,Support at Home 65+ Physical Support,5693,,26/02/2020,3110702418,625.24,Risborough Carers Ltd
http://statistics.data.gov.uk/id/local-authority/38,Oxfordshire County Council,Support at Home 65+ Physical Support,5689,,04/02/2020,3110688744,625.42,Lifecarers Limited
http://statistics.data.gov.uk/id/local-authority/38,Oxfordshire County Council,Support at Home 65+ Physical Support,5689,,04/02/2020,3110688450,625.85,Caretree Ltd
http://statistics.data.gov.uk/id/local-authority/38,Oxfordshire County Council,Support at Home 65+ Physical Support,5689,,04/02/2020,3110688331,626.10,Care Outlook Ltd
http://statistics.data.gov.uk/id/local-authority/38,Oxfordshire County Council,Support at Home U65 Physical Support,5689,,04/02/2020,3110688666,626.23,Greigcare Home Service
http://statistics.data.gov.uk/id/local-authority/38,Oxfordshire County Council,SEN TRANSPORT,5227,Other Transport Arrangements,20/02/2020,3110700643,627.00,Oxon Transport Services Ltd
http://statistics.data.gov.uk/id/local-authority/38,Oxfordshire County Council,SEN TRANSPORT,5227,Other Transport Arrangements,20/02/2020,3110700645,627.00,Oxon Transport Services Ltd
http://statistics.data.gov.uk/id/local-authority/38,Oxfordshire County Council,LIBRARY COLLECTIONS,4539,"Books, DVDs and CDs",21/02/2020,3110700907,627.15,ASKEWS & HOLTS LIBRARY SERVICES LTD
http://statistics.data.gov.uk/id/local-authority/38,Oxfordshire County Council,LEGAL BUDGET,5251,Legal Costs,05/02/2020,2200732424,627.17,Forensis Ltd
http://statistics.data.gov.uk/id/local-authority/38,Oxfordshire County Council,Support at Home 65+ Learning Disability,5690,,12/02/2020,3110692597,627.39,Life Path Trust Ltd
http://statistics.data.gov.uk/id/local-authority/38,Oxfordshire County Council,Support at Home U65 Learning Disability,5690,,12/02/2020,3110692606,627.39,Life Path Trust Ltd
http://statistics.data.gov.uk/id/local-authority/38,Oxfordshire County Council,Support at Home 65+ Other /Soc Isolation,5681,,12/02/2020,3110693005,628.00,Orders of St John
http://statistics.data.gov.uk/id/local-authority/38,Oxfordshire County Council,Support at Home 65+ Physical Support,5681,,12/02/2020,3110693207,628.00,Orders of St John
http://statistics.data.gov.uk/id/local-authority/38,Oxfordshire County Council,Support at Home 65+ Memory & Cognition,5681,,12/02/2020,3110694151,628.00,Orders of St John
http://statistics.data.gov.uk/id/local-authority/38,Oxfordshire County Council,Support at Home 65+ Physical Support,5681,,12/02/2020,3110694374,628.00,Orders of St John
http://statistics.data.gov.uk/id/local-authority/38,Oxfordshire County Council,Support at Home 65+ Other /Soc Isolation,5681,,12/02/2020,3110694792,628.00,OSJ Contract - Stirlings
http://statistics.data.gov.uk/id/local-authority/38,Oxfordshire County Council,Support at Home U65 Mental Health,5899,Social Care - Direct Payments,18/02/2020,3110698031,628.00,Purple Conversation Com In Co (DP)
http://statistics.data.gov.uk/id/local-authority/38,Oxfordshire County Council,Support at Home U65 Learning Disability,5899,Social Care - Direct Payments,18/02/2020,3110697966,628.00,Redacted Personal Data
http://statistics.data.gov.uk/id/local-authority/38,Oxfordshire County Council,Support at Home U65 Physical Support,5689,,04/02/2020,3110688759,628.71,Lifecarers Limited
http://statistics.data.gov.uk/id/local-authority/38,Oxfordshire County Council,NHS HEALTHCHECK PROG,4933,,03/02/2020,3110688191,629.00,Jericho Health Centre
http://statistics.data.gov.uk/id/local-authority/38,Oxfordshire County Council,2 YEAR OLD FUNDING,5537,Payments to Other Establishments,20/02/2020,3110700083,629.28,Adderbury Day Nursery
http://statistics.data.gov.uk/id/local-authority/38,Oxfordshire County Council,Support at Home 65+ Physical Support,5689,,04/02/2020,3110688397,629.71,Caremark (West Oxfordshire & Cherwe
http://statistics.data.gov.uk/id/local-authority/38,Oxfordshire County Council,SEN TRANSPORT,4330,Transport to School Activities,05/02/2020,3110690046,630.00,Go Green Taxis
http://statistics.data.gov.uk/id/local-authority/38,Oxfordshire County Council,LOOKED AFTER CITY 2,4330,Transport to School Activities,18/02/2020,3110699749,630.00,Redacted Personal Data
http://statistics.data.gov.uk/id/local-authority/38,Oxfordshire County Council,RESPITE,4330,Transport to School Activities,12/02/2020,3110692336,630.00,Oxon Transport Services Ltd
http://statistics.data.gov.uk/id/local-authority/38,Oxfordshire County Council,Support at Home 65+ Physical Support,5689,,04/02/2020,3110689149,630.59,AVR (Oxon) Ltd
http://statistics.data.gov.uk/id/local-authority/38,Oxfordshire County Council,Contingency Home Care,5689,,04/02/2020,3110688869,630.70,Oxford University Hospitals NHS FT
http://statistics.data.gov.uk/id/local-authority/38,Oxfordshire County Council,Councillors Priorities Fund,4940,Other Services,18/02/2020,3110697661,630.73,Stonesfield Pre-School
http://statistics.data.gov.uk/id/local-authority/38,Oxfordshire County Council,Support at Home 65+ Physical Support,5693,,05/02/2020,3110690221,631.20,VJ Carers Ltd
http://statistics.data.gov.uk/id/local-authority/38,Oxfordshire County Council,Support at Home U65 MH OBC Contract,5689,,04/02/2020,3110689131,632.14,Response Organisation
http://statistics.data.gov.uk/id/local-authority/38,Oxfordshire County Council,Support at Home 65+ Physical Support,5696,,26/02/2020,3110702221,632.20,Orders of St John Care Trust
http://statistics.data.gov.uk/id/local-authority/38,Oxfordshire County Council,Delegated Health Tasks  - Over 65,5691,,03/02/2020,3110688003,632.72,Bluebird Care (Oxford South & West)
http://statistics.data.gov.uk/id/local-authority/38,Oxfordshire County Council,Continuing Care - Support at Home - U65,5691,,03/02/2020,3110688004,632.72,Bluebird Care (Oxford South & West)
http://statistics.data.gov.uk/id/local-authority/38,Oxfordshire County Council,Delegated Health Tasks  - Under 65,5691,,17/02/2020,3110697484,632.72,Bluebird Care (Oxford South & West)
http://statistics.data.gov.uk/id/local-authority/38,Oxfordshire County Council,Delegated Health Tasks  - Over 65,5691,,17/02/2020,3110697489,632.72,Bluebird Care (Oxford South & West)
http://statistics.data.gov.uk/id/local-authority/38,Oxfordshire County Council,Delegated Health Tasks  - Over 65,5691,,17/02/2020,3110697495,632.72,Bluebird Care (Oxford South & West)
http://statistics.data.gov.uk/id/local-authority/38,Oxfordshire County Council,Delegated Health Tasks  - Over 65,5691,,17/02/2020,3110697501,632.72,Bluebird Care (Oxford South & West)
http://statistics.data.gov.uk/id/local-authority/38,Oxfordshire County Council,Support at Home 65+ Physical Support,5698,,26/02/2020,3110702917,632.76,Day & Night Care Assistance
http://statistics.data.gov.uk/id/local-authority/38,Oxfordshire County Council,Support at Home U65 Physical Support,5696,,11/02/2020,3110691006,632.94,Orders of St John Care Trust
http://statistics.data.gov.uk/id/local-authority/38,Oxfordshire County Council,Support at Home U65 Physical Support,5696,,26/02/2020,3110702175,632.94,Orders of St John Care Trust
http://statistics.data.gov.uk/id/local-authority/38,Oxfordshire County Council,Support at Home 65+ Physical Support,5693,,26/02/2020,3110702429,633.22,We-Care-Recruitment Ltd
http://statistics.data.gov.uk/id/local-authority/38,Oxfordshire County Council,FPT CITY,4685,Clothing and Uniforms,26/02/2020,3110701819,633.57,Redacted Personal Data
http://statistics.data.gov.uk/id/local-authority/38,Oxfordshire County Council,Delegated Health Tasks  - Over 65,5691,,25/02/2020,3110701063,634.05,Enable Health Ltd
http://statistics.data.gov.uk/id/local-authority/38,Oxfordshire County Council,Delegated Health Tasks  - Over 65,5691,,10/02/2020,3110690669,634.50,The Caring Company (Oxon)
http://statistics.data.gov.uk/id/local-authority/38,Oxfordshire County Council,Support at Home 65+ Physical Support,5689,,04/02/2020,3110688753,634.69,Lifecarers Limited
http://statistics.data.gov.uk/id/local-authority/38,Oxfordshire County Council,Support at Home U65 Learning Disability,5690,,12/02/2020,3110692600,635.10,Life Path Trust Ltd
http://statistics.data.gov.uk/id/local-authority/38,Oxfordshire County Council,Support at Home 65+ Physical Support,5689,,04/02/2020,3110689004,635.46,PLL Care Services
http://statistics.data.gov.uk/id/local-authority/38,Oxfordshire County Council,Support at Home U65 Learning Disability,5690,,12/02/2020,3110692544,635.93,H F TRUST LTD
http://statistics.data.gov.uk/id/local-authority/38,Oxfordshire County Council,Support at Home 65+ Physical Support,5698,,26/02/2020,3110702748,636.03,Charterville Care At Home Ltd
http://statistics.data.gov.uk/id/local-authority/38,Oxfordshire County Council,Support at Home U65 Learning Disability,5690,,12/02/2020,3110692548,636.09,H F TRUST LTD
http://statistics.data.gov.uk/id/local-authority/38,Oxfordshire County Council,Support at Home 65+ Physical Support,5693,,26/02/2020,3110702424,636.44,We-Care-Recruitment Ltd
http://statistics.data.gov.uk/id/local-authority/38,Oxfordshire County Council,VOIDS/VACANCY COSTS,3945,Rent,12/02/2020,3110695296,636.63,Oxford Citizens Housing Association
http://statistics.data.gov.uk/id/local-authority/38,Oxfordshire County Council,Support at Home U65 Learning Disability,5696,,11/02/2020,3110691155,636.79,Orders of St John Care Trust
http://statistics.data.gov.uk/id/local-authority/38,Oxfordshire County Council,Support at Home U65 Learning Disability,5696,,26/02/2020,3110702324,636.79,Orders of St John Care Trust
http://statistics.data.gov.uk/id/local-authority/38,Oxfordshire County Council,TRANSPORT COSTS,4330,Transport to School Activities,25/02/2020,3110701335,636.95,The Oxfordshire Taxi Company Ltd T/
http://statistics.data.gov.uk/id/local-authority/38,Oxfordshire County Council,Support at Home 65+ Physical Support,5689,,04/02/2020,3110688697,637.70,Harino Care
http://statistics.data.gov.uk/id/local-authority/38,Oxfordshire County Council,Support at Home U65 Physical Support,5899,Social Care - Direct Payments,18/02/2020,3110698862,638.00,Purple Conversation Com In Co (DP)
http://statistics.data.gov.uk/id/local-authority/38,Oxfordshire County Council,Support at Home 65+ Physical Support,5689,,04/02/2020,3110688267,638.47,Allied Health-Services Limited
http://statistics.data.gov.uk/id/local-authority/38,Oxfordshire County Council,Funded Nursing Care  - Over 65,5692,,12/02/2020,3110693175,638.59,Abbey Crest Nursing Home
http://statistics.data.gov.uk/id/local-authority/38,Oxfordshire County Council,Funded Nursing Care  - Over 65,5692,,12/02/2020,3110696694,638.59,Four Seasons (Headington) Ltd
http://statistics.data.gov.uk/id/local-authority/38,Oxfordshire County Council,LAC PUPIL PREMIUM,5537,Payments to Other Establishments,18/02/2020,3110697562,639.00,Cheney School Multi Academy Trust
http://statistics.data.gov.uk/id/local-authority/38,Oxfordshire County Council,Support at Home U65 Learning Disability,5899,Social Care - Direct Payments,18/02/2020,3110698238,639.24,Purple Conversation Com In Co (DP)
http://statistics.data.gov.uk/id/local-authority/38,Oxfordshire County Council,Support at Home U65 Physical Support,5689,,04/02/2020,3110688572,639.51,Genuine Carers Ltd
http://statistics.data.gov.uk/id/local-authority/38,Oxfordshire County Council,PLACEMENTS- RELEVANT,5604,,03/02/2020,3110687928,639.51,Sanctuary Supported Living
http://statistics.data.gov.uk/id/local-authority/38,Oxfordshire County Council,Delegated Health Tasks  - Over 65,5698,,26/02/2020,3110703125,639.58,Oxford Private Care
http://statistics.data.gov.uk/id/local-authority/38,Oxfordshire County Council,TREE MAINT OPS,5526,Payments to Private Contractors,04/02/2020,2200731615,640.00,Acreman's Arboriculture Ltd
http://statistics.data.gov.uk/id/local-authority/38,Oxfordshire County Council,Support at Home 65+ Physical Support,5899,Social Care - Direct Payments,18/02/2020,3110697907,640.00,Redacted Personal Data
http://statistics.data.gov.uk/id/local-authority/38,Oxfordshire County Council,SEN TRANSPORT,5227,Other Transport Arrangements,05/02/2020,3110690120,640.00,Cherwell Cars
http://statistics.data.gov.uk/id/local-authority/38,Oxfordshire County Council,Support at Home U65 Learning Disability,5899,Social Care - Direct Payments,18/02/2020,3110698245,640.00,Redacted Personal Data
http://statistics.data.gov.uk/id/local-authority/38,Oxfordshire County Council,Thame Emergency & Assessment Home,4540,"Educational Supplies, Stationery & Mater",04/02/2020,2200732011,640.00,KG&CL LLOYD
http://statistics.data.gov.uk/id/local-authority/38,Oxfordshire County Council,POST 16 SEN,4330,Transport to School Activities,26/02/2020,3110702627,640.00,Local Cars Kidlington
http://statistics.data.gov.uk/id/local-authority/38,Oxfordshire County Council,Support at Home U65 Physical Support,5899,Social Care - Direct Payments,18/02/2020,3110697747,640.00,Purple Conversation Com In Co (DP)
http://statistics.data.gov.uk/id/local-authority/38,Oxfordshire County Council,Support at Home U65 Learning Disability,5899,Social Care - Direct Payments,18/02/2020,3110698880,640.00,Purple Conversation Com In Co (DP)
http://statistics.data.gov.uk/id/local-authority/38,Oxfordshire County Council,ROAD SAFETY,3103,Other Training Courses and Qualification,14/02/2020,2200736573,640.00,The Bike Academy (South) Ltd
http://statistics.data.gov.uk/id/local-authority/38,Oxfordshire County Council,FAM GRP CONFERENCES,5668,Technical and Professional Consultant F,11/02/2020,2200734937,640.07,Shellie Keen
http://statistics.data.gov.uk/id/local-authority/38,Oxfordshire County Council,FAM GRP CONFERENCES,5668,Technical and Professional Consultant F,11/02/2020,2200734536,640.39,Emma Wood
http://statistics.data.gov.uk/id/local-authority/38,Oxfordshire County Council,Supervised Consumption APL,4934,,01/02/2020,3110690533,640.64,Bliep Chemist
http://statistics.data.gov.uk/id/local-authority/38,Oxfordshire County Council,Supervised Consumption APL,4934,,01/02/2020,3110690557,640.64,Kidlington Pharmacy (Maneph)
http://statistics.data.gov.uk/id/local-authority/38,Oxfordshire County Council,PROPERTY,3357,,27/02/2020,3110703263,641.00,OCC One Time Vendor
http://statistics.data.gov.uk/id/local-authority/38,Oxfordshire County Council,Support at Home 65+ Physical Support,5693,,26/02/2020,3110702407,641.20,Pechiv Ltd
http://statistics.data.gov.uk/id/local-authority/38,Oxfordshire County Council,Support at Home 65+ Physical Support,5698,,26/02/2020,3110702811,642.14,Charterville Care At Home Ltd
http://statistics.data.gov.uk/id/local-authority/38,Oxfordshire County Council,UASC 16&17,5549,B*Fostering Allowance - Regulation 38,18/02/2020,3110699880,642.30,Redacted Personal Data
http://statistics.data.gov.uk/id/local-authority/38,Oxfordshire County Council,Support at Home 65+ Physical Support,5698,,26/02/2020,3110703142,642.42,Oxford Private Care
http://statistics.data.gov.uk/id/local-authority/38,Oxfordshire County Council,Support at Home 65+ Physical Support,5689,,04/02/2020,3110688690,642.67,Harino Care
http://statistics.data.gov.uk/id/local-authority/38,Oxfordshire County Council,Support at Home U65 Physical Support,5899,Social Care - Direct Payments,18/02/2020,3110698044,642.74,Purple Conversation Com In Co (DP)
http://statistics.data.gov.uk/id/local-authority/38,Oxfordshire County Council,COMMUNITY TRANSPORT,5781,Payments to Transport Operators,29/02/2020,3500068683,642.86,Swindon Dial A Ride
http://statistics.data.gov.uk/id/local-authority/38,Oxfordshire County Council,Support at Home U65 Physical Support,5698,,26/02/2020,3110703124,642.87,Oxford Private Care
http://statistics.data.gov.uk/id/local-authority/38,Oxfordshire County Council,Support at Home 65+ Physical Support,5698,,26/02/2020,3110702815,642.91,Charterville Care At Home Ltd
http://statistics.data.gov.uk/id/local-authority/38,Oxfordshire County Council,Support at Home U65 Other /Soc Isolation,5690,,12/02/2020,3110692661,642.97,Turnstyle
http://statistics.data.gov.uk/id/local-authority/38,Oxfordshire County Council,Support at Home 65+ Physical Support,5696,,11/02/2020,3110691085,643.02,Orders of St John Care Trust
http://statistics.data.gov.uk/id/local-authority/38,Oxfordshire County Council,Support at Home 65+ Physical Support,5696,,11/02/2020,3110691116,643.02,Orders of St John Care Trust
http://statistics.data.gov.uk/id/local-authority/38,Oxfordshire County Council,Support at Home 65+ Physical Support,5696,,26/02/2020,3110702253,643.02,Orders of St John Care Trust
http://statistics.data.gov.uk/id/local-authority/38,Oxfordshire County Council,Support at Home U65 Learning Disability,5696,,26/02/2020,3110702315,643.41,Orders of St John Care Trust
http://statistics.data.gov.uk/id/local-authority/38,Oxfordshire County Council,OPERATIONS,4498,Health and Safety Equipment,07/02/2020,2200733256,643.89,BRISTOL UNIFORMS LTD
http://statistics.data.gov.uk/id/local-authority/38,Oxfordshire County Council,SEN TRANSPORT,4330,Transport to School Activities,25/02/2020,3110700924,644.00,BC CARS
http://statistics.data.gov.uk/id/local-authority/38,Oxfordshire County Council,Support at Home U65 Physical Support,5899,Social Care - Direct Payments,18/02/2020,3110698763,644.00,Purple Conversation Com In Co (DP)
http://statistics.data.gov.uk/id/local-authority/38,Oxfordshire County Council,Support at Home U65 Mental Health,5899,Social Care - Direct Payments,18/02/2020,3110698928,644.00,Purple Conversation Com In Co (DP)
http://statistics.data.gov.uk/id/local-authority/38,Oxfordshire County Council,Support at Home 65+ Physical Support,5698,,26/02/2020,3110702939,644.15,Day & Night Care Assistance
http://statistics.data.gov.uk/id/local-authority/38,Oxfordshire County Council,Support at Home 65+ Physical Support,5698,,26/02/2020,3110702969,645.03,Day & Night Care Assistance
http://statistics.data.gov.uk/id/local-authority/38,Oxfordshire County Council,Support at Home U65 Learning Disability,5899,Social Care - Direct Payments,18/02/2020,3110699161,645.24,Redacted Personal Data
http://statistics.data.gov.uk/id/local-authority/38,Oxfordshire County Council,Support at Home 65+ Physical Support,5689,,04/02/2020,3110688332,645.55,Care Outlook Ltd
http://statistics.data.gov.uk/id/local-authority/38,Oxfordshire County Council,SEN TRANSPORT,5227,Other Transport Arrangements,20/02/2020,3110700594,646.00,Oxon Transport Services Ltd
http://statistics.data.gov.uk/id/local-authority/38,Oxfordshire County Council,SEN TRANSPORT,5227,Other Transport Arrangements,20/02/2020,3110700637,646.00,Oxon Transport Services Ltd
http://statistics.data.gov.uk/id/local-authority/38,Oxfordshire County Council,Support at Home U65 Learning Disability,5899,Social Care - Direct Payments,18/02/2020,3110697842,646.12,Purple Conversation Com In Co (DP)
http://statistics.data.gov.uk/id/local-authority/38,Oxfordshire County Council,Support at Home 65+ Physical Support,5899,Social Care - Direct Payments,18/02/2020,3110698332,646.28,Purple Conversation Com In Co (DP)
http://statistics.data.gov.uk/id/local-authority/38,Oxfordshire County Council,Support at Home 65+ Learning Disability,5688,,12/02/2020,3110692783,646.29,ADVANCE HOUSING & SUPPORT LTD
http://statistics.data.gov.uk/id/local-authority/38,Oxfordshire County Council,Support at Home 65+ Physical Support,5899,Social Care - Direct Payments,18/02/2020,3110697815,646.48,Purple Conversation Com In Co (DP)
http://statistics.data.gov.uk/id/local-authority/38,Oxfordshire County Council,Support at Home 65+ Physical Support,5698,,26/02/2020,3110702676,646.80,Bridges Home Care Ltd
http://statistics.data.gov.uk/id/local-authority/38,Oxfordshire County Council,Care Homes - Over 65 Physical Sypport,5687,,12/02/2020,3110695128,647.86,Orders of St John
http://statistics.data.gov.uk/id/local-authority/38,Oxfordshire County Council,COUNTY PRINT FINSHRS,4531,Materials,03/02/2020,2200730945,647.94,Lexon Group
http://statistics.data.gov.uk/id/local-authority/38,Oxfordshire County Council,Support at Home 65+ Physical Support,5899,Social Care - Direct Payments,18/02/2020,3110697851,648.00,Redacted Personal Data
http://statistics.data.gov.uk/id/local-authority/38,Oxfordshire County Council,Support at Home U65 Other /Soc Isolation,5899,Social Care - Direct Payments,18/02/2020,3110697906,648.00,Purple Conversation Com In Co (DP)
http://statistics.data.gov.uk/id/local-authority/38,Oxfordshire County Council,Support at Home 65+ Physical Support,5698,,26/02/2020,3110703148,648.21,Oxford Private Care
http://statistics.data.gov.uk/id/local-authority/38,Oxfordshire County Council,Support at Home 65+ Physical Support,5689,,04/02/2020,3110688407,648.95,Caremark (West Oxfordshire & Cherwe
http://statistics.data.gov.uk/id/local-authority/38,Oxfordshire County Council,CHC Fast Track - Sup at Homes - Over 65,5691,,03/02/2020,3110687956,649.92,Olive Tree Services
http://statistics.data.gov.uk/id/local-authority/38,Oxfordshire County Council,LEGAL SERVICES,5251,Legal Costs,03/02/2020,2200731468,650.00,Aimee Fox
http://statistics.data.gov.uk/id/local-authority/38,Oxfordshire County Council,Support at Home U65 Physical Support,5899,Social Care - Direct Payments,18/02/2020,3110698005,650.00,Redacted Personal Data
http://statistics.data.gov.uk/id/local-authority/38,Oxfordshire County Council,POST18 UASC DCSF FND,3942,Hire of Accommodation and Facilities,26/02/2020,3110701791,650.00,Redacted Personal Data
http://statistics.data.gov.uk/id/local-authority/38,Oxfordshire County Council,DEVELOPMENT WORK,5251,Legal Costs,20/02/2020,3110700369,650.00,OCC One Time Vendor
http://statistics.data.gov.uk/id/local-authority/38,Oxfordshire County Council,Support at Home U65 Physical Support,5899,Social Care - Direct Payments,18/02/2020,3110699066,650.00,Purple Conversation Com In Co (DP)
http://statistics.data.gov.uk/id/local-authority/38,Oxfordshire County Council,VOIDS/VACANCY COSTS,3945,Rent,12/02/2020,3110695294,650.01,Oxford Citizens Housing Association
http://statistics.data.gov.uk/id/local-authority/38,Oxfordshire County Council,Support at Home 65+ Physical Support,5689,,04/02/2020,3110688654,650.05,Greigcare Home Service
http://statistics.data.gov.uk/id/local-authority/38,Oxfordshire County Council,Support at Home U65 Memory & Cognition,5899,Social Care - Direct Payments,18/02/2020,3110698683,650.92,Purple Conversation Com In Co (DP)
http://statistics.data.gov.uk/id/local-authority/38,Oxfordshire County Council,Support at Home U65 Learning Disability,5682,,12/02/2020,3110691525,651.35,The Brandon Trust
http://statistics.data.gov.uk/id/local-authority/38,Oxfordshire County Council,Support at Home U65 Learning Disability,5682,,12/02/2020,3110691546,651.46,The Brandon Trust
http://statistics.data.gov.uk/id/local-authority/38,Oxfordshire County Council,AIM HIGHER FUNDING,5195,Grant Aid and Donations,13/02/2020,3110697028,651.60,Barnardo's Community Short Breaks
http://statistics.data.gov.uk/id/local-authority/38,Oxfordshire County Council,Support at Home 65+ Memory & Cognition,5698,,26/02/2020,3110702867,652.04,Day & Night Care Assistance
http://statistics.data.gov.uk/id/local-authority/38,Oxfordshire County Council,VOIDS/VACANCY COSTS,3945,Rent,12/02/2020,3110695276,653.33,ADVANCE HOUSING & SUPPORT LTD
http://statistics.data.gov.uk/id/local-authority/38,Oxfordshire County Council,SEN TRANSPORT,5227,Other Transport Arrangements,11/02/2020,3110691387,653.60,Crown Cabs Travel Ltd
http://statistics.data.gov.uk/id/local-authority/38,Oxfordshire County Council,Contingency Home Care,5689,,04/02/2020,3110688912,654.03,Oxford University Hospitals NHS FT
http://statistics.data.gov.uk/id/local-authority/38,Oxfordshire County Council,SM DISABILITIES,5554,Childrens' Social Care - Direct Payments,25/02/2020,3110701148,654.10,Purple Conversation Com In Co (DP)
http://statistics.data.gov.uk/id/local-authority/38,Oxfordshire County Council,Support at Home 65+ Physical Support,5689,,04/02/2020,3110688341,654.36,Care Outlook Ltd
http://statistics.data.gov.uk/id/local-authority/38,Oxfordshire County Council,Support at Home U65 Learning Disability,5690,,12/02/2020,3110692698,654.57,Style Acre
http://statistics.data.gov.uk/id/local-authority/38,Oxfordshire County Council,FOSTERING MAIN,5552,B*Fostering - Retainer Fee,04/02/2020,3110689276,654.89,Redacted Personal Data
http://statistics.data.gov.uk/id/local-authority/38,Oxfordshire County Council,FOSTERING MAIN,5552,B*Fostering - Retainer Fee,12/02/2020,3110691795,654.89,Redacted Personal Data
http://statistics.data.gov.uk/id/local-authority/38,Oxfordshire County Council,FOSTERING MAIN,5552,B*Fostering - Retainer Fee,12/02/2020,3110692165,654.89,Redacted Personal Data
http://statistics.data.gov.uk/id/local-authority/38,Oxfordshire County Council,SEN Miscellaneous Expenditure,4861,Hired and Contracted Services,06/02/2020,2200732805,655.00,Radcliffe Academy Trust
http://statistics.data.gov.uk/id/local-authority/38,Oxfordshire County Council,Support at Home U65 Physical Support,5899,Social Care - Direct Payments,18/02/2020,3110698851,655.20,Purple Conversation Com In Co (DP)
http://statistics.data.gov.uk/id/local-authority/38,Oxfordshire County Council,Planned preventative Maintenance,3787,Premises Repairs,03/02/2020,2200731385,655.20,R J Lift Services Ltd
http://statistics.data.gov.uk/id/local-authority/38,Oxfordshire County Council,Support at Home U65 Learning Disability,5899,Social Care - Direct Payments,18/02/2020,3110698136,656.00,Redacted Personal Data
http://statistics.data.gov.uk/id/local-authority/38,Oxfordshire County Council,SEN TRANSPORT,5227,Other Transport Arrangements,12/02/2020,3110692236,656.07,Luxicars Ltd
http://statistics.data.gov.uk/id/local-authority/38,Oxfordshire County Council,SEN Miscellaneous Expenditure,4861,Hired and Contracted Services,06/02/2020,2200733090,656.40,Teaching Personnel Ltd
http://statistics.data.gov.uk/id/local-authority/38,Oxfordshire County Council,Early Years SEN Funding,5537,Payments to Other Establishments,26/02/2020,3110703311,657.07,Pegasus Primary School
http://statistics.data.gov.uk/id/local-authority/38,Oxfordshire County Council,Support at Home 65+ Physical Support,5689,,04/02/2020,3110688307,657.43,Amber Healthcare Personnel Ltd
http://statistics.data.gov.uk/id/local-authority/38,Oxfordshire County Council,FOSTERING MAIN,5549,B*Fostering Allowance - Regulation 38,18/02/2020,3110699658,657.86,Redacted Personal Data
http://statistics.data.gov.uk/id/local-authority/38,Oxfordshire County Council,Support at Home 65+ Physical Support,5696,,11/02/2020,3110691101,657.98,Orders of St John Care Trust
http://statistics.data.gov.uk/id/local-authority/38,Oxfordshire County Council,Support at Home 65+ Learning Disability,5899,Social Care - Direct Payments,18/02/2020,3110698895,658.00,Purple Conversation Com In Co (DP)
http://statistics.data.gov.uk/id/local-authority/38,Oxfordshire County Council,Support at Home 65+ Sensory Support,5899,Social Care - Direct Payments,18/02/2020,3110698955,658.00,Purple Conversation Com In Co (DP)
http://statistics.data.gov.uk/id/local-authority/38,Oxfordshire County Council,Contingency Home Care,5689,,04/02/2020,3110688986,658.04,Oxford University Hospitals NHS FT
http://statistics.data.gov.uk/id/local-authority/38,Oxfordshire County Council,Support at Home 65+ Physical Support,5698,,26/02/2020,3110702942,658.18,Day & Night Care Assistance
http://statistics.data.gov.uk/id/local-authority/38,Oxfordshire County Council,Support at Home 65+ Physical Support,5689,,04/02/2020,3110688650,658.42,Greigcare Home Service
http://statistics.data.gov.uk/id/local-authority/38,Oxfordshire County Council,Support at Home U65 Physical Support,5899,Social Care - Direct Payments,18/02/2020,3110697772,658.51,Purple Conversation Com In Co (DP)
http://statistics.data.gov.uk/id/local-authority/38,Oxfordshire County Council,Support at Home 65+ Physical Support,5689,,04/02/2020,3110688196,658.63,Alina Homecare
http://statistics.data.gov.uk/id/local-authority/38,Oxfordshire County Council,FOSTERING MAIN,5532,B*Fostering - Loan Equipment,12/02/2020,3110692001,659.14,Redacted Personal Data
http://statistics.data.gov.uk/id/local-authority/38,Oxfordshire County Council,FOSTERING MAIN,5532,B*Fostering - Loan Equipment,12/02/2020,3110692003,659.14,Redacted Personal Data
http://statistics.data.gov.uk/id/local-authority/38,Oxfordshire County Council,Support at Home U65 Memory & Cognition,5899,Social Care - Direct Payments,18/02/2020,3110699065,659.20,Purple Conversation Com In Co (DP)
http://statistics.data.gov.uk/id/local-authority/38,Oxfordshire County Council,Support at Home 65+ Physical Support,5689,,04/02/2020,3110688807,659.67,My Carer Ltd
http://statistics.data.gov.uk/id/local-authority/38,Oxfordshire County Council,RECRUITMENT+MEDICALS,4859,Medical and Counselling Fees,05/02/2020,2200732187,659.75,People Asset Management
http://statistics.data.gov.uk/id/local-authority/38,Oxfordshire County Council,Delegated Health Tasks  - Over 65,5689,,04/02/2020,3110688741,659.80,Lifecarers Limited
http://statistics.data.gov.uk/id/local-authority/38,Oxfordshire County Council,POST 16 SEN,4330,Transport to School Activities,25/02/2020,3110700920,660.00,Abingdon Taxis FKN Autotaxis
http://statistics.data.gov.uk/id/local-authority/38,Oxfordshire County Council,Support at Home U65 Physical Support,5227,Other Transport Arrangements,06/02/2020,3110690642,660.00,Henley Taxis Ltd
http://statistics.data.gov.uk/id/local-authority/38,Oxfordshire County Council,Support at Home U65 MH OBC Contract,5899,Social Care - Direct Payments,18/02/2020,3110698201,660.00,Redacted Personal Data
http://statistics.data.gov.uk/id/local-authority/38,Oxfordshire County Council,SEN TRANSPORT,5227,Other Transport Arrangements,20/02/2020,3110700505,660.00,Oxon Transport Services Ltd
http://statistics.data.gov.uk/id/local-authority/38,Oxfordshire County Council,Support at Home U65 Learning Disability,5899,Social Care - Direct Payments,18/02/2020,3110697724,660.00,Purple Conversation Com In Co (DP)
http://statistics.data.gov.uk/id/local-authority/38,Oxfordshire County Council,Support at Home U65 Physical Support,5899,Social Care - Direct Payments,18/02/2020,3110698069,660.00,Purple Conversation Com In Co (DP)
http://statistics.data.gov.uk/id/local-authority/38,Oxfordshire County Council,Support at Home U65 Learning Disability,5899,Social Care - Direct Payments,18/02/2020,3110698580,660.00,Purple Conversation Com In Co (DP)
http://statistics.data.gov.uk/id/local-authority/38,Oxfordshire County Council,Support at Home 65+ Physical Support,5899,Social Care - Direct Payments,18/02/2020,3110698985,660.00,Purple Conversation Com In Co (DP)
http://statistics.data.gov.uk/id/local-authority/38,Oxfordshire County Council,LIBRARY COLLECTIONS,4539,"Books, DVDs and CDs",06/02/2020,3110690381,660.07,ASKEWS & HOLTS LIBRARY SERVICES LTD
http://statistics.data.gov.uk/id/local-authority/38,Oxfordshire County Council,LIBRARY COLLECTIONS,4539,"Books, DVDs and CDs",21/02/2020,3110700895,660.17,ASKEWS & HOLTS LIBRARY SERVICES LTD
http://statistics.data.gov.uk/id/local-authority/38,Oxfordshire County Council,Support at Home 65+ Physical Support,5689,,04/02/2020,3110688398,660.32,Caremark (West Oxfordshire & Cherwe
http://statistics.data.gov.uk/id/local-authority/38,Oxfordshire County Council,Support at Home 65+ Physical Support,5693,,19/02/2020,3110699908,660.54,Bicester PA and Care LLP
http://statistics.data.gov.uk/id/local-authority/38,Oxfordshire County Council,Support at Home 65+ Physical Support,5689,,04/02/2020,3110688617,660.64,Goldsmith Personnel Ltd
http://statistics.data.gov.uk/id/local-authority/38,Oxfordshire County Council,Delegated Health Tasks  - Over 65,5691,,25/02/2020,3110701109,661.00,The Caring Company (Oxon)
http://statistics.data.gov.uk/id/local-authority/38,Oxfordshire County Council,Support at Home 65+ Physical Support,5689,,04/02/2020,3110688677,661.25,Greigcare Home Service
http://statistics.data.gov.uk/id/local-authority/38,Oxfordshire County Council,Support at Home U65 Physical Support,5899,Social Care - Direct Payments,18/02/2020,3110698307,661.32,Purple Conversation Com In Co (DP)
http://statistics.data.gov.uk/id/local-authority/38,Oxfordshire County Council,Contingency Home Care,5689,,04/02/2020,3110688879,662.03,Oxford University Hospitals NHS FT
http://statistics.data.gov.uk/id/local-authority/38,Oxfordshire County Council,2 YEAR OLD FUNDING,5537,Payments to Other Establishments,20/02/2020,3110700230,662.40,Rebecca Sandwell
http://statistics.data.gov.uk/id/local-authority/38,Oxfordshire County Council,Recruitment,3942,Hire of Accommodation and Facilities,04/02/2020,2200732076,662.50,Unipart Group Ltd
http://statistics.data.gov.uk/id/local-authority/38,Oxfordshire County Council,Support at Home 65+ Physical Support,5698,,26/02/2020,3110702911,662.51,Day & Night Care Assistance
http://statistics.data.gov.uk/id/local-authority/38,Oxfordshire County Council,Support at Home U65 Learning Disability,5690,,12/02/2020,3110692669,662.86,Turnstyle
http://statistics.data.gov.uk/id/local-authority/38,Oxfordshire County Council,SEN TRANSPORT,5227,Other Transport Arrangements,20/02/2020,3110700490,663.00,Oxon Transport Services Ltd
http://statistics.data.gov.uk/id/local-authority/38,Oxfordshire County Council,Support at Home U65 Learning Disability,5697,,19/02/2020,3110699983,663.00,Style Acre
http://statistics.data.gov.uk/id/local-authority/38,Oxfordshire County Council,Support at Home 65+ Physical Support,5698,,26/02/2020,3110703123,663.56,Oxford Private Care
http://statistics.data.gov.uk/id/local-authority/38,Oxfordshire County Council,Support at Home U65 Physical Support,5698,,26/02/2020,3110702728,663.89,Charterville Care At Home Ltd
http://statistics.data.gov.uk/id/local-authority/38,Oxfordshire County Council,Support at Home 65+ Physical Support,5693,,26/02/2020,3110702397,664.10,Pechiv Ltd
http://statistics.data.gov.uk/id/local-authority/38,Oxfordshire County Council,Support at Home 65+ Physical Support,5698,,26/02/2020,3110702668,664.82,Acquire Care Ltd
http://statistics.data.gov.uk/id/local-authority/38,Oxfordshire County Council,LEGAL SERVICES,5251,Legal Costs,11/02/2020,2200734886,665.00,Alison Williams
http://statistics.data.gov.uk/id/local-authority/38,Oxfordshire County Council,Support at Home U65 Learning Disability,5690,,12/02/2020,3110692697,665.43,Style Acre
http://statistics.data.gov.uk/id/local-authority/38,Oxfordshire County Council,Support at Home U65 Memory & Cognition,5899,Social Care - Direct Payments,18/02/2020,3110698798,665.60,Purple Conversation Com In Co (DP)
http://statistics.data.gov.uk/id/local-authority/38,Oxfordshire County Council,Support at Home 65+ Physical Support,5689,,04/02/2020,3110688270,665.89,Allied Health-Services Limited
http://statistics.data.gov.uk/id/local-authority/38,Oxfordshire County Council,Care Packages & Placements- LD - OCC,5227,Other Transport Arrangements,12/02/2020,3110692268,666.00,Oxon Transport Services Ltd
http://statistics.data.gov.uk/id/local-authority/38,Oxfordshire County Council,SEN TRANSPORT,5227,Other Transport Arrangements,20/02/2020,3110700587,666.00,Oxon Transport Services Ltd
http://statistics.data.gov.uk/id/local-authority/38,Oxfordshire County Council,Support at Home 65+ Physical Support,5698,,26/02/2020,3110703040,666.02,KCARE NURSING AGENCY
http://statistics.data.gov.uk/id/local-authority/38,Oxfordshire County Council,COMM DRAWDOWN FUNDNG,8103,Payments to sub contractor,06/02/2020,2200733210,666.13,Bytes Software Services
http://statistics.data.gov.uk/id/local-authority/38,Oxfordshire County Council,Support at Home 65+ Physical Support,5689,,04/02/2020,3110689082,666.41,Premier Personal Care
http://statistics.data.gov.uk/id/local-authority/38,Oxfordshire County Council,DAY SERVICES,5690,,04/02/2020,2200731652,666.67,The Brandon Trust
http://statistics.data.gov.uk/id/local-authority/38,Oxfordshire County Council,Support at Home U65 MH OBC Contract,4111,Security Costs,19/02/2020,3110699900,667.00,Portway Cattery
http://statistics.data.gov.uk/id/local-authority/38,Oxfordshire County Council,Support at Home 65+ Physical Support,5689,,04/02/2020,3110688771,667.27,My Carer Ltd
http://statistics.data.gov.uk/id/local-authority/38,Oxfordshire County Council,Contingency Home Care,5689,,04/02/2020,3110688860,668.03,Oxford University Hospitals NHS FT
http://statistics.data.gov.uk/id/local-authority/38,Oxfordshire County Council,Support at Home 65+ Mental Health,5689,,04/02/2020,3110689093,668.50,Response Organisation
http://statistics.data.gov.uk/id/local-authority/38,Oxfordshire County Council,FOSTERING MAIN,4940,Other Services,12/02/2020,3110692077,668.65,Redacted Personal Data
http://statistics.data.gov.uk/id/local-authority/38,Oxfordshire County Council,Support at Home 65+ Mental Health,5689,,04/02/2020,3110688687,669.10,Harino Care
http://statistics.data.gov.uk/id/local-authority/38,Oxfordshire County Council,Support at Home U65 Learning Disability,5688,,12/02/2020,3110693633,669.49,The Laurels (Witney)
http://statistics.data.gov.uk/id/local-authority/38,Oxfordshire County Council,Support at Home 65+ Physical Support,5696,,26/02/2020,3110702383,669.75,1st Homecare (Oxford) Ltd
http://statistics.data.gov.uk/id/local-authority/38,Oxfordshire County Council,Support at Home 65+ Physical Support,5689,,04/02/2020,3110688320,669.75,Care Outlook Ltd
